Workbook

Sheet info
A1: المملكة المغربية | J1: العـام الدراســي | M1: 2018-2017 | P1: المواد غير المعممة | T1: 0 | U1: ذ
A2: وزارة التربية الوطنية و التكوين المهني | J2: الأستاذ (ة) | M2: هشام | P2: الأمازيغية | T2: 1 | U2: أ | V2: مك
A3: الأكاديمية الجهوية للتربية والتكوين | J3: المستوى | M3: الأول | P3: 0
A4: جهة دكالة عبدة | J4: الوحدة المدرسية | M4: لايهم
A5: نيابة المديرية | J5: الفوج | M5: 1
A6: المدرسة | J6: عدد التلاميذ | M6: =O12 -> 25
L8: إحصائيات
M9: جدد | N9: مك | O9: مجموع
L10: ذكور | M10: =SUMPRODUCT(($D$16:$D$65="ذ")*($E$16:$E$65="")) -> 11 | N10: =SUMPRODUCT(($D$16:$D$65="ذ")*($E$16:$E$65="مك")) -> 3 | O10: =SUM(M10:N10) -> 14
L11: إناث | M11: =SUMPRODUCT(($D$16:$D$65="أ")*($E$16:$E$65="")) -> 10 | N11: =SUMPRODUCT(($D$16:$D$65="أ")*($E$16:$E$65="مك")) -> 1 | O11: =SUM(M11:N11) -> 11
L12: مج | M12: =SUM(M10:M11) -> 21 | N12: =SUM(N10:N11) -> 4 | O12: =SUM(O10:O11) -> 25
A14: ر.ت | B14: رقم التلميذ | C14: الاسم و النسب | D14: الجنس | E14: التكرار | F14: رقم | G14: تاريخ | H14: تاريخ | I14: مدة الدراسة | O14: ملاحظات
F15: التسجيل | G15: الازدياد | H15: التسجيل.م | I15: 1 | J15: 2 | K15: 3 | L15: 4 | M15: 5 | N15: 6
A16: =IF($C16="","",MAX($A$15:$A15)+1) -> 1 | B16: 1 | C16: رضوان | D16: ذ | E16: مك | G16: 2005-06-23
A17: =IF($C17="","",MAX($A$15:$A16)+1) -> 2 | B17: 2 | C17: محمد | D17: ذ | G17: 2008-03-14
A18: =IF($C18="","",MAX($A$15:$A17)+1) -> 3 | B18: 3 | C18: سلمى | D18: أ | G18: 2007-10-07
A19: =IF($C19="","",MAX($A$15:$A18)+1) -> 4 | B19: 4 | C19: شعيب | D19: ذ | G19: 2008-12-06
A20: =IF($C20="","",MAX($A$15:$A19)+1) -> 5 | B20: 5 | C20: ميلود | D20: ذ | E20: مك | G20: 2008-07-10
A21: =IF($C21="","",MAX($A$15:$A20)+1) -> 6 | B21: 6 | C21: فاطمة | D21: أ | G21: 2008-01-08
A22: =IF($C22="","",MAX($A$15:$A21)+1) -> 7 | B22: 7 | C22: مصطفى | D22: ذ | E22: مك | G22: 2009-01-02
A23: =IF($C23="","",MAX($A$15:$A22)+1) -> 8 | B23: 8 | C23: فريد | D23: ذ | G23: 2008-07-27
A24: =IF($C24="","",MAX($A$15:$A23)+1) -> 9 | B24: 9 | C24: كمال | D24: ذ | G24: 2008-07-16
A25: =IF($C25="","",MAX($A$15:$A24)+1) -> 10 | B25: 10 | C25: لبنى | D25: أ | E25: مك | G25: 2009-03-15
A26: =IF($C26="","",MAX($A$15:$A25)+1) -> 11 | B26: 11 | C26: أحمد | D26: ذ | G26: 2008-07-13
A27: =IF($C27="","",MAX($A$15:$A26)+1) -> 12 | B27: 12 | C27: سلمان | D27: ذ | G27: 2007-12-31
A28: =IF($C28="","",MAX($A$15:$A27)+1) -> 13 | B28: 13 | C28: مروة | D28: أ | G28: 2008-04-07
A29: =IF($C29="","",MAX($A$15:$A28)+1) -> 14 | B29: 14 | C29: خالد | D29: ذ | G29: 2008-04-14
A30: =IF($C30="","",MAX($A$15:$A29)+1) -> 15 | B30: 15 | C30: سفيان | D30: ذ | G30: 2008-08-13
A31: =IF($C31="","",MAX($A$15:$A30)+1) -> 16 | B31: 16 | C31: لمياء | D31: أ | G31: 2009-01-24
A32: =IF($C32="","",MAX($A$15:$A31)+1) -> 17 | B32: 17 | C32: مريم | D32: أ | G32: 2008-12-31
A33: =IF($C33="","",MAX($A$15:$A32)+1) -> 18 | B33: 18 | C33: لقمان | D33: ذ | G33: 2009-02-20
A34: =IF($C34="","",MAX($A$15:$A33)+1) -> 19 | B34: 19 | C34: محمد | D34: ذ | G34: 2009-01-02
A35: =IF($C35="","",MAX($A$15:$A34)+1) -> 20 | B35: 20 | C35: سليم | D35: ذ | G35: 2008-09-22
A36: =IF($C36="","",MAX($A$15:$A35)+1) -> 21 | B36: 21 | C36: فتيحة | D36: أ | G36: 2008-04-12
A37: =IF($C37="","",MAX($A$15:$A36)+1) -> 22 | B37: 22 | C37: رقية | D37: أ | G37: 2008-12-22
A38: =IF($C38="","",MAX($A$15:$A37)+1) -> 23 | B38: 23 | C38: جميلة | D38: أ | G38: 2008-11-29
A39: =IF($C39="","",MAX($A$15:$A38)+1) -> 24 | B39: 24 | C39: نادية | D39: أ | G39: 2008-06-24
A40: =IF($C40="","",MAX($A$15:$A39)+1) -> 25 | B40: 25 | C40: سكينة | D40: أ | G40: 2008-06-07
A41: =IF($C41="","",MAX($A$15:$A40)+1) -> 
A42: =IF($C42="","",MAX($A$15:$A41)+1) -> 
A43: =IF($C43="","",MAX($A$15:$A42)+1) -> 
A44: =IF($C44="","",MAX($A$15:$A43)+1) -> 
A45: =IF($C45="","",MAX($A$15:$A44)+1) -> 
A46: =IF($C46="","",MAX($A$15:$A45)+1) -> 
A47: =IF($C47="","",MAX($A$15:$A46)+1) -> 
A48: =IF($C48="","",MAX($A$15:$A47)+1) -> 
A49: =IF($C49="","",MAX($A$15:$A48)+1) -> 
A50: =IF($C50="","",MAX($A$15:$A49)+1) -> 
A51: =IF($C51="","",MAX($A$15:$A50)+1) -> 
A52: =IF($C52="","",MAX($A$15:$A51)+1) -> 
A53: =IF($C53="","",MAX($A$15:$A52)+1) -> 
A54: =IF($C54="","",MAX($A$15:$A53)+1) -> 
A55: =IF($C55="","",MAX($A$15:$A54)+1) -> 
A56: =IF($C56="","",MAX($A$15:$A55)+1) -> 
A57: =IF($C57="","",MAX($A$15:$A56)+1) -> 
A58: =IF($C58="","",MAX($A$15:$A57)+1) -> 
A59: =IF($C59="","",MAX($A$15:$A58)+1) -> 
A60: =IF($C60="","",MAX($A$15:$A59)+1) -> 
A61: =IF($C61="","",MAX($A$15:$A60)+1) -> 
A62: =IF($C62="","",MAX($A$15:$A61)+1) -> 
A63: =IF($C63="","",MAX($A$15:$A62)+1) -> 
A64: =IF($C64="","",MAX($A$15:$A63)+1) -> 
A65: =IF($C65="","",MAX($A$15:$A64)+1) -> 

Sheet sem1
C1: =info!$A$1 -> المملكة المغربية | AD1: العــام الدراســي | AG1: =info!M1 -> 2018-2017
C2: =info!$A$2 -> وزارة التربية الوطنية و التكوين المهني | AD2: الأستاذ(ة) | AG2: =info!$M$2 -> هشام
C3: =info!$A$3 -> الأكاديمية الجهوية للتربية والتكوين | AD3: المستوى | AG3: =info!$M$3 -> الأول
C4: =info!$A$4 -> جهة دكالة عبدة | I4: مجمل نتائج الأسدوس الأول | AD4: الوحدة المدرسية | AG4: =info!$M$4 -> لايهم
C5: =info!$A$5 -> نيابة المديرية | AD5: الفوج | AG5: =info!$M$5 -> 1
C6: =info!$A$6 -> المدرسة
G7: اللغة العربية | W7: الأمازيغية | Z7: التربية الإسلامية | AE7: النشاط العلمي | AH7: التربية الفنية | AK7: الرياضيات | AN7: الفرنسية | AQ7: التربية البدنية | AT7: معامل ت ب | AU7: مج المعاملات | AV7: مج المعدلات | AW7: معدل الدورة | AX7: الرتبة | AY7: الميزة
A8: ر.ت | B8: رقم التلميذ | C8: الاسم و النسب | D8: تاريخ الإزدياد | E8: الجنس | F8: ر.التسجيل | G8: القراءة | J8: الإملاء | M8: الخط | P8: التعبير الشفوي | S8: النقل | V8: معدل | W8: الأمازيغية | Y8: معدل | Z8: فرض1 | AA8: فرض2 | AB8: فرض3 | AC8: أنشطة | AD8: معدل | AE8: النشاط العلمي | AG8: معدل | AH8: التربية الفنية | AJ8: معدل | AK8: الرياضيات | AM8: معدل | AN8: الفرنسية | AP8: معدل | AQ8: التربية البدنية | AS8: معدل
G9: ن1 | H9: ن2 | I9: معدل | J9: ن1 | K9: ن2 | L9: معدل | M9: ن1 | N9: ن2 | O9: معدل | P9: ن1 | Q9: ن2 | R9: معدل | S9: ن1 | T9: ن2 | U9: معدل | V9: الوحدة | W9: ن1 | X9: ن2 | Y9: الوحدة | Z9: ن1 | AA9: ن2 | AB9: ن3 | AC9: ن4 | AD9: الوحدة | AE9: ن1 | AF9: ن2 | AG9: الوحدة | AH9: ن1 | AI9: ن2 | AJ9: الوحدة | AK9: ن1 | AL9: ن2 | AM9: الوحدة | AN9: ن1 | AO9: ن2 | AP9: الوحدة | AQ9: ن1 | AR9: ن2 | AS9: الوحدة
A10: =IF(info!A16="","",info!A16) -> 1 | B10: =IF($A10="","",info!B16) -> 1 | C10: =IF($A10="","",info!C16) -> رضوان | D10: =IF($A10="","",info!G16) -> 2005-06-23 | E10: =IF($A10="","",info!D16) -> ذ | F10: =IF($A10="","",info!F16) -> 0 | G10: 4 | H10: 3 | I10: =IF(OR(G10="",H10=""),"",AVERAGE(G10:H10)) -> 3.5 | J10: 4 | K10: 3 | L10: =IF(OR(J10="",K10=""),"",AVERAGE(J10:K10)) -> 3.5 | M10: 4 | N10: 4 | O10: =IF(OR(M10="",N10=""),"",AVERAGE(M10:N10)) -> 4 | P10: 4 | Q10: 3 | R10: =IF(OR(P10="",Q10=""),"",AVERAGE(P10:Q10)) -> 3.5 | S10: 4 | T10: 4 | U10: =IF(OR(S10="",T10=""),"",AVERAGE(S10:T10)) -> 4 | V10: =IF(OR(U10="",R10="",O10="",L10="",I10=""),"",AVERAGE(U10,R10,O10,L10,I10)) -> 3.7 | Y10: =IF(OR(W10="",X10=""),"",AVERAGE(W10:X10)) ->  | Z10: 4 | AA10: 3 | AB10: =IF(Z10="","",IF(AA10="","",AVERAGE(Z10:AA10))) -> 3.5 | AC10: 4 | AD10: =IF(OR(Z10="",AA10="",AB10="",AC10=""),"",AVERAGE(Z10:AC10)) -> 3.625 | AE10: 4 | AF10: 4 | AG10: =IF(OR(AE10="",AF10=""),"",AVERAGE(AE10:AF10)) -> 4 | AH10: 4 | AI10: 6.5 | AJ10: =IF(OR(AH10="",AI10=""),"",AVERAGE(AH10:AI10)) -> 5.25 | AK10: 3 | AL10: 3.5 | AM10: =IF(OR(AK10="",AL10=""),"",AVERAGE(AK10:AL10)) -> 3.25 | AN10: 4 | AO10: 3.5 | AP10: =IF(OR(AN10="",AO10=""),"",AVERAGE(AN10:AO10)) -> 3.75 | AQ10: 5.5 | AR10: 6.5 | AS10: =IF(OR(AQ10="",AR10=""),"",AVERAGE(AQ10:AR10)) -> 6 | AT10: 1 | AU10: =IF($A10="","",6+AT10+info!$P$3) -> 7 | AV10: =IF($A10="","",SUM(V10,AD10,AG10,AJ10,AM10,AS10,Y10)) -> 25.825 | AW10: =IF($A10="","",AV10/AU10) -> 3.689285714 | AX10: =IF($A10="","",RANK(AW10,$AW$10:$AW$59)) -> 23 | AY10: =IF($A10="","",IF(AW10>=8," تنويه ",IF(AW10>=7,"تشجيع ",IF(AW10>=6,"لوحة الشرف",IF(AW10>=5,"متوسط",IF(AW10>=4,"دون المتوسط",IF(AW10>=3,"ناقص",IF(AW10>=2,"تنبيه",IF(AW10>=1,"إنذار","توبيخ"))))))))) -> ناقص
A11: =IF(info!A17="","",info!A17) -> 2 | B11: =IF($A11="","",info!B17) -> 2 | C11: =IF($A11="","",info!C17) -> محمد | D11: =IF($A11="","",info!G17) -> 2008-03-14 | E11: =IF($A11="","",info!D17) -> ذ | F11: =IF($A11="","",info!F17) -> 0 | G11: 4 | H11: 4.5 | I11: =IF(OR(G11="",H11=""),"",AVERAGE(G11:H11)) -> 4.25 | J11: 6.5 | K11: 6 | L11: =IF(OR(J11="",K11=""),"",AVERAGE(J11:K11)) -> 6.25 | M11: 6 | N11: 6 | O11: =IF(OR(M11="",N11=""),"",AVERAGE(M11:N11)) -> 6 | P11: 4 | Q11: 6.5 | R11: =IF(OR(P11="",Q11=""),"",AVERAGE(P11:Q11)) -> 5.25 | S11: 6 | T11: 5 | U11: =IF(OR(S11="",T11=""),"",AVERAGE(S11:T11)) -> 5.5 | V11: =IF(OR(U11="",R11="",O11="",L11="",I11=""),"",AVERAGE(U11,R11,O11,L11,I11)) -> 5.45 | Y11: =IF(OR(W11="",X11=""),"",AVERAGE(W11:X11)) ->  | Z11: 6.5 | AA11: 4 | AB11: =IF(Z11="","",IF(AA11="","",AVERAGE(Z11:AA11))) -> 5.25 | AC11: 6 | AD11: =IF(OR(Z11="",AA11="",AB11="",AC11=""),"",AVERAGE(Z11:AC11)) -> 5.4375 | AE11: 9.5 | AF11: 9 | AG11: =IF(OR(AE11="",AF11=""),"",AVERAGE(AE11:AF11)) -> 9.25 | AH11: 7.25 | AI11: 6.5 | AJ11: =IF(OR(AH11="",AI11=""),"",AVERAGE(AH11:AI11)) -> 6.875 | AK11: 6.58 | AL11: 6.75 | AM11: =IF(OR(AK11="",AL11=""),"",AVERAGE(AK11:AL11)) -> 6.665 | AN11: 6 | AO11: 5.25 | AP11: =IF(OR(AN11="",AO11=""),"",AVERAGE(AN11:AO11)) -> 5.625 | AQ11: 5.5 | AR11: 6.75 | AS11: =IF(OR(AQ11="",AR11=""),"",AVERAGE(AQ11:AR11)) -> 6.125 | AT11: 1 | AU11: =IF($A11="","",6+AT11+info!$P$3) -> 7 | AV11: 39.8025 | AW11: =IF($A11="","",AV11/AU11) -> 5.686071429 | AX11: 8 | AY11: =IF($A11="","",IF(AW11>=8," تنويه ",IF(AW11>=7,"تشجيع ",IF(AW11>=6,"لوحة الشرف",IF(AW11>=5,"متوسط",IF(AW11>=4,"دون المتوسط",IF(AW11>=3,"ناقص",IF(AW11>=2,"تنبيه",IF(AW11>=1,"إنذار","توبيخ"))))))))) -> متوسط
A12: =IF(info!A18="","",info!A18) -> 3 | B12: =IF($A12="","",info!B18) -> 3 | C12: =IF($A12="","",info!C18) -> سلمى | D12: =IF($A12="","",info!G18) -> 2007-10-07 | E12: =IF($A12="","",info!D18) -> أ | F12: =IF($A12="","",info!F18) -> 0 | G12: 3.5 | H12: 4.5 | I12: 4 | J12: 6 | K12: 5 | L12: 5.5 | M12: 5 | N12: 5.5 | O12: 5.25 | P12: 3.5 | Q12: 4.5 | R12: 4 | S12: 5 | T12: 5 | U12: 5 | V12: 4.75 | Z12: 5 | AA12: 3 | AB12: 4 | AC12: 5.5 | AD12: 4.375 | AE12: 5 | AF12: 6.66 | AG12: 5.83 | AH12: 8 | AI12: 6.5 | AJ12: 7.25 | AK12: 5 | AL12: 5.5 | AM12: 5.25 | AN12: 5 | AO12: 4 | AP12: 4.5 | AQ12: 6.25 | AR12: 6.5 | AS12: 6.375 | AT12: 1 | AU12: =IF($A12="","",6+AT12+info!$P$3) -> 7 | AV12: 33.83 | AW12: 4.832857143 | AX12: 12 | AY12: دون المتوسط
A13: =IF(info!A19="","",info!A19) -> 4 | B13: =IF($A13="","",info!B19) -> 4 | C13: =IF($A13="","",info!C19) -> شعيب | D13: =IF($A13="","",info!G19) -> 2008-12-06 | E13: =IF($A13="","",info!D19) -> ذ | F13: =IF($A13="","",info!F19) -> 0 | G13: 7 | H13: 6.5 | I13: 6.75 | J13: 6 | K13: 6.75 | L13: 6.375 | M13: 6 | N13: 7 | O13: 6.5 | P13: 6.5 | Q13: 8 | R13: 7.25 | S13: 6 | T13: 6 | U13: 6 | V13: 6.575 | Z13: 8.75 | AA13: 5.5 | AB13: 7.125 | AC13: 7.5 | AD13: 7.21875 | AE13: 6 | AF13: 9.5 | AG13: 7.75 | AH13: 7.5 | AI13: 9 | AJ13: 8.25 | AK13: 8.83 | AL13: 9.5 | AM13: 9.165 | AN13: 6 | AO13: 7.125 | AP13: 6.5625 | AQ13: 6.25 | AR13: 6.75 | AS13: 6.5 | AT13: 1 | AU13: =IF($A13="","",6+AT13+info!$P$3) -> 7 | AV13: 45.45875 | AW13: 6.494107143 | AX13: 3 | AY13: لوحة الشرف
A14: =IF(info!A20="","",info!A20) -> 5 | B14: =IF($A14="","",info!B20) -> 5 | C14: =IF($A14="","",info!C20) -> ميلود | D14: =IF($A14="","",info!G20) -> 2008-07-10 | E14: =IF($A14="","",info!D20) -> ذ | F14: =IF($A14="","",info!F20) -> 0 | G14: 4 | H14: 5 | I14: 4.5 | J14: 5.5 | K14: 5 | L14: 5.25 | M14: 4 | N14: 6.5 | O14: 5.25 | P14: 4 | Q14: 6.5 | R14: 5.25 | S14: 4 | T14: 6 | U14: 5 | V14: 5.05 | Z14: 5.25 | AA14: 4.5 | AB14: 4.875 | AC14: 6 | AD14: 5.15625 | AE14: 7 | AF14: 9 | AG14: 8 | AH14: 6 | AI14: 7 | AJ14: 6.5 | AK14: 4.66 | AL14: 6.25 | AM14: 5.455 | AN14: 4 | AO14: 4.875 | AP14: 4.4375 | AQ14: 5.5 | AR14: 6.75 | AS14: 6.125 | AT14: 1 | AU14: =IF($A14="","",6+AT14+info!$P$3) -> 7 | AV14: 36.28625 | AW14: 5.18375 | AX14: 10 | AY14: متوسط
A15: =IF(info!A21="","",info!A21) -> 6 | B15: =IF($A15="","",info!B21) -> 6 | C15: =IF($A15="","",info!C21) -> فاطمة | D15: =IF($A15="","",info!G21) -> 2008-01-08 | E15: =IF($A15="","",info!D21) -> أ | F15: =IF($A15="","",info!F21) -> 0 | G15: 3 | H15: 3.5 | I15: 3.25 | J15: 2 | K15: 3 | L15: 2.5 | M15: 2 | N15: 4 | O15: 3 | P15: 3 | Q15: 4 | R15: 3.5 | S15: 2 | T15: 4 | U15: 3 | V15: 3.05 | Z15: 3 | AA15: 3 | AB15: 3 | AC15: 4 | AD15: 3.25 | AE15: 4.5 | AF15: 4.5 | AG15: 4.5 | AH15: 6.25 | AI15: 5 | AJ15: 5.625 | AK15: 4.33 | AL15: 2.75 | AM15: 3.54 | AN15: 2 | AO15: 3 | AP15: 2.5 | AQ15: 5 | AR15: 6 | AS15: 5.5 | AT15: 1 | AU15: =IF($A15="","",6+AT15+info!$P$3) -> 7 | AV15: 25.465 | AW15: 3.637857143 | AX15: 24 | AY15: ناقص
A16: =IF(info!A22="","",info!A22) -> 7 | B16: =IF($A16="","",info!B22) -> 7 | C16: =IF($A16="","",info!C22) -> مصطفى | D16: =IF($A16="","",info!G22) -> 2009-01-02 | E16: =IF($A16="","",info!D22) -> ذ | F16: =IF($A16="","",info!F22) -> 0 | G16: 3 | H16: 4.5 | I16: 3.75 | J16: 3 | K16: 5 | L16: 4 | M16: 3 | N16: 5 | O16: 4 | P16: 3 | Q16: 5.5 | R16: 4.25 | S16: 3 | T16: 5 | U16: 4 | V16: 4 | Z16: 3 | AA16: 3 | AB16: 3 | AC16: 4 | AD16: 3.25 | AE16: 6.5 | AF16: 6.66 | AG16: 6.58 | AH16: 5.5 | AI16: 6.5 | AJ16: 6 | AK16: 4.5 | AL16: 5.5 | AM16: 5 | AN16: 3 | AO16: 3 | AP16: 3 | AQ16: 5 | AR16: 6 | AS16: 5.5 | AT16: 1 | AU16: =IF($A16="","",6+AT16+info!$P$3) -> 7 | AV16: 30.33 | AW16: 4.332857143 | AX16: 17 | AY16: دون المتوسط
A17: =IF(info!A23="","",info!A23) -> 8 | B17: =IF($A17="","",info!B23) -> 8 | C17: =IF($A17="","",info!C23) -> فريد | D17: =IF($A17="","",info!G23) -> 2008-07-27 | E17: =IF($A17="","",info!D23) -> ذ | F17: =IF($A17="","",info!F23) -> 0 | G17: 4.5 | H17: 6.5 | I17: 5.5 | J17: 6 | K17: 6.75 | L17: 6.375 | M17: 5 | N17: 6 | O17: 5.5 | P17: 4 | Q17: 7.5 | R17: 5.75 | S17: 5 | T17: 6 | U17: 5.5 | V17: 5.725 | Z17: 5.5 | AA17: 4 | AB17: 4.75 | AC17: 6.5 | AD17: 5.1875 | AE17: 10 | AF17: 9.33 | AG17: 9.665 | AH17: 7.5 | AI17: 8.75 | AJ17: 8.125 | AK17: 8.16 | AL17: 8.25 | AM17: 8.205 | AN17: 5 | AO17: 4.75 | AP17: 4.875 | AQ17: 6.5 | AR17: 6.5 | AS17: 6.5 | AT17: 1 | AU17: =IF($A17="","",6+AT17+info!$P$3) -> 7 | AV17: 43.4075 | AW17: 6.201071429 | AX17: 5 | AY17: لوحة الشرف
A18: =IF(info!A24="","",info!A24) -> 9 | B18: =IF($A18="","",info!B24) -> 9 | C18: =IF($A18="","",info!C24) -> كمال | D18: =IF($A18="","",info!G24) -> 2008-07-16 | E18: =IF($A18="","",info!D24) -> ذ | F18: =IF($A18="","",info!F24) -> 0 | G18: 5.75 | H18: 6.5 | I18: 6.125 | J18: 7 | K18: 7 | L18: 7 | M18: 6 | N18: 7 | O18: 6.5 | P18: 6 | Q18: 7.75 | R18: 6.875 | S18: 7 | T18: 6.5 | U18: 6.75 | V18: 6.65 | Z18: 8.5 | AA18: 6.5 | AB18: 7.5 | AC18: 8.5 | AD18: 7.75 | AE18: 10 | AF18: 8.66 | AG18: 9.33 | AH18: 8 | AI18: 8.75 | AJ18: 8.375 | AK18: 8.75 | AL18: 7.5 | AM18: 8.125 | AN18: 6 | AO18: 7.5 | AP18: 6.75 | AQ18: 5.75 | AR18: 6.75 | AS18: 6.25 | AT18: 1 | AU18: =IF($A18="","",6+AT18+info!$P$3) -> 7 | AV18: 46.48 | AW18: 6.64 | AX18: 1 | AY18: لوحة الشرف
A19: =IF(info!A25="","",info!A25) -> 10 | B19: =IF($A19="","",info!B25) -> 10 | C19: =IF($A19="","",info!C25) -> لبنى | D19: =IF($A19="","",info!G25) -> 2009-03-15 | E19: =IF($A19="","",info!D25) -> أ | F19: =IF($A19="","",info!F25) -> 0 | G19: 3.5 | H19: 3.5 | I19: 3.5 | J19: 4.5 | K19: 5 | L19: 4.75 | M19: 4 | N19: 5 | O19: 4.5 | P19: 3.5 | Q19: 4 | R19: 3.75 | S19: 4 | T19: 5 | U19: 4.5 | V19: 4.2 | Z19: 4 | AA19: 3 | AB19: 3.5 | AC19: 5 | AD19: 3.875 | AE19: 6 | AF19: 5 | AG19: 5.5 | AH19: 6 | AI19: 6 | AJ19: 6 | AK19: 4.25 | AL19: 1.5 | AM19: 2.875 | AN19: 4 | AO19: 3.5 | AP19: 3.75 | AQ19: 5.5 | AR19: 6 | AS19: 5.75 | AT19: 1 | AU19: =IF($A19="","",6+AT19+info!$P$3) -> 7 | AV19: 28.2 | AW19: 4.028571429 | AX19: 20 | AY19: دون المتوسط
A20: =IF(info!A26="","",info!A26) -> 11 | B20: =IF($A20="","",info!B26) -> 11 | C20: =IF($A20="","",info!C26) -> أحمد | D20: =IF($A20="","",info!G26) -> 2008-07-13 | E20: =IF($A20="","",info!D26) -> ذ | F20: =IF($A20="","",info!F26) -> 0 | G20: 6 | H20: 6 | I20: 6 | J20: 6.5 | K20: 8.5 | L20: 7.5 | M20: 6 | N20: 6.5 | O20: 6.25 | P20: 6 | Q20: 7.75 | R20: 6.875 | S20: 6.5 | T20: 7.5 | U20: 7 | V20: 6.725 | Z20: 5 | AA20: 4 | AB20: 4.5 | AC20: 7 | AD20: 5.125 | AE20: 5.5 | AF20: 10 | AG20: 7.75 | AH20: 7 | AI20: 9 | AJ20: 8 | AK20: 8.16 | AL20: 7.5 | AM20: 7.83 | AN20: 6 | AO20: 4.5 | AP20: 5.25 | AQ20: 6.25 | AR20: 6.75 | AS20: 6.5 | AT20: 1 | AU20: =IF($A20="","",6+AT20+info!$P$3) -> 7 | AV20: 41.93 | AW20: 5.99 | AX20: 6 | AY20: متوسط
A21: =IF(info!A27="","",info!A27) -> 12 | B21: =IF($A21="","",info!B27) -> 12 | C21: =IF($A21="","",info!C27) -> سلمان | D21: =IF($A21="","",info!G27) -> 2007-12-31 | E21: =IF($A21="","",info!D27) -> ذ | F21: =IF($A21="","",info!F27) -> 0 | G21: 7 | H21: 6.5 | I21: 6.75 | J21: 7 | K21: 7 | L21: 7 | M21: 6.5 | N21: 7 | O21: 6.75 | P21: 6.75 | Q21: 8.5 | R21: 7.625 | S21: 6.5 | T21: 8 | U21: 7.25 | V21: 7.075 | Z21: 4 | AA21: 4 | AB21: 4 | AC21: 8 | AD21: 5 | AE21: 10 | AF21: 10 | AG21: 10 | AH21: 8.5 | AI21: 9 | AJ21: 8.75 | AK21: 7.88 | AL21: 10 | AM21: 8.94 | AN21: 6.5 | AO21: 7.5 | AP21: 7 | AQ21: 6.25 | AR21: 6.75 | AS21: 6.5 | AT21: 1 | AU21: =IF($A21="","",6+AT21+info!$P$3) -> 7 | AV21: 46.265 | AW21: 6.609285714 | AX21: 2 | AY21: لوحة الشرف
A22: =IF(info!A28="","",info!A28) -> 13 | B22: =IF($A22="","",info!B28) -> 13 | C22: =IF($A22="","",info!C28) -> مروة | D22: =IF($A22="","",info!G28) -> 2008-04-07 | E22: =IF($A22="","",info!D28) -> أ | F22: =IF($A22="","",info!F28) -> 0 | G22: 3.5 | H22: 3 | I22: 3.25 | J22: 2 | K22: 6 | L22: 4 | M22: 3 | N22: 5 | O22: 4 | P22: 3.5 | Q22: 4.5 | R22: 4 | S22: 3 | T22: 6 | U22: 4.5 | V22: 3.95 | Z22: 4 | AA22: 3 | AB22: 3.5 | AC22: 5 | AD22: 3.875 | AE22: 2.5 | AF22: 9.25 | AG22: 5.875 | AH22: 6.25 | AI22: 6.5 | AJ22: 6.375 | AK22: 4.16 | AL22: 2.5 | AM22: 3.33 | AN22: 3 | AO22: 3.5 | AP22: 3.25 | AQ22: 6 | AR22: 6.5 | AS22: 6.25 | AT22: 1 | AU22: =IF($A22="","",6+AT22+info!$P$3) -> 7 | AV22: 29.655 | AW22: 4.236428571 | AX22: 18 | AY22: دون المتوسط
A23: =IF(info!A29="","",info!A29) -> 14 | B23: =IF($A23="","",info!B29) -> 14 | C23: =IF($A23="","",info!C29) -> خالد | D23: =IF($A23="","",info!G29) -> 2008-04-14 | E23: =IF($A23="","",info!D29) -> ذ | F23: =IF($A23="","",info!F29) -> 0 | G23: 5.5 | H23: 6.75 | I23: 6.125 | J23: 6 | K23: 6.75 | L23: 6.375 | M23: 6 | N23: 6.5 | O23: 6.25 | P23: 5.5 | Q23: 7.75 | R23: 6.625 | S23: 6 | T23: 6 | U23: 6 | V23: 6.275 | Z23: 6 | AA23: 3 | AB23: 4.5 | AC23: 6.5 | AD23: 5 | AE23: 6 | AF23: 9.33 | AG23: 7.665 | AH23: 7.5 | AI23: 7 | AJ23: 7.25 | AK23: 4.25 | AL23: 9 | AM23: 6.625 | AN23: 6 | AO23: 4.5 | AP23: 5.25 | AQ23: 6.5 | AR23: 6.5 | AS23: 6.5 | AT23: 1 | AU23: =IF($A23="","",6+AT23+info!$P$3) -> 7 | AV23: 39.315 | AW23: 5.616428571 | AX23: 9 | AY23: متوسط
A24: =IF(info!A30="","",info!A30) -> 15 | B24: =IF($A24="","",info!B30) -> 15 | C24: =IF($A24="","",info!C30) -> سفيان | D24: =IF($A24="","",info!G30) -> 2008-08-13 | E24: =IF($A24="","",info!D30) -> ذ | F24: =IF($A24="","",info!F30) -> 0 | G24: 3.5 | H24: 4.5 | I24: 4 | J24: 4 | K24: 6 | L24: 5 | M24: 4 | N24: 5 | O24: 4.5 | P24: 3.5 | Q24: 4.5 | R24: 4 | S24: 4 | T24: 6 | U24: 5 | V24: 4.5 | Z24: 4 | AA24: 3 | AB24: 3.5 | AC24: 5 | AD24: 3.875 | AE24: 3.5 | AF24: 5.33 | AG24: 4.415 | AH24: 6.75 | AI24: 8 | AJ24: 7.375 | AK24: 5.08 | AL24: 5 | AM24: 5.04 | AN24: 4 | AO24: 3.5 | AP24: 3.75 | AQ24: 5 | AR24: 6.5 | AS24: 5.75 | AT24: 1 | AU24: =IF($A24="","",6+AT24+info!$P$3) -> 7 | AV24: 30.955 | AW24: 4.422142857 | AX24: 16 | AY24: دون المتوسط
A25: =IF(info!A31="","",info!A31) -> 16 | B25: =IF($A25="","",info!B31) -> 16 | C25: =IF($A25="","",info!C31) -> لمياء | D25: =IF($A25="","",info!G31) -> 2009-01-24 | E25: =IF($A25="","",info!D31) -> أ | F25: =IF($A25="","",info!F31) -> 0 | G25: 5.5 | H25: 4.5 | I25: 5 | J25: 4 | K25: 4 | L25: 4 | M25: 4 | N25: 6 | O25: 5 | P25: 5.75 | Q25: 5.5 | R25: 5.625 | S25: 4.5 | T25: 5 | U25: 4.75 | V25: 4.875 | Z25: 6 | AA25: 3 | AB25: 4.5 | AC25: 6 | AD25: 4.875 | AE25: 9 | AF25: 4.66 | AG25: 6.83 | AH25: 7.25 | AI25: 6 | AJ25: 6.625 | AK25: 6.33 | AL25: 4.25 | AM25: 5.29 | AN25: 4 | AO25: 4.5 | AP25: 4.25 | AQ25: 6 | AR25: 6 | AS25: 6 | AT25: 1 | AU25: =IF($A25="","",6+AT25+info!$P$3) -> 7 | AV25: 34.495 | AW25: 4.927857143 | AX25: 11 | AY25: دون المتوسط
A26: =IF(info!A32="","",info!A32) -> 17 | B26: =IF($A26="","",info!B32) -> 17 | C26: =IF($A26="","",info!C32) -> مريم | D26: =IF($A26="","",info!G32) -> 2008-12-31 | E26: =IF($A26="","",info!D32) -> أ | F26: =IF($A26="","",info!F32) -> 0 | G26: 7 | H26: 5.5 | I26: 6.25 | J26: 8 | K26: 9 | L26: 8.5 | M26: 6 | N26: 7 | O26: 6.5 | P26: 6.5 | Q26: 7.5 | R26: 7 | S26: 6 | T26: 7 | U26: 6.5 | V26: 6.95 | Z26: 6 | AA26: 7.5 | AB26: 6.75 | AC26: 7 | AD26: 6.8125 | AE26: 9 | AF26: 9.33 | AG26: 9.165 | AH26: 8 | AI26: 7 | AJ26: 7.5 | AK26: 7.58 | AL26: 8.5 | AM26: 8.04 | AN26: 6 | AO26: 6.75 | AP26: 6.375 | AQ26: 6.75 | AR26: 6.75 | AS26: 6.75 | AT26: 1 | AU26: =IF($A26="","",6+AT26+info!$P$3) -> 7 | AV26: 45.2175 | AW26: 6.459642857 | AX26: 4 | AY26: لوحة الشرف
A27: =IF(info!A33="","",info!A33) -> 18 | B27: =IF($A27="","",info!B33) -> 18 | C27: =IF($A27="","",info!C33) -> لقمان | D27: =IF($A27="","",info!G33) -> 2009-02-20 | E27: =IF($A27="","",info!D33) -> ذ | F27: =IF($A27="","",info!F33) -> 0 | G27: 3.5 | H27: 3 | I27: 3.25 | J27: 4 | K27: 4 | L27: 4 | M27: 4 | N27: 4 | O27: 4 | P27: 3.5 | Q27: 3 | R27: 3.25 | S27: 4 | T27: 3 | U27: 3.5 | V27: 3.6 | Z27: 4 | AA27: 4 | AB27: 4 | AC27: 5 | AD27: 4.25 | AE27: 4 | AF27: 6.66 | AG27: 5.33 | AH27: 5.75 | AI27: 5.5 | AJ27: 5.625 | AK27: 2.5 | AL27: 1.75 | AM27: 2.125 | AN27: 4 | AO27: 4 | AP27: 4 | AQ27: 6 | AR27: 6.75 | AS27: 6.375 | AT27: 1 | AU27: =IF($A27="","",6+AT27+info!$P$3) -> 7 | AV27: 27.305 | AW27: 3.900714286 | AX27: 21 | AY27: ناقص
A28: =IF(info!A34="","",info!A34) -> 19 | B28: =IF($A28="","",info!B34) -> 19 | C28: =IF($A28="","",info!C34) -> محمد | D28: =IF($A28="","",info!G34) -> 2009-01-02 | E28: =IF($A28="","",info!D34) -> ذ | F28: =IF($A28="","",info!F34) -> 0 | G28: 3.5 | H28: 3 | I28: 3.25 | J28: 2 | K28: 3 | L28: 2.5 | M28: 2 | N28: 3 | O28: 2.5 | P28: 3.5 | Q28: 3 | R28: 3.25 | S28: 2 | T28: 3 | U28: 2.5 | V28: 2.8 | Z28: 4 | AA28: 3 | AB28: 3.5 | AC28: 4 | AD28: 3.625 | AE28: 3.5 | AF28: 2 | AG28: 2.75 | AH28: 5 | AI28: 4 | AJ28: 4.5 | AK28: 4.5 | AL28: 1 | AM28: 2.75 | AN28: 2 | AO28: 3.5 | AP28: 2.75 | AQ28: 5.25 | AR28: 6.5 | AS28: 5.875 | AT28: 1 | AU28: =IF($A28="","",6+AT28+info!$P$3) -> 7 | AV28: 22.3 | AW28: 3.185714286 | AX28: 25 | AY28: ناقص
A29: =IF(info!A35="","",info!A35) -> 20 | B29: =IF($A29="","",info!B35) -> 20 | C29: =IF($A29="","",info!C35) -> سليم | D29: =IF($A29="","",info!G35) -> 2008-09-22 | E29: =IF($A29="","",info!D35) -> ذ | F29: =IF($A29="","",info!F35) -> 0 | G29: 4 | H29: 4.5 | I29: 4.25 | J29: 7 | K29: 7.5 | L29: 7.25 | M29: 7 | N29: 6.5 | O29: 6.75 | P29: 4 | Q29: 7 | R29: 5.5 | S29: 7 | T29: 8 | U29: 7.5 | V29: 6.25 | Z29: 6.5 | AA29: 4 | AB29: 5.25 | AC29: 7 | AD29: 5.6875 | AE29: 8.5 | AF29: 6 | AG29: 7.25 | AH29: 7.5 | AI29: 9 | AJ29: 8.25 | AK29: 7.83 | AL29: 6 | AM29: 6.915 | AN29: 7 | AO29: 5.25 | AP29: 6.125 | AQ29: 6.5 | AR29: 6.5 | AS29: 6.5 | AT29: 1 | AU29: =IF($A29="","",6+AT29+info!$P$3) -> 7 | AV29: 40.8525 | AW29: 5.836071429 | AX29: 7 | AY29: متوسط
A30: =IF(info!A36="","",info!A36) -> 21 | B30: =IF($A30="","",info!B36) -> 21 | C30: =IF($A30="","",info!C36) -> فتيحة | D30: =IF($A30="","",info!G36) -> 2008-04-12 | E30: =IF($A30="","",info!D36) -> أ | F30: =IF($A30="","",info!F36) -> 0 | G30: 3.5 | H30: 3 | I30: 3.25 | J30: 6 | K30: 5 | L30: 5.5 | M30: 4 | N30: 5 | O30: 4.5 | P30: 4 | Q30: 5.5 | R30: 4.75 | S30: 4 | T30: 5 | U30: 4.5 | V30: 4.5 | Z30: 5 | AA30: 3 | AB30: 4 | AC30: 5 | AD30: 4.25 | AE30: 6.5 | AF30: 6.66 | AG30: 6.58 | AH30: 7.5 | AI30: 7 | AJ30: 7.25 | AK30: 4.33 | AL30: 3 | AM30: 3.665 | AN30: 4 | AO30: 4 | AP30: 4 | AQ30: 6 | AR30: 6.5 | AS30: 6.25 | AT30: 1 | AU30: =IF($A30="","",6+AT30+info!$P$3) -> 7 | AV30: 32.495 | AW30: 4.642142857 | AX30: 14 | AY30: دون المتوسط
A31: =IF(info!A37="","",info!A37) -> 22 | B31: =IF($A31="","",info!B37) -> 22 | C31: =IF($A31="","",info!C37) -> رقية | D31: =IF($A31="","",info!G37) -> 2008-12-22 | E31: =IF($A31="","",info!D37) -> أ | F31: =IF($A31="","",info!F37) -> 0 | G31: 3.5 | H31: 3 | I31: 3.25 | J31: 3 | K31: 3 | L31: 3 | M31: 3 | N31: 4 | O31: 3.5 | P31: 4 | Q31: 4 | R31: 4 | S31: 3 | T31: 3 | U31: 3 | V31: 3.35 | Z31: 4.5 | AA31: 3 | AB31: 3.75 | AC31: 4 | AD31: 3.8125 | AE31: 7.5 | AF31: 4 | AG31: 5.75 | AH31: 6 | AI31: 6.5 | AJ31: 6.25 | AK31: 3 | AL31: 1 | AM31: 2 | AN31: 3 | AO31: 3.75 | AP31: 3.375 | AQ31: 5 | AR31: 6.5 | AS31: 5.75 | AT31: 1 | AU31: =IF($A31="","",6+AT31+info!$P$3) -> 7 | AV31: 26.9125 | AW31: 3.844642857 | AX31: 22 | AY31: ناقص
A32: =IF(info!A38="","",info!A38) -> 23 | B32: =IF($A32="","",info!B38) -> 23 | C32: =IF($A32="","",info!C38) -> جميلة | D32: =IF($A32="","",info!G38) -> 2008-11-29 | E32: =IF($A32="","",info!D38) -> أ | F32: =IF($A32="","",info!F38) -> 0 | G32: 3.75 | H32: 3 | I32: 3.375 | J32: 2 | K32: 4 | L32: 3 | M32: 2 | N32: 4 | O32: 3 | P32: 4 | Q32: 4 | R32: 4 | S32: 2 | T32: 5 | U32: 3.5 | V32: 3.375 | Z32: 4.75 | AA32: 3 | AB32: 3.875 | AC32: 5.5 | AD32: 4.28125 | AE32: 4.5 | AF32: 4 | AG32: 4.25 | AH32: 6.5 | AI32: 6.5 | AJ32: 6.5 | AK32: 4.5 | AL32: 4 | AM32: 4.25 | AN32: 2 | AO32: 3.875 | AP32: 2.9375 | AQ32: 5 | AR32: 6.25 | AS32: 5.625 | AT32: 1 | AU32: =IF($A32="","",6+AT32+info!$P$3) -> 7 | AV32: 28.28125 | AW32: 4.040178571 | AX32: 19 | AY32: دون المتوسط
A33: =IF(info!A39="","",info!A39) -> 24 | B33: =IF($A33="","",info!B39) -> 24 | C33: =IF($A33="","",info!C39) -> نادية | D33: =IF($A33="","",info!G39) -> 2008-06-24 | E33: =IF($A33="","",info!D39) -> أ | F33: =IF($A33="","",info!F39) -> 0 | G33: 3.5 | H33: 4 | I33: 3.75 | J33: 2 | K33: 4 | L33: 3 | M33: 3 | N33: 4 | O33: 3.5 | P33: 3.5 | Q33: 4 | R33: 3.75 | S33: 3 | T33: 5 | U33: 4 | V33: 3.6 | Z33: 5 | AA33: 4 | AB33: 4.5 | AC33: 4.5 | AD33: 4.5 | AE33: 7 | AF33: 8 | AG33: 7.5 | AH33: 5 | AI33: 8 | AJ33: 6.5 | AK33: 4.5 | AL33: 2 | AM33: 3.25 | AN33: 3 | AO33: 4.5 | AP33: 3.75 | AQ33: 5 | AR33: 6.5 | AS33: 5.75 | AT33: 1 | AU33: =IF($A33="","",6+AT33+info!$P$3) -> 7 | AV33: 31.1 | AW33: 4.442857143 | AX33: 15 | AY33: دون المتوسط
A34: =IF(info!A40="","",info!A40) -> 25 | B34: =IF($A34="","",info!B40) -> 25 | C34: =IF($A34="","",info!C40) -> سكينة | D34: =IF($A34="","",info!G40) -> 2008-06-07 | E34: =IF($A34="","",info!D40) -> أ | F34: =IF($A34="","",info!F40) -> 0 | G34: 3.5 | H34: 4.5 | I34: 4 | J34: 5 | K34: 5 | L34: 5 | M34: 4 | N34: 6 | O34: 5 | P34: 4.5 | Q34: 5.5 | R34: 5 | S34: 5 | T34: 6 | U34: 5.5 | V34: 4.9 | Z34: 5.75 | AA34: 3 | AB34: 4.375 | AC34: 5.25 | AD34: 4.59375 | AE34: 6.5 | AF34: 4.66 | AG34: 5.58 | AH34: 7.25 | AI34: 6 | AJ34: 6.625 | AK34: 6 | AL34: 4.5 | AM34: 5.25 | AN34: 4 | AO34: 4.375 | AP34: 4.1875 | AQ34: 5 | AR34: 6.5 | AS34: 5.75 | AT34: 1 | AU34: =IF($A34="","",6+AT34+info!$P$3) -> 7 | AV34: 32.69875 | AW34: 4.67125 | AX34: 13 | AY34: دون المتوسط
A35: =IF(info!A41="","",info!A41) ->  | B35: =IF($A35="","",info!B41) ->  | C35: =IF($A35="","",info!C41) ->  | D35: =IF($A35="","",info!G41) ->  | E35: =IF($A35="","",info!D41) ->  | F35: =IF($A35="","",info!F41) ->  | AU35: =IF($A35="","",6+AT35+info!$P$3) -> 
A36: =IF(info!A42="","",info!A42) ->  | B36: =IF($A36="","",info!B42) ->  | C36: =IF($A36="","",info!C42) ->  | D36: =IF($A36="","",info!G42) ->  | E36: =IF($A36="","",info!D42) ->  | F36: =IF($A36="","",info!F42) ->  | AU36: =IF($A36="","",6+AT36+info!$P$3) -> 
A37: =IF(info!A43="","",info!A43) ->  | B37: =IF($A37="","",info!B43) ->  | C37: =IF($A37="","",info!C43) ->  | D37: =IF($A37="","",info!G43) ->  | E37: =IF($A37="","",info!D43) ->  | F37: =IF($A37="","",info!F43) ->  | AU37: =IF($A37="","",6+AT37+info!$P$3) -> 
A38: =IF(info!A44="","",info!A44) ->  | B38: =IF($A38="","",info!B44) ->  | C38: =IF($A38="","",info!C44) ->  | D38: =IF($A38="","",info!G44) ->  | E38: =IF($A38="","",info!D44) ->  | F38: =IF($A38="","",info!F44) ->  | AU38: =IF($A38="","",6+AT38+info!$P$3) -> 
A39: =IF(info!A45="","",info!A45) ->  | B39: =IF($A39="","",info!B45) ->  | C39: =IF($A39="","",info!C45) ->  | D39: =IF($A39="","",info!G45) ->  | E39: =IF($A39="","",info!D45) ->  | F39: =IF($A39="","",info!F45) ->  | AU39: =IF($A39="","",6+AT39+info!$P$3) -> 
A40: =IF(info!A46="","",info!A46) ->  | B40: =IF($A40="","",info!B46) ->  | C40: =IF($A40="","",info!C46) ->  | D40: =IF($A40="","",info!G46) ->  | E40: =IF($A40="","",info!D46) ->  | F40: =IF($A40="","",info!F46) ->  | AU40: =IF($A40="","",6+AT40+info!$P$3) -> 
A41: =IF(info!A47="","",info!A47) ->  | B41: =IF($A41="","",info!B47) ->  | C41: =IF($A41="","",info!C47) ->  | D41: =IF($A41="","",info!G47) ->  | E41: =IF($A41="","",info!D47) ->  | F41: =IF($A41="","",info!F47) ->  | AU41: =IF($A41="","",6+AT41+info!$P$3) -> 
A42: =IF(info!A48="","",info!A48) ->  | B42: =IF($A42="","",info!B48) ->  | C42: =IF($A42="","",info!C48) ->  | D42: =IF($A42="","",info!G48) ->  | E42: =IF($A42="","",info!D48) ->  | F42: =IF($A42="","",info!F48) ->  | AU42: =IF($A42="","",6+AT42+info!$P$3) ->  | AV42: =IF($A42="","",SUM(V42,AD42,AG42,AJ42,AM42,AS42,Y42)) ->  | AX42: =IF($A42="","",RANK(AW42,$AW$10:$AW$59)) -> 
A43: =IF(info!A49="","",info!A49) ->  | B43: =IF($A43="","",info!B49) ->  | C43: =IF($A43="","",info!C49) ->  | D43: =IF($A43="","",info!G49) ->  | E43: =IF($A43="","",info!D49) ->  | F43: =IF($A43="","",info!F49) ->  | AU43: =IF($A43="","",6+AT43+info!$P$3) -> 
A44: =IF(info!A50="","",info!A50) ->  | B44: =IF($A44="","",info!B50) ->  | C44: =IF($A44="","",info!C50) ->  | D44: =IF($A44="","",info!G50) ->  | E44: =IF($A44="","",info!D50) ->  | F44: =IF($A44="","",info!F50) ->  | AU44: =IF($A44="","",6+AT44+info!$P$3) -> 
A45: =IF(info!A51="","",info!A51) ->  | B45: =IF($A45="","",info!B51) ->  | C45: =IF($A45="","",info!C51) ->  | D45: =IF($A45="","",info!G51) ->  | E45: =IF($A45="","",info!D51) ->  | F45: =IF($A45="","",info!F51) ->  | AU45: =IF($A45="","",6+AT45+info!$P$3) -> 
A46: =IF(info!A52="","",info!A52) ->  | B46: =IF($A46="","",info!B52) ->  | C46: =IF($A46="","",info!C52) ->  | D46: =IF($A46="","",info!G52) ->  | E46: =IF($A46="","",info!D52) ->  | F46: =IF($A46="","",info!F52) ->  | AU46: =IF($A46="","",6+AT46+info!$P$3) -> 
A47: =IF(info!A53="","",info!A53) ->  | B47: =IF($A47="","",info!B53) ->  | C47: =IF($A47="","",info!C53) ->  | D47: =IF($A47="","",info!G53) ->  | E47: =IF($A47="","",info!D53) ->  | F47: =IF($A47="","",info!F53) ->  | AU47: =IF($A47="","",6+AT47+info!$P$3) -> 
A48: =IF(info!A54="","",info!A54) ->  | B48: =IF($A48="","",info!B54) ->  | C48: =IF($A48="","",info!C54) ->  | D48: =IF($A48="","",info!G54) ->  | E48: =IF($A48="","",info!D54) ->  | F48: =IF($A48="","",info!F54) ->  | AU48: =IF($A48="","",6+AT48+info!$P$3) -> 
A49: =IF(info!A55="","",info!A55) ->  | B49: =IF($A49="","",info!B55) ->  | C49: =IF($A49="","",info!C55) ->  | D49: =IF($A49="","",info!G55) ->  | E49: =IF($A49="","",info!D55) ->  | F49: =IF($A49="","",info!F55) ->  | AB49: =IF(Z49="","",IF(AA49="","",AVERAGE(Z49:AA49))) ->  | AU49: =IF($A49="","",6+AT49+info!$P$3) -> 
A50: =IF(info!A56="","",info!A56) ->  | B50: =IF($A50="","",info!B56) ->  | C50: =IF($A50="","",info!C56) ->  | D50: =IF($A50="","",info!G56) ->  | E50: =IF($A50="","",info!D56) ->  | F50: =IF($A50="","",info!F56) ->  | AB50: =IF(Z50="","",IF(AA50="","",AVERAGE(Z50:AA50))) ->  | AU50: =IF($A50="","",6+AT50+info!$P$3) ->  | AW50: =IF($A50="","",AV50/AU50) ->  | AY50: =IF($A50="","",IF(AW50>=8," تنويه ",IF(AW50>=7,"تشجيع ",IF(AW50>=6,"لوحة الشرف",IF(AW50>=5,"متوسط",IF(AW50>=4,"دون المتوسط",IF(AW50>=3,"ناقص",IF(AW50>=2,"تنبيه",IF(AW50>=1,"إنذار","توبيخ"))))))))) -> 
A51: =IF(info!A57="","",info!A57) ->  | B51: =IF($A51="","",info!B57) ->  | C51: =IF($A51="","",info!C57) ->  | D51: =IF($A51="","",info!G57) ->  | E51: =IF($A51="","",info!D57) ->  | F51: =IF($A51="","",info!F57) ->  | AU51: =IF($A51="","",6+AT51+info!$P$3) -> 
A52: =IF(info!A58="","",info!A58) ->  | B52: =IF($A52="","",info!B58) ->  | C52: =IF($A52="","",info!C58) ->  | D52: =IF($A52="","",info!G58) ->  | E52: =IF($A52="","",info!D58) ->  | F52: =IF($A52="","",info!F58) ->  | AU52: =IF($A52="","",6+AT52+info!$P$3) -> 
A53: =IF(info!A59="","",info!A59) ->  | B53: =IF($A53="","",info!B59) ->  | C53: =IF($A53="","",info!C59) ->  | D53: =IF($A53="","",info!G59) ->  | E53: =IF($A53="","",info!D59) ->  | F53: =IF($A53="","",info!F59) ->  | AU53: =IF($A53="","",6+AT53+info!$P$3) -> 
A54: =IF(info!A60="","",info!A60) ->  | B54: =IF($A54="","",info!B60) ->  | C54: =IF($A54="","",info!C60) ->  | D54: =IF($A54="","",info!G60) ->  | E54: =IF($A54="","",info!D60) ->  | F54: =IF($A54="","",info!F60) ->  | AU54: =IF($A54="","",6+AT54+info!$P$3) -> 
A55: =IF(info!A61="","",info!A61) ->  | B55: =IF($A55="","",info!B61) ->  | C55: =IF($A55="","",info!C61) ->  | D55: =IF($A55="","",info!G61) ->  | E55: =IF($A55="","",info!D61) ->  | F55: =IF($A55="","",info!F61) ->  | AU55: =IF($A55="","",6+AT55+info!$P$3) -> 
A56: =IF(info!A62="","",info!A62) ->  | B56: =IF($A56="","",info!B62) ->  | C56: =IF($A56="","",info!C62) ->  | D56: =IF($A56="","",info!G62) ->  | E56: =IF($A56="","",info!D62) ->  | F56: =IF($A56="","",info!F62) ->  | AU56: =IF($A56="","",6+AT56+info!$P$3) -> 
A57: =IF(info!A63="","",info!A63) ->  | B57: =IF($A57="","",info!B63) ->  | C57: =IF($A57="","",info!C63) ->  | D57: =IF($A57="","",info!G63) ->  | E57: =IF($A57="","",info!D63) ->  | F57: =IF($A57="","",info!F63) ->  | AU57: =IF($A57="","",6+AT57+info!$P$3) -> 
A58: =IF(info!A64="","",info!A64) ->  | B58: =IF($A58="","",info!B64) ->  | C58: =IF($A58="","",info!C64) ->  | D58: =IF($A58="","",info!G64) ->  | E58: =IF($A58="","",info!D64) ->  | F58: =IF($A58="","",info!F64) ->  | AU58: =IF($A58="","",6+AT58+info!$P$3) -> 
A59: =IF(info!A65="","",info!A65) ->  | B59: =IF($A59="","",info!B65) ->  | C59: =IF($A59="","",info!C65) ->  | D59: =IF($A59="","",info!G65) ->  | E59: =IF($A59="","",info!D65) ->  | F59: =IF($A59="","",info!F65) ->  | AU59: =IF($A59="","",6+AT59+info!$P$3) -> 

Sheet bulletin_sem1
A1: =info!$A$1 -> المملكة المغربية | K1: الموسم الدراسي | N1: =IF($N$7="","",info!$M$1) -> 2018-2017
A2: =info!$A$2 -> وزارة التربية الوطنية و التكوين المهني | K2: الاسم و النسب | N2: =IF($N$7="","",VLOOKUP($N$5,base1,3,0)) -> رضوان
A3: =info!$A$3 -> الأكاديمية الجهوية للتربية والتكوين | K3: الرقم الوطني | N3: 7
A4: =info!$A$4 -> جهة دكالة عبدة | K4: رقم التسجيل | N4: =IF($N$7="","",VLOOKUP($N$5,base1,6,0)) -> 0
A5: =info!$A$5 -> نيابة المديرية | K5: رقم ت في القسم | N5: 1
A6: =info!$A$6 -> المدرسة | K6: القسم | N6: =IF($N$7="","",info!$M$3) -> الأول
K7: عدد التلاميذ | N7: =IF(info!$O$12=0,"",info!$O$12) -> 25
B9: بطاقة المراقبة المستمرة
C12: مدرسة | I12: =IF($N$7="","",info!A6) -> المدرسة
C13: الاسم والنسب | I13: =IF($N$7="","",VLOOKUP($N$5,base1,3,0)) -> رضوان
B15: نتائج الأسدوس الأول
A17: الوحدات | D17: الانشطة | G17: الدورة الأولى | M17: ملاحظات
G18: النقطة1 | I18: النقطة2 | L18: المعدل
A19: اللغة العربية | D19: القراءة | G19: =IF($N$7="","",VLOOKUP($N$5,base1,7,0)) -> 4 | I19: =IF($N$7="","",VLOOKUP($N$5,base1,8,0)) -> 3 | L19: =IF($N$7="","",AVERAGE(G19:J19)) -> 3.5 | M19: =IF($L$24="","",IF(L24<2," ضعيف جدا",IF(L24<4,"ضعيف",IF(L24<5,"ناقص",IF(L24<6,"متوسط",IF(L24<7,"لابأس به",IF(L24<8,"مستحسن",IF(L24<9,"حسن","حسن جدا")))))))) -> ضعيف
D20: الإملاء | G20: =IF($N$7="","",VLOOKUP($N$5,base1,10,0)) -> 4 | I20: =IF($N$7="","",VLOOKUP($N$5,base1,11,0)) -> 3 | L20: =IF($N$7="","",AVERAGE(G20:J20)) -> 3.5
D21: الخط | G21: =IF($N$7="","",VLOOKUP($N$5,base1,13,0)) -> 4 | I21: =IF($N$7="","",VLOOKUP($N$5,base1,14,0)) -> 4 | L21: =IF($N$7="","",AVERAGE(G21:J21)) -> 4
D22: التعبير الشفوي | G22: =IF($N$7="","",VLOOKUP($N$5,base1,16,0)) -> 4 | I22: =IF($N$7="","",VLOOKUP($N$5,base1,17,0)) -> 3 | L22: =IF($N$7="","",AVERAGE(G22:J22)) -> 3.5
D23: النقل | G23: =IF($N$7="","",VLOOKUP($N$5,base1,19,0)) -> 4 | I23: =IF($N$7="","",VLOOKUP($N$5,base1,20,0)) -> 4 | L23: =IF($N$7="","",AVERAGE(G23:J23)) -> 4
D24: معدل الوحدة | L24: =IF($N$7="","",AVERAGE(L19:L23)) -> 3.7
A25: اللغة | D25: الأمازيغية | G25: =IF($N$7="","",IF(VLOOKUP($N$5,base1,23,0)="","",VLOOKUP($N$5,base1,23,0))) ->  | I25: =IF($N$7="","",IF(VLOOKUP($N$5,base1,24,0)="","",VLOOKUP($N$5,base1,24,0))) ->  | L25: =IF(OR($N$7="",G25="",I25=""),"",AVERAGE(D25:I25)) ->  | M25: =IF($N$7="","",IF(L26="","الأمازيغية غير معممة",IF(L26<2,"ضعيف",IF(AND(L26>=2,L26<=3),"دون المستوى",IF(AND(L26>3,L26<5),"متوسط",IF(AND(L26>=5,L26<7),"لابأس به",IF(AND(L26>=7,L26<8),"مستحسن",IF(AND(L26>=8,L26<=10),"ممتاز")))))))) -> الأمازيغية غير معممة
A26: الأمازيغية | D26: معدل الوحدة | L26: =IF($N$7="","",L25) -> 
A27: التربية | D27: الفرض 1 | G27: =IF($N$7="","",VLOOKUP($N$5,base1,26,0)) -> 4 | I27: =VLOOKUP($N$5,base1,29,0) -> 4 | L27: =IF($N$7="","",G27) -> 4 | M27: =IF($L$31="","",IF(L31<2," ضعيف جدا",IF(L31<4,"ضعيف",IF(L31<5,"ناقص",IF(L31<6,"متوسط",IF(L31<7,"لابأس به",IF(L31<8,"مستحسن",IF(L31<9,"حسن","حسن جدا")))))))) -> ضعيف
D28: الفرض 2 | G28: =IF($N$7="","",VLOOKUP($N$5,base1,27,0)) -> 3 | I28: =VLOOKUP($N$5,base1,29,0) -> 4 | L28: =IF($N$7="","",G28) -> 3
A29: الإسلامية | D29: الفرض 3 | G29: =IF($N$7="","",VLOOKUP($N$5,base1,28,0)) -> 3.5 | I29: =VLOOKUP($N$5,base1,32,0) -> 4 | L29: =IF($N$7="","",G29) -> 3.5
D30: أنشطة | G30: =IF($N$7="","",VLOOKUP($N$5,base1,29,0)) -> 4 | I30: =VLOOKUP($N$5,base1,32,0) -> 4 | L30: =IF($N$7="","",G30) -> 4
D31: معدل الوحدة | L31: =IF($N$7="","",AVERAGE(L27:L30)) -> 3.625
A32: النشاط | D32: النشاط العلمي | G32: =IF($N$7="","",VLOOKUP($N$5,base1,31,0)) -> 4 | I32: =IF($N$7="","",VLOOKUP($N$5,base1,32,0)) -> 4 | L32: =IF(OR($N$7="",G32="",I32=""),"",AVERAGE(D32:I32)) -> 4 | M32: =IF($L$33="","",IF(L33<2," ضعيف جدا",IF(L33<4,"ضعيف",IF(L33<5,"ناقص",IF(L33<6,"متوسط",IF(L33<7,"لابأس به",IF(L33<8,"مستحسن",IF(L33<9,"حسن","حسن جدا")))))))) -> ناقص
A33: العلمي | D33: معدل الوحدة | L33: =IF($N$7="","",L32) -> 4
A34: التربية | D34: التربية الفنية | G34: =IF($N$7="","",VLOOKUP($N$5,base1,34,0)) -> 4 | I34: =IF($N$7="","",VLOOKUP($N$5,base1,35,0)) -> 6.5 | L34: =IF(OR($N$7="",G34="",I34=""),"",AVERAGE(D34:I34)) -> 5.25 | M34: =IF($L$35="","",IF(L35<2," ضعيف جدا",IF(L35<4,"ضعيف",IF(L35<5,"ناقص",IF(L35<6,"متوسط",IF(L35<7,"لابأس به",IF(L35<8,"مستحسن",IF(L35<9,"حسن","حسن جدا")))))))) -> متوسط
A35: الفنية | D35: معدل الوحدة | L35: =IF($N$7="","",L34) -> 5.25
A36: الرياضيات | D36: الرياضيات | G36: =IF($N$7="","",VLOOKUP($N$5,base1,37,0)) -> 3 | I36: =IF($N$7="","",VLOOKUP($N$5,base1,38,0)) -> 3.5 | L36: =IF(OR($N$7="",G36="",I36=""),"",AVERAGE(D36:I36)) -> 3.25 | M36: =IF($N$7="","",IF(L37<2,"ضعيف",IF(AND(L37>=2,L37<=3),"دون المستوى",IF(AND(L37>3,L37<5),"متوسط",IF(AND(L37>=5,L37<7),"لابأس به",IF(AND(L37>=7,L37<8),"مستحسن",IF(AND(L37>=8,L37<=10),"ممتاز"))))))) -> متوسط
D37: معدل الوحدة | L37: =IF($N$7="","",L36) -> 3.25
A38: الفرنسية | D38: الفرنسية | G38: =IF($N$7="","",IF(VLOOKUP($N$5,base1,40,0)="","",VLOOKUP($N$5,base1,40,0))) -> 4 | I38: =IF($N$7="","",IF(VLOOKUP($N$5,base1,41,0)="","",VLOOKUP($N$5,base1,41,0))) -> 3.5 | L38: =IF(OR($N$7="",G38="",I38=""),"",AVERAGE(D38:I38)) -> 3.75 | M38: =IF($N$7="","",IF(L39<2,"ضعيف",IF(AND(L39>=2,L39<=3),"دون المستوى",IF(AND(L39>3,L39<5),"متوسط",IF(AND(L39>=5,L39<7),"لابأس به",IF(AND(L39>=7,L39<8),"مستحسن",IF(AND(L39>=8,L39<=10),"ممتاز"))))))) -> متوسط
D39: معدل الوحدة | L39: =IF($N$7="","",L38) -> 3.75
A40: التربية | D40: التربية البدنية | G40: =IF($N$7="","",IF(VLOOKUP($N$5,base1,43,0)="","",VLOOKUP($N$5,base1,43,0))) -> 5.5 | I40: =IF($N$7="","",IF(VLOOKUP($N$5,base1,44,0)="","",VLOOKUP($N$5,base1,44,0))) -> 6.5 | L40: =IF(OR($N$7="",G40="",I40=""),"",AVERAGE(D40:I40)) -> 6 | M40: =IF($N$7="","",IF(L41="","معفى من التربية البدنية",IF(L41<2,"ضعيف",IF(AND(L41>=2,L41<=3),"دون المستوى",IF(AND(L41>3,L41<5),"متوسط",IF(AND(L41>=5,L41<7),"لابأس به",IF(AND(L41>=7,L41<8),"مستحسن",IF(AND(L41>=8,L41<=10),"ممتاز")))))))) -> لابأس به
A41: البدنية | D41: معدل الوحدة | L41: =IF($N$7="","",L40) -> 6
A43: مجموع معدل الوحدات | E43: =IF($N$7="","",VLOOKUP($N$5,base1,48,0)) -> 25.825 | H43: الميزة | L43: خاتم و توقيع رئيس المؤسسة
A44: المعدل الدوري | E44: =IF($N$7="","",VLOOKUP($N$5,base1,49,0)) -> 3.689285714 | H44: =IF($N$7="","",VLOOKUP($N$5,base1,51,0)) -> ناقص
A45: الرتبة | E45: =IF($N$7="","",VLOOKUP($N$5,base1,50,0)) -> 23

Sheet sem2
C1: =info!$A$1 -> المملكة المغربية | AD1: العــام الدراســي | AG1: =info!M1 -> 2018-2017
C2: =info!$A$2 -> وزارة التربية الوطنية و التكوين المهني | AD2: الأستاذ(ة) | AG2: =info!$M$2 -> هشام
C3: =info!$A$3 -> الأكاديمية الجهوية للتربية والتكوين | AD3: المستوى | AG3: =info!$M$3 -> الأول
C4: =info!$A$4 -> جهة دكالة عبدة | I4: مجمل نتائج الأسدوس الثاني | AD4: الوحدة المدرسية | AG4: =info!$M$4 -> لايهم
C5: =info!$A$5 -> نيابة المديرية | AD5: الفوج | AG5: =info!$M$5 -> 1
C6: =info!$A$6 -> المدرسة
G7: اللغة العربية | W7: الأمازيغية | Z7: التربية الإسلامية | AE7: النشاط العلمي | AH7: التربية الفنية | AK7: الرياضيات | AN7: الفرنسية | AQ7: التربية البدنية | AT7: معامل ت ب | AU7: مج المعاملات | AV7: مج المعدلات | AW7: معدل الدورة | AX7: الرتبة | AY7: الميزة | AZ7: معدل الأسدس1 | BA7: المعدل العام السنوي | BB7: العتبة | BC7: عدد الناجحين | BF7: استثمار النتائج
A8: ر.ت | B8: رقم التلميذ | C8: الاسم و النسب | D8: تاريخ الإزدياد | E8: الجنس | F8: ر.التسجيل | G8: القراءة | J8: الإملاء | M8: الخط | P8: التعبير الشفوي | S8: النقل | V8: معدل | W8: الأمازيغية | Y8: معدل | Z8: فرض1 | AA8: فرض2 | AB8: فرض3 | AC8: أنشطة | AD8: معدل | AE8: النشاط العلمي | AG8: معدل | AH8: التربية الفنية | AJ8: معدل | AK8: الرياضيات | AM8: معدل | AN8: الفرنسية | AP8: معدل | AQ8: التربية البدنية | AS8: معدل | BC8: حسب العتبة
G9: ن1 | H9: ن2 | I9: معدل | J9: ن1 | K9: ن2 | L9: معدل | M9: ن1 | N9: ن2 | O9: معدل | P9: ن1 | Q9: ن2 | R9: معدل | S9: ن1 | T9: ن2 | U9: معدل | V9: الوحدة | W9: ن1 | X9: ن2 | Y9: الوحدة | Z9: ن1 | AA9: ن2 | AB9: ن3 | AC9: ن4 | AD9: الوحدة | AE9: ن1 | AF9: ن2 | AG9: الوحدة | AH9: ن1 | AI9: ن2 | AJ9: الوحدة | AK9: ن1 | AL9: ن2 | AM9: الوحدة | AN9: ن1 | AO9: ن2 | AP9: الوحدة | AQ9: ن1 | AR9: ن2 | AS9: الوحدة | BC9: إناث | BD9: ذكور | BE9: المجموع
A10: =IF(info!A16="","",info!A16) -> 1 | B10: =IF($A10="","",info!B16) -> 1 | C10: =IF($A10="","",info!C16) -> رضوان | D10: =IF($A10="","",info!G16) -> 2005-06-23 | E10: =IF($A10="","",info!D16) -> ذ | F10: =IF($A10="","",info!F16) -> 0 | G10: 4 | H10: 4.5 | I10: =IF(OR(G10="",H10=""),"",AVERAGE(G10:H10)) -> 4.25 | J10: 5 | K10: 4.5 | L10: =IF(OR(J10="",K10=""),"",AVERAGE(J10:K10)) -> 4.75 | M10: 5 | N10: 4.5 | O10: =IF(OR(M10="",N10=""),"",AVERAGE(M10:N10)) -> 4.75 | P10: 3 | Q10: 4.5 | R10: =IF(OR(P10="",Q10=""),"",AVERAGE(P10:Q10)) -> 3.75 | S10: 5 | T10: 4.5 | U10: =IF(OR(S10="",T10=""),"",AVERAGE(S10:T10)) -> 4.75 | V10: =IF(OR(U10="",R10="",O10="",L10="",I10=""),"",AVERAGE(U10,R10,O10,L10,I10)) -> 4.45 | Y10: =IF(OR(W10="",X10=""),"",AVERAGE(W10:X10)) ->  | Z10: 4 | AA10: 5 | AB10: =IF(Z10="","",IF(AA10="","",AVERAGE(Z10:AA10))) -> 4.5 | AC10: 5.5 | AD10: =IF(OR(Z10="",AA10="",AB10="",AC10=""),"",AVERAGE(Z10:AC10)) -> 4.75 | AE10: 3 | AF10: 5.5 | AG10: =IF(OR(AE10="",AF10=""),"",AVERAGE(AE10:AF10)) -> 4.25 | AH10: 4.5 | AI10: 6.5 | AJ10: =IF(OR(AH10="",AI10=""),"",AVERAGE(AH10:AI10)) -> 5.5 | AK10: 5.5 | AL10: 6.5 | AM10: =IF(OR(AK10="",AL10=""),"",AVERAGE(AK10:AL10)) -> 6 | AN10: 3 | AO10: 5.5 | AP10: =IF(OR(AN10="",AO10=""),"",AVERAGE(AN10:AO10)) -> 4.25 | AQ10: 6 | AR10: 8 | AS10: =IF(OR(AQ10="",AR10=""),"",AVERAGE(AQ10:AR10)) -> 7 | AT10: 1 | AU10: =IF($A10="","",6+AT10+info!$P$3) -> 7 | AV10: =IF($A10="","",SUM(V10,AD10,AG10,AJ10,AM10,AS10,Y10)) -> 31.95 | AW10: =IF($A10="","",AV10/AU10) -> 4.564285714 | AX10: =IF($A10="","",RANK(AW10,$AW$10:$AW$59)) -> 14 | AY10: =IF($A10="","",IF(AW10>=8," تنويه ",IF(AW10>=7,"تشجيع ",IF(AW10>=6,"لوحة الشرف",IF(AW10>=5,"متوسط",IF(AW10>=4,"دون المتوسط",IF(AW10>=3,"ناقص",IF(AW10>=2,"تنبيه",IF(AW10>=1,"إنذار","توبيخ"))))))))) -> دون المتوسط | AZ10: =IF($A10="","",'sem1'!AW10) -> 3.689285714 | BA10: =IF($A10="","",AVERAGE(AZ10,AW10)) -> 4.126785714 | BB10: 5 | BC10: =SUMPRODUCT(($BA$10:$BA$509>=$BB$10)*($E$10:$E$509="أ")) -> 1 | BD10: =SUMPRODUCT(($BA$10:$BA$509>=$BB$10)*($E$10:$E$509="ذ")) -> 8 | BE10: =SUM(BC10+BD10) -> 9 | BF10: ] 3 - 0 ] | BG10: =SUMPRODUCT(($BA$10:$BA$509>=0)*($BA$10:$BA$509<3)*($BA$10:$BA$509<>"")) -> 2
A11: =IF(info!A17="","",info!A17) -> 2 | B11: =IF($A11="","",info!B17) -> 2 | C11: =IF($A11="","",info!C17) -> محمد | D11: =IF($A11="","",info!G17) -> 2008-03-14 | E11: =IF($A11="","",info!D17) -> ذ | F11: =IF($A11="","",info!F17) -> 0 | G11: 5 | H11: 5.5 | I11: =IF(OR(G11="",H11=""),"",AVERAGE(G11:H11)) -> 5.25 | J11: 6 | K11: 6.5 | L11: =IF(OR(J11="",K11=""),"",AVERAGE(J11:K11)) -> 6.25 | M11: 5 | N11: 6 | O11: =IF(OR(M11="",N11=""),"",AVERAGE(M11:N11)) -> 5.5 | P11: 5.5 | Q11: 6.5 | R11: =IF(OR(P11="",Q11=""),"",AVERAGE(P11:Q11)) -> 6 | S11: 6 | T11: 6.75 | U11: =IF(OR(S11="",T11=""),"",AVERAGE(S11:T11)) -> 6.375 | V11: =IF(OR(U11="",R11="",O11="",L11="",I11=""),"",AVERAGE(U11,R11,O11,L11,I11)) -> 5.875 | Y11: =IF(OR(W11="",X11=""),"",AVERAGE(W11:X11)) ->  | Z11: 5 | AA11: 6 | AB11: =IF(Z11="","",IF(AA11="","",AVERAGE(Z11:AA11))) -> 5.5 | AC11: 6.5 | AD11: =IF(OR(Z11="",AA11="",AB11="",AC11=""),"",AVERAGE(Z11:AC11)) -> 5.75 | AE11: 3 | AF11: 4.75 | AG11: =IF(OR(AE11="",AF11=""),"",AVERAGE(AE11:AF11)) -> 3.875 | AH11: 5.75 | AI11: 3 | AJ11: =IF(OR(AH11="",AI11=""),"",AVERAGE(AH11:AI11)) -> 4.375 | AK11: 5.5 | AL11: 5 | AM11: =IF(OR(AK11="",AL11=""),"",AVERAGE(AK11:AL11)) -> 5.25 | AN11: 5.5 | AO11: 4.75 | AP11: =IF(OR(AN11="",AO11=""),"",AVERAGE(AN11:AO11)) -> 5.125 | AQ11: 6 | AR11: 6.5 | AS11: =IF(OR(AQ11="",AR11=""),"",AVERAGE(AQ11:AR11)) -> 6.25 | AT11: 1 | AU11: =IF($A11="","",6+AT11+info!$P$3) -> 7 | AV11: 31.375 | AW11: =IF($A11="","",AV11/AU11) -> 4.482142857 | AX11: 16 | AY11: =IF($A11="","",IF(AW11>=8," تنويه ",IF(AW11>=7,"تشجيع ",IF(AW11>=6,"لوحة الشرف",IF(AW11>=5,"متوسط",IF(AW11>=4,"دون المتوسط",IF(AW11>=3,"ناقص",IF(AW11>=2,"تنبيه",IF(AW11>=1,"إنذار","توبيخ"))))))))) -> دون المتوسط | AZ11: =IF($A11="","",'sem1'!AW11) -> 5.686071429 | BA11: =IF($A11="","",AVERAGE(AZ11,AW11)) -> 5.084107143 | BC11: نسبة النجاح | BF11: ] 4 - 3 ] | BG11: =SUMPRODUCT(($BA$10:$BA$509>=3)*($BA$10:$BA$509<4)) -> 5
A12: =IF(info!A18="","",info!A18) -> 3 | B12: =IF($A12="","",info!B18) -> 3 | C12: =IF($A12="","",info!C18) -> سلمى | D12: =IF($A12="","",info!G18) -> 2007-10-07 | E12: =IF($A12="","",info!D18) -> أ | F12: =IF($A12="","",info!F18) -> 0 | G12: 4 | H12: 4.5 | I12: 4.25 | J12: 6 | K12: 4 | L12: 5 | M12: 5.5 | N12: 4 | O12: 4.75 | P12: 4 | Q12: 4 | R12: 4 | S12: 6 | T12: 4 | U12: 5 | V12: 4.6 | Z12: 5 | AA12: 5.5 | AB12: 5.25 | AC12: 5.75 | AD12: 5.375 | AE12: 3 | AF12: 5.75 | AG12: 4.375 | AH12: 5.75 | AI12: 3.5 | AJ12: 4.625 | AK12: 3 | AL12: 6.5 | AM12: 4.75 | AN12: 4 | AO12: 5.75 | AP12: 4.875 | AQ12: 6 | AR12: 6.5 | AS12: 6.25 | AT12: 1 | AU12: =IF($A12="","",6+AT12+info!$P$3) -> 7 | AV12: 29.975 | AW12: 4.282142857 | AX12: 17 | AY12: دون المتوسط | AZ12: =IF($A12="","",'sem1'!AW12) -> 4.832857143 | BA12: 4.5575 | BC12: =BE10*100/BE19 -> 36 | BF12: ] 5 - 4 ] | BG12: =SUMPRODUCT(($BA$10:$BA$509>=4)*($BA$10:$BA$509<5)) -> 9
A13: =IF(info!A19="","",info!A19) -> 4 | B13: =IF($A13="","",info!B19) -> 4 | C13: =IF($A13="","",info!C19) -> شعيب | D13: =IF($A13="","",info!G19) -> 2008-12-06 | E13: =IF($A13="","",info!D19) -> ذ | F13: =IF($A13="","",info!F19) -> 0 | G13: 6 | H13: 6.5 | I13: 6.25 | J13: 7.5 | K13: 7 | L13: 7.25 | M13: 6 | N13: 6 | O13: 6 | P13: 7 | Q13: 6.75 | R13: 6.875 | S13: 6 | T13: 6.75 | U13: 6.375 | V13: 6.55 | Z13: 6.5 | AA13: 6 | AB13: 6.25 | AC13: 7.5 | AD13: 6.5625 | AE13: 8 | AF13: 9 | AG13: 8.5 | AH13: 7 | AI13: 8 | AJ13: 7.5 | AK13: 9 | AL13: 9.25 | AM13: 9.125 | AN13: 7 | AO13: 9 | AP13: 8 | AQ13: 6.5 | AR13: 6.75 | AS13: 6.625 | AT13: 1 | AU13: =IF($A13="","",6+AT13+info!$P$3) -> 7 | AV13: 44.8625 | AW13: 6.408928571 | AX13: 4 | AY13: لوحة الشرف | AZ13: =IF($A13="","",'sem1'!AW13) -> 6.494107143 | BA13: 6.451517857 | BC13: عدد الراسبين | BF13: [5] | BG13: =SUMPRODUCT(($BA$10:$BA$509=5)) -> 0
A14: =IF(info!A20="","",info!A20) -> 5 | B14: =IF($A14="","",info!B20) -> 5 | C14: =IF($A14="","",info!C20) -> ميلود | D14: =IF($A14="","",info!G20) -> 2008-07-10 | E14: =IF($A14="","",info!D20) -> ذ | F14: =IF($A14="","",info!F20) -> 0 | G14: 6 | H14: 4.5 | I14: 5.25 | J14: 7 | K14: 4 | L14: 5.5 | M14: 6 | N14: 4 | O14: 5 | P14: 5.75 | Q14: 6 | R14: 5.875 | S14: 6 | T14: 4 | U14: 5 | V14: 5.325 | Z14: 4.5 | AA14: 4.5 | AB14: 4.5 | AC14: 5 | AD14: 4.625 | AE14: 3 | AF14: 3.5 | AG14: 3.25 | AH14: 5 | AI14: 4 | AJ14: 4.5 | AK14: 6.25 | AL14: 2.75 | AM14: 4.5 | AN14: 5.75 | AO14: 3.5 | AP14: 4.625 | AQ14: 6.5 | AR14: 7 | AS14: 6.75 | AT14: 1 | AU14: =IF($A14="","",6+AT14+info!$P$3) -> 7 | AV14: 28.95 | AW14: 4.135714286 | AX14: 18 | AY14: دون المتوسط | AZ14: =IF($A14="","",'sem1'!AW14) -> 5.18375 | BA14: 4.659732143 | BC14: حسب العتبة | BF14: ] 6 - 5 ] | BG14: =SUMPRODUCT(($BA$10:$BA$509>=5)*($BA$10:$BA$509<6)) -> 3
A15: =IF(info!A21="","",info!A21) -> 6 | B15: =IF($A15="","",info!B21) -> 6 | C15: =IF($A15="","",info!C21) -> فاطمة | D15: =IF($A15="","",info!G21) -> 2008-01-08 | E15: =IF($A15="","",info!D21) -> أ | F15: =IF($A15="","",info!F21) -> 0 | G15: 3.5 | H15: 2 | I15: 2.75 | J15: 2 | K15: 3 | L15: 2.5 | M15: 2 | N15: 3 | O15: 2.5 | P15: 3 | Q15: 2 | R15: 2.5 | S15: 2 | T15: 3 | U15: 2.5 | V15: 2.55 | Z15: 2 | AA15: 2 | AB15: 2 | AC15: 4 | AD15: 2.5 | AE15: 2 | AF15: 1 | AG15: 1.5 | AH15: 3 | AI15: 1 | AJ15: 2 | AK15: 0.25 | AL15: 1.75 | AM15: 1 | AN15: 3 | AO15: 1 | AP15: 2 | AQ15: 5.5 | AR15: 4.5 | AS15: 5 | AT15: 1 | AU15: =IF($A15="","",6+AT15+info!$P$3) -> 7 | AV15: 14.55 | AW15: 2.078571429 | AX15: 24 | AY15: تنبيه | AZ15: =IF($A15="","",'sem1'!AW15) -> 3.637857143 | BA15: 2.858214286 | BC15: إناث | BD15: ذكور | BE15: المجموع | BF15: ] 7 - 6 ] | BG15: =SUMPRODUCT(($BA$10:$BA$509>=6)*($BA$10:$BA$509<7)) -> 6
A16: =IF(info!A22="","",info!A22) -> 7 | B16: =IF($A16="","",info!B22) -> 7 | C16: =IF($A16="","",info!C22) -> مصطفى | D16: =IF($A16="","",info!G22) -> 2009-01-02 | E16: =IF($A16="","",info!D22) -> ذ | F16: =IF($A16="","",info!F22) -> 0 | G16: 4 | H16: 4.5 | I16: 4.25 | J16: 5 | K16: 5 | L16: 5 | M16: 4 | N16: 4 | O16: 4 | P16: 3 | Q16: 5.5 | R16: 4.25 | S16: 4 | T16: 5 | U16: 4.5 | V16: 4.4 | Z16: 4 | AA16: 4 | AB16: 4 | AC16: 4.5 | AD16: 4.125 | AE16: 6 | AF16: 8 | AG16: 7 | AH16: 5.5 | AI16: 6.5 | AJ16: 6 | AK16: 5.25 | AL16: 6.5 | AM16: 5.875 | AN16: 3 | AO16: 8 | AP16: 5.5 | AQ16: 6 | AR16: 7 | AS16: 6.5 | AT16: 1 | AU16: =IF($A16="","",6+AT16+info!$P$3) -> 7 | AV16: 33.9 | AW16: 4.842857143 | AX16: 10 | AY16: دون المتوسط | AZ16: =IF($A16="","",'sem1'!AW16) -> 4.332857143 | BA16: 4.587857143 | BC16: =SUMPRODUCT(($BA$10:$BA$509<$BB$10)*($E$10:$E$509="أ")) -> 10 | BD16: =SUMPRODUCT(($BA$10:$BA$509<$BB$10)*($E$10:$E$509="ذ")) -> 6 | BE16: =SUM(BC16+BD16) -> 16 | BF16: ] 8 - 7 ] | BG16: =SUMPRODUCT(($BA$10:$BA$509>=7)*($BA$10:$BA$509<8)) -> 0
A17: =IF(info!A23="","",info!A23) -> 8 | B17: =IF($A17="","",info!B23) -> 8 | C17: =IF($A17="","",info!C23) -> فريد | D17: =IF($A17="","",info!G23) -> 2008-07-27 | E17: =IF($A17="","",info!D23) -> ذ | F17: =IF($A17="","",info!F23) -> 0 | G17: 6.75 | H17: 6.5 | I17: 6.625 | J17: 7 | K17: 8 | L17: 7.5 | M17: 6 | N17: 7 | O17: 6.5 | P17: 7.5 | Q17: 7 | R17: 7.25 | S17: 7 | T17: 7 | U17: 7 | V17: 6.975 | Z17: 6.5 | AA17: 6.75 | AB17: 6.625 | AC17: 7 | AD17: 6.71875 | AE17: 8 | AF17: 8.75 | AG17: 8.375 | AH17: 8 | AI17: 7.5 | AJ17: 7.75 | AK17: 10 | AL17: 9.38 | AM17: 9.69 | AN17: 7.5 | AO17: 8.75 | AP17: 8.125 | AQ17: 6.5 | AR17: 7.5 | AS17: 7 | AT17: 1 | AU17: =IF($A17="","",6+AT17+info!$P$3) -> 7 | AV17: 46.50875 | AW17: 6.644107143 | AX17: 2 | AY17: لوحة الشرف | AZ17: =IF($A17="","",'sem1'!AW17) -> 6.201071429 | BA17: 6.422589286 | BC17: نسبة الرسوب | BF17: ] 9 - 8 ] | BG17: =SUMPRODUCT(($BA$10:$BA$509>=8)*($BA$10:$BA$509<9)) -> 0
A18: =IF(info!A24="","",info!A24) -> 9 | B18: =IF($A18="","",info!B24) -> 9 | C18: =IF($A18="","",info!C24) -> كمال | D18: =IF($A18="","",info!G24) -> 2008-07-16 | E18: =IF($A18="","",info!D24) -> ذ | F18: =IF($A18="","",info!F24) -> 0 | G18: 6.5 | H18: 7.5 | I18: 7 | J18: 7 | K18: 7.5 | L18: 7.25 | M18: 6 | N18: 8.5 | O18: 7.25 | P18: 6.75 | Q18: 8 | R18: 7.375 | S18: 6 | T18: 7 | U18: 6.5 | V18: 7.075 | Z18: 6.5 | AA18: 7.5 | AB18: 7 | AC18: 8 | AD18: 7.25 | AE18: 9.75 | AF18: 7.5 | AG18: 8.625 | AH18: 6.75 | AI18: 7.5 | AJ18: 7.125 | AK18: 9 | AL18: 9.25 | AM18: 9.125 | AN18: 6.75 | AO18: 7.5 | AP18: 7.125 | AQ18: 6 | AR18: 8 | AS18: 7 | AT18: 1 | AU18: =IF($A18="","",6+AT18+info!$P$3) -> 7 | AV18: 46.2 | AW18: 6.6 | AX18: 3 | AY18: لوحة الشرف | AZ18: =IF($A18="","",'sem1'!AW18) -> 6.64 | BA18: 6.62 | BC18: =BE16*100/BE19 -> 64 | BF18: ] 10 - 9 ] | BG18: =SUMPRODUCT(($BA$10:$BA$509>=9)*($BA$10:$BA$509<10)) -> 0
A19: =IF(info!A25="","",info!A25) -> 10 | B19: =IF($A19="","",info!B25) -> 10 | C19: =IF($A19="","",info!C25) -> لبنى | D19: =IF($A19="","",info!G25) -> 2009-03-15 | E19: =IF($A19="","",info!D25) -> أ | F19: =IF($A19="","",info!F25) -> 0 | G19: 3.5 | H19: 3 | I19: 3.25 | J19: 4 | K19: 4 | L19: 4 | M19: 5 | N19: 4 | O19: 4.5 | P19: 3 | Q19: 2 | R19: 2.5 | S19: 5 | T19: 4 | U19: 4.5 | V19: 3.75 | Z19: 4 | AA19: 1 | AB19: 2.5 | AC19: 6.25 | AD19: 3.4375 | AE19: 4.75 | AF19: 2 | AG19: 3.375 | AH19: 4 | AI19: 1 | AJ19: 2.5 | AK19: 4.5 | AL19: 2 | AM19: 3.25 | AN19: 3 | AO19: 2 | AP19: 2.5 | AQ19: 6 | AR19: 4 | AS19: 5 | AT19: 1 | AU19: =IF($A19="","",6+AT19+info!$P$3) -> 7 | AV19: 21.3125 | AW19: 3.044642857 | AX19: 20 | AY19: ناقص | AZ19: =IF($A19="","",'sem1'!AW19) -> 4.028571429 | BA19: 3.536607143 | BC19: المجموع | BE19: =SUM(BE10,BE16) -> 25 | BF19: [10] | BG19: =SUMPRODUCT(($BA$10:$BA$509=10)) -> 0
A20: =IF(info!A26="","",info!A26) -> 11 | B20: =IF($A20="","",info!B26) -> 11 | C20: =IF($A20="","",info!C26) -> أحمد | D20: =IF($A20="","",info!G26) -> 2008-07-13 | E20: =IF($A20="","",info!D26) -> ذ | F20: =IF($A20="","",info!F26) -> 0 | G20: 6.5 | H20: 7 | I20: 6.75 | J20: 8 | K20: 8.5 | L20: 8.25 | M20: 7 | N20: 9 | O20: 8 | P20: 6.75 | Q20: 7.5 | R20: 7.125 | S20: 8 | T20: 8.5 | U20: 8.25 | V20: 7.675 | Z20: 6.5 | AA20: 7 | AB20: 6.75 | AC20: 7.25 | AD20: 6.875 | AE20: 6 | AF20: 6.5 | AG20: 6.25 | AH20: 7.25 | AI20: 5 | AJ20: 6.125 | AK20: 7.75 | AL20: 9.25 | AM20: 8.5 | AN20: 6.75 | AO20: 6.5 | AP20: 6.625 | AQ20: 7 | AR20: 7.5 | AS20: 7.25 | AT20: 1 | AU20: =IF($A20="","",6+AT20+info!$P$3) -> 7 | AV20: 42.675 | AW20: 6.096428571 | AX20: 6 | AY20: لوحة الشرف | AZ20: =IF($A20="","",'sem1'!AW20) -> 5.99 | BA20: 6.043214286
A21: =IF(info!A27="","",info!A27) -> 12 | B21: =IF($A21="","",info!B27) -> 12 | C21: =IF($A21="","",info!C27) -> سلمان | D21: =IF($A21="","",info!G27) -> 2007-12-31 | E21: =IF($A21="","",info!D27) -> ذ | F21: =IF($A21="","",info!F27) -> 0 | G21: 7.25 | H21: 8.5 | I21: 7.875 | J21: 8 | K21: 8.5 | L21: 8.25 | M21: 7 | N21: 9.5 | O21: 8.25 | P21: 8.5 | Q21: 8.5 | R21: 8.5 | S21: 8 | T21: 9 | U21: 8.5 | V21: 8.275 | Z21: 7 | AA21: 8 | AB21: 7.5 | AC21: 8.5 | AD21: 7.75 | AE21: 8 | AF21: 10 | AG21: 9 | AH21: 8.5 | AI21: 8.5 | AJ21: 8.5 | AK21: 9.25 | AL21: 9.38 | AM21: 9.315 | AN21: 8.5 | AO21: 10 | AP21: 9.25 | AQ21: 7 | AR21: 8 | AS21: 7.5 | AT21: 1 | AU21: =IF($A21="","",6+AT21+info!$P$3) -> 7 | AV21: 50.34 | AW21: 7.191428571 | AX21: 1 | AY21: تشجيع | AZ21: =IF($A21="","",'sem1'!AW21) -> 6.609285714 | BA21: 6.900357143 | BF21: المجموع | BG21: =SUM(BG10:BG19) -> 25
A22: =IF(info!A28="","",info!A28) -> 13 | B22: =IF($A22="","",info!B28) -> 13 | C22: =IF($A22="","",info!C28) -> مروة | D22: =IF($A22="","",info!G28) -> 2008-04-07 | E22: =IF($A22="","",info!D28) -> أ | F22: =IF($A22="","",info!F28) -> 0 | G22: 3 | H22: 4 | I22: 3.5 | J22: 6 | K22: 4.5 | L22: 5.25 | M22: 4 | N22: 5 | O22: 4.5 | P22: 4 | Q22: 4 | R22: 4 | S22: 5 | T22: 5.5 | U22: 5.25 | V22: 4.5 | Z22: 4 | AA22: 4 | AB22: 4 | AC22: 5.5 | AD22: 4.375 | AE22: 3 | AF22: 8.5 | AG22: 5.75 | AH22: 6.5 | AI22: 6.5 | AJ22: 6.5 | AK22: 5.25 | AL22: 4.13 | AM22: 4.69 | AN22: 4 | AO22: 8.5 | AP22: 6.25 | AQ22: 6.5 | AR22: 7 | AS22: 6.75 | AT22: 1 | AU22: =IF($A22="","",6+AT22+info!$P$3) -> 7 | AV22: 32.565 | AW22: 4.652142857 | AX22: 13 | AY22: دون المتوسط | AZ22: =IF($A22="","",'sem1'!AW22) -> 4.236428571 | BA22: 4.444285714
A23: =IF(info!A29="","",info!A29) -> 14 | B23: =IF($A23="","",info!B29) -> 14 | C23: =IF($A23="","",info!C29) -> خالد | D23: =IF($A23="","",info!G29) -> 2008-04-14 | E23: =IF($A23="","",info!D29) -> ذ | F23: =IF($A23="","",info!F29) -> 0 | G23: 7 | H23: 7 | I23: 7 | J23: 6.5 | K23: 7 | L23: 6.75 | M23: 6 | N23: 7.5 | O23: 6.75 | P23: 7.5 | Q23: 7.25 | R23: 7.375 | S23: 6 | T23: 7.5 | U23: 6.75 | V23: 6.925 | Z23: 6.5 | AA23: 7 | AB23: 6.75 | AC23: 7 | AD23: 6.8125 | AE23: 5 | AF23: 5.5 | AG23: 5.25 | AH23: 8 | AI23: 7.5 | AJ23: 7.75 | AK23: 9 | AL23: 8.5 | AM23: 8.75 | AN23: 7.5 | AO23: 5.5 | AP23: 6.5 | AQ23: 6.75 | AR23: 8 | AS23: 7.375 | AT23: 1 | AU23: =IF($A23="","",6+AT23+info!$P$3) -> 7 | AV23: 42.8625 | AW23: 6.123214286 | AX23: 5 | AY23: لوحة الشرف | AZ23: =IF($A23="","",'sem1'!AW23) -> 5.616428571 | BA23: 5.869821429
A24: =IF(info!A30="","",info!A30) -> 15 | B24: =IF($A24="","",info!B30) -> 15 | C24: =IF($A24="","",info!C30) -> سفيان | D24: =IF($A24="","",info!G30) -> 2008-08-13 | E24: =IF($A24="","",info!D30) -> ذ | F24: =IF($A24="","",info!F30) -> 0 | G24: 4 | H24: 4.5 | I24: 4.25 | J24: 6.5 | K24: 3.5 | L24: 5 | M24: 6 | N24: 6 | O24: 6 | P24: 4 | Q24: 4 | R24: 4 | S24: 6.5 | T24: 6 | U24: 6.25 | V24: 5.1 | Z24: 5 | AA24: 4 | AB24: 4.5 | AC24: 6.75 | AD24: 5.0625 | AE24: 5 | AF24: 6.75 | AG24: 5.875 | AH24: 6 | AI24: 6 | AJ24: 6 | AK24: 3.75 | AL24: 5.13 | AM24: 4.44 | AN24: 4 | AO24: 6.75 | AP24: 5.375 | AQ24: 6.5 | AR24: 6 | AS24: 6.25 | AT24: 1 | AU24: =IF($A24="","",6+AT24+info!$P$3) -> 7 | AV24: 32.7275 | AW24: 4.675357143 | AX24: 11 | AY24: دون المتوسط | AZ24: =IF($A24="","",'sem1'!AW24) -> 4.422142857 | BA24: 4.54875
A25: =IF(info!A31="","",info!A31) -> 16 | B25: =IF($A25="","",info!B31) -> 16 | C25: =IF($A25="","",info!C31) -> لمياء | D25: =IF($A25="","",info!G31) -> 2009-01-24 | E25: =IF($A25="","",info!D31) -> أ | F25: =IF($A25="","",info!F31) -> 0 | G25: 4.5 | H25: 6 | I25: 5.25 | J25: 6 | K25: 7 | L25: 6.5 | M25: 6.5 | N25: 6.5 | O25: 6.5 | P25: 4 | Q25: 6 | R25: 5 | S25: 6 | T25: 6.5 | U25: 6.25 | V25: 5.9 | Z25: 4 | AA25: 6.5 | AB25: 5.25 | AC25: 6.5 | AD25: 5.5625 | AE25: 8.5 | AF25: 7.5 | AG25: 8 | AH25: 5.5 | AI25: 4 | AJ25: 4.75 | AK25: 4.5 | AL25: 5.38 | AM25: 4.94 | AN25: 4 | AO25: 7.5 | AP25: 5.75 | AQ25: 6 | AR25: 6.5 | AS25: 6.25 | AT25: 1 | AU25: =IF($A25="","",6+AT25+info!$P$3) -> 7 | AV25: 35.4025 | AW25: 5.0575 | AX25: 9 | AY25: متوسط | AZ25: =IF($A25="","",'sem1'!AW25) -> 4.927857143 | BA25: 4.992678571
A26: =IF(info!A32="","",info!A32) -> 17 | B26: =IF($A26="","",info!B32) -> 17 | C26: =IF($A26="","",info!C32) -> مريم | D26: =IF($A26="","",info!G32) -> 2008-12-31 | E26: =IF($A26="","",info!D32) -> أ | F26: =IF($A26="","",info!F32) -> 0 | G26: 6.5 | H26: 6.25 | I26: 6.375 | J26: 8.5 | K26: 8 | L26: 8.25 | M26: 6 | N26: 8 | O26: 7 | P26: 6.75 | Q26: 6.5 | R26: 6.625 | S26: 6 | T26: 8 | U26: 7 | V26: 7.05 | Z26: 6 | AA26: 6 | AB26: 6 | AC26: 7.5 | AD26: 6.375 | AE26: 5 | AF26: 9 | AG26: 7 | AH26: 6.5 | AI26: 6.5 | AJ26: 6.5 | AK26: 8.25 | AL26: 8.13 | AM26: 8.19 | AN26: 6.75 | AO26: 9 | AP26: 7.875 | AQ26: 6.5 | AR26: 7 | AS26: 6.75 | AT26: 1 | AU26: =IF($A26="","",6+AT26+info!$P$3) -> 7 | AV26: 41.865 | AW26: 5.980714286 | AX26: 7 | AY26: متوسط | AZ26: =IF($A26="","",'sem1'!AW26) -> 6.459642857 | BA26: 6.220178571
A27: =IF(info!A33="","",info!A33) -> 18 | B27: =IF($A27="","",info!B33) -> 18 | C27: =IF($A27="","",info!C33) -> لقمان | D27: =IF($A27="","",info!G33) -> 2009-02-20 | E27: =IF($A27="","",info!D33) -> ذ | F27: =IF($A27="","",info!F33) -> 0 | G27: 3.5 | H27: 3 | I27: 3.25 | J27: 4 | K27: 3 | L27: 3.5 | M27: 4 | N27: 3 | O27: 3.5 | P27: 3 | Q27: 3 | R27: 3 | S27: 4 | T27: 3 | U27: 3.5 | V27: 3.35 | Z27: 4 | AA27: 3 | AB27: 3.5 | AC27: 4 | AD27: 3.625 | AE27: 2 | AF27: 2.5 | AG27: 2.25 | AH27: 5 | AI27: 1 | AJ27: 3 | AK27: 2 | AL27: 1.75 | AM27: 1.875 | AN27: 3 | AO27: 2.5 | AP27: 2.75 | AQ27: 6 | AR27: 5 | AS27: 5.5 | AT27: 1 | AU27: =IF($A27="","",6+AT27+info!$P$3) -> 7 | AV27: 19.6 | AW27: 2.8 | AX27: 23 | AY27: تنبيه | AZ27: =IF($A27="","",'sem1'!AW27) -> 3.900714286 | BA27: 3.350357143
A28: =IF(info!A34="","",info!A34) -> 19 | B28: =IF($A28="","",info!B34) -> 19 | C28: =IF($A28="","",info!C34) -> محمد | D28: =IF($A28="","",info!G34) -> 2009-01-02 | E28: =IF($A28="","",info!D34) -> ذ | F28: =IF($A28="","",info!F34) -> 0 | G28: 2 | H28: 1 | I28: 1.5 | J28: 1 | K28: 2 | L28: 1.5 | M28: 1 | N28: 2 | O28: 1.5 | P28: 2 | Q28: 1 | R28: 1.5 | S28: 1 | T28: 2 | U28: 1.5 | V28: 1.5 | Z28: 3 | AA28: 1 | AB28: 2 | AC28: 3 | AD28: 2.25 | AE28: 2 | AF28: 1.5 | AG28: 1.75 | AH28: 2 | AI28: 1 | AJ28: 1.5 | AK28: 1 | AL28: 1 | AM28: 1 | AN28: 2 | AO28: 1.5 | AP28: 1.75 | AQ28: 5 | AR28: 4 | AS28: 4.5 | AT28: 1 | AU28: =IF($A28="","",6+AT28+info!$P$3) -> 7 | AV28: 12.5 | AW28: 1.785714286 | AX28: 25 | AY28: إنذار | AZ28: =IF($A28="","",'sem1'!AW28) -> 3.185714286 | BA28: 2.485714286
A29: =IF(info!A35="","",info!A35) -> 20 | B29: =IF($A29="","",info!B35) -> 20 | C29: =IF($A29="","",info!C35) -> سليم | D29: =IF($A29="","",info!G35) -> 2008-09-22 | E29: =IF($A29="","",info!D35) -> ذ | F29: =IF($A29="","",info!F35) -> 0 | G29: 5 | H29: 6 | I29: 5.5 | J29: 8 | K29: 8 | L29: 8 | M29: 7 | N29: 8 | O29: 7.5 | P29: 5.5 | Q29: 6.25 | R29: 5.875 | S29: 7 | T29: 7.5 | U29: 7.25 | V29: 6.825 | Z29: 4 | AA29: 6 | AB29: 5 | AC29: 5.5 | AD29: 5.125 | AE29: 10 | AF29: 8.5 | AG29: 9.25 | AH29: 7 | AI29: 7.25 | AJ29: 7.125 | AK29: 4.75 | AL29: 8.13 | AM29: 6.44 | AN29: 5.5 | AO29: 8.5 | AP29: 7 | AQ29: 6.75 | AR29: 7 | AS29: 6.875 | AT29: 1 | AU29: =IF($A29="","",6+AT29+info!$P$3) -> 7 | AV29: 41.64 | AW29: 5.948571429 | AX29: 8 | AY29: متوسط | AZ29: =IF($A29="","",'sem1'!AW29) -> 5.836071429 | BA29: 5.892321429
A30: =IF(info!A36="","",info!A36) -> 21 | B30: =IF($A30="","",info!B36) -> 21 | C30: =IF($A30="","",info!C36) -> فتيحة | D30: =IF($A30="","",info!G36) -> 2008-04-12 | E30: =IF($A30="","",info!D36) -> أ | F30: =IF($A30="","",info!F36) -> 0 | G30: 3.5 | H30: 4.5 | I30: 4 | J30: 6 | K30: 4.5 | L30: 5.25 | M30: 6 | N30: 6 | O30: 6 | P30: 4 | Q30: 4.5 | R30: 4.25 | S30: 5 | T30: 6 | U30: 5.5 | V30: 5 | Z30: 4.5 | AA30: 4 | AB30: 4.25 | AC30: 6 | AD30: 4.6875 | AE30: 5 | AF30: 5.75 | AG30: 5.375 | AH30: 4 | AI30: 6 | AJ30: 5 | AK30: 5.75 | AL30: 6.63 | AM30: 6.19 | AN30: 4 | AO30: 5.75 | AP30: 4.875 | AQ30: 6 | AR30: 6.75 | AS30: 6.375 | AT30: 1 | AU30: =IF($A30="","",6+AT30+info!$P$3) -> 7 | AV30: 32.6275 | AW30: 4.661071429 | AX30: 12 | AY30: دون المتوسط | AZ30: =IF($A30="","",'sem1'!AW30) -> 4.642142857 | BA30: 4.651607143
A31: =IF(info!A37="","",info!A37) -> 22 | B31: =IF($A31="","",info!B37) -> 22 | C31: =IF($A31="","",info!C37) -> رقية | D31: =IF($A31="","",info!G37) -> 2008-12-22 | E31: =IF($A31="","",info!D37) -> أ | F31: =IF($A31="","",info!F37) -> 0 | G31: 3.5 | H31: 3 | I31: 3.25 | J31: 4 | K31: 3 | L31: 3.5 | M31: 4 | N31: 3 | O31: 3.5 | P31: 3.5 | Q31: 3.5 | R31: 3.5 | S31: 4 | T31: 3 | U31: 3.5 | V31: 3.45 | Z31: 4 | AA31: 3 | AB31: 3.5 | AC31: 4 | AD31: 3.625 | AE31: 2 | AF31: 4.5 | AG31: 3.25 | AH31: 5 | AI31: 1 | AJ31: 3 | AK31: 0.5 | AL31: 3.25 | AM31: 1.875 | AN31: 3.5 | AO31: 4.5 | AP31: 4 | AQ31: 5.5 | AR31: 4 | AS31: 4.75 | AT31: 1 | AU31: =IF($A31="","",6+AT31+info!$P$3) -> 7 | AV31: 19.95 | AW31: 2.85 | AX31: 22 | AY31: تنبيه | AZ31: =IF($A31="","",'sem1'!AW31) -> 3.844642857 | BA31: 3.347321429
A32: =IF(info!A38="","",info!A38) -> 23 | B32: =IF($A32="","",info!B38) -> 23 | C32: =IF($A32="","",info!C38) -> جميلة | D32: =IF($A32="","",info!G38) -> 2008-11-29 | E32: =IF($A32="","",info!D38) -> أ | F32: =IF($A32="","",info!F38) -> 0 | G32: 3 | H32: 2 | I32: 2.5 | J32: 4 | K32: 2 | L32: 3 | M32: 4 | N32: 2 | O32: 3 | P32: 3 | Q32: 2 | R32: 2.5 | S32: 4 | T32: 2 | U32: 3 | V32: 2.8 | Z32: 4 | AA32: 2 | AB32: 3 | AC32: 4 | AD32: 3.25 | AE32: 3 | AF32: 2.5 | AG32: 2.75 | AH32: 5 | AI32: 4 | AJ32: 4.5 | AK32: 1.5 | AL32: 3.25 | AM32: 2.375 | AN32: 3 | AO32: 2.5 | AP32: 2.75 | AQ32: 5.5 | AR32: 5 | AS32: 5.25 | AT32: 1 | AU32: =IF($A32="","",6+AT32+info!$P$3) -> 7 | AV32: 20.925 | AW32: 2.989285714 | AX32: 21 | AY32: تنبيه | AZ32: =IF($A32="","",'sem1'!AW32) -> 4.040178571 | BA32: 3.514732143
A33: =IF(info!A39="","",info!A39) -> 24 | B33: =IF($A33="","",info!B39) -> 24 | C33: =IF($A33="","",info!C39) -> نادية | D33: =IF($A33="","",info!G39) -> 2008-06-24 | E33: =IF($A33="","",info!D39) -> أ | F33: =IF($A33="","",info!F39) -> 0 | G33: 3.5 | H33: 3 | I33: 3.25 | J33: 6 | K33: 3 | L33: 4.5 | M33: 6 | N33: 3 | O33: 4.5 | P33: 3 | Q33: 3 | R33: 3 | S33: 5 | T33: 3 | U33: 4 | V33: 3.85 | Z33: 4 | AA33: 3 | AB33: 3.5 | AC33: 5 | AD33: 3.875 | AE33: 3 | AF33: 3 | AG33: 3 | AH33: 4 | AI33: 2 | AJ33: 3 | AK33: 2.75 | AL33: 3.88 | AM33: 3.315 | AN33: 3 | AO33: 3 | AP33: 3 | AQ33: 6 | AR33: 4 | AS33: 5 | AT33: 1 | AU33: =IF($A33="","",6+AT33+info!$P$3) -> 7 | AV33: 22.04 | AW33: 3.148571429 | AX33: 19 | AY33: ناقص | AZ33: =IF($A33="","",'sem1'!AW33) -> 4.442857143 | BA33: 3.795714286
A34: =IF(info!A40="","",info!A40) -> 25 | B34: =IF($A34="","",info!B40) -> 25 | C34: =IF($A34="","",info!C40) -> سكينة | D34: =IF($A34="","",info!G40) -> 2008-06-07 | E34: =IF($A34="","",info!D40) -> أ | F34: =IF($A34="","",info!F40) -> 0 | G34: 4 | H34: 6.5 | I34: 5.25 | J34: 6.5 | K34: 6 | L34: 6.25 | M34: 5.5 | N34: 7 | O34: 6.25 | P34: 4.5 | Q34: 6 | R34: 5.25 | S34: 6 | T34: 7 | U34: 6.5 | V34: 5.9 | Z34: 5 | AA34: 6 | AB34: 5.5 | AC34: 4 | AD34: 5.125 | AE34: 3 | AF34: 4.5 | AG34: 3.75 | AH34: 6 | AI34: 5 | AJ34: 5.5 | AK34: 3.75 | AL34: 6.13 | AM34: 4.94 | AN34: 4.5 | AO34: 4.5 | AP34: 4.5 | AQ34: 6 | AR34: 6.5 | AS34: 6.25 | AT34: 1 | AU34: =IF($A34="","",6+AT34+info!$P$3) -> 7 | AV34: 31.465 | AW34: 4.495 | AX34: 15 | AY34: دون المتوسط | AZ34: =IF($A34="","",'sem1'!AW34) -> 4.67125 | BA34: 4.583125
A35: =IF(info!A41="","",info!A41) ->  | B35: =IF($A35="","",info!B41) ->  | C35: =IF($A35="","",info!C41) ->  | D35: =IF($A35="","",info!G41) ->  | E35: =IF($A35="","",info!D41) ->  | F35: =IF($A35="","",info!F41) ->  | AU35: =IF($A35="","",6+AT35+info!$P$3) ->  | AZ35: =IF($A35="","",'sem1'!AW35) -> 
A36: =IF(info!A42="","",info!A42) ->  | B36: =IF($A36="","",info!B42) ->  | C36: =IF($A36="","",info!C42) ->  | D36: =IF($A36="","",info!G42) ->  | E36: =IF($A36="","",info!D42) ->  | F36: =IF($A36="","",info!F42) ->  | AU36: =IF($A36="","",6+AT36+info!$P$3) ->  | AZ36: =IF($A36="","",'sem1'!AW36) -> 
A37: =IF(info!A43="","",info!A43) ->  | B37: =IF($A37="","",info!B43) ->  | C37: =IF($A37="","",info!C43) ->  | D37: =IF($A37="","",info!G43) ->  | E37: =IF($A37="","",info!D43) ->  | F37: =IF($A37="","",info!F43) ->  | AU37: =IF($A37="","",6+AT37+info!$P$3) ->  | AZ37: =IF($A37="","",'sem1'!AW37) -> 
A38: =IF(info!A44="","",info!A44) ->  | B38: =IF($A38="","",info!B44) ->  | C38: =IF($A38="","",info!C44) ->  | D38: =IF($A38="","",info!G44) ->  | E38: =IF($A38="","",info!D44) ->  | F38: =IF($A38="","",info!F44) ->  | AU38: =IF($A38="","",6+AT38+info!$P$3) ->  | AZ38: =IF($A38="","",'sem1'!AW38) -> 
A39: =IF(info!A45="","",info!A45) ->  | B39: =IF($A39="","",info!B45) ->  | C39: =IF($A39="","",info!C45) ->  | D39: =IF($A39="","",info!G45) ->  | E39: =IF($A39="","",info!D45) ->  | F39: =IF($A39="","",info!F45) ->  | AU39: =IF($A39="","",6+AT39+info!$P$3) ->  | AZ39: =IF($A39="","",'sem1'!AW39) -> 
A40: =IF(info!A46="","",info!A46) ->  | B40: =IF($A40="","",info!B46) ->  | C40: =IF($A40="","",info!C46) ->  | D40: =IF($A40="","",info!G46) ->  | E40: =IF($A40="","",info!D46) ->  | F40: =IF($A40="","",info!F46) ->  | AU40: =IF($A40="","",6+AT40+info!$P$3) ->  | AZ40: =IF($A40="","",'sem1'!AW40) -> 
A41: =IF(info!A47="","",info!A47) ->  | B41: =IF($A41="","",info!B47) ->  | C41: =IF($A41="","",info!C47) ->  | D41: =IF($A41="","",info!G47) ->  | E41: =IF($A41="","",info!D47) ->  | F41: =IF($A41="","",info!F47) ->  | AU41: =IF($A41="","",6+AT41+info!$P$3) ->  | AZ41: =IF($A41="","",'sem1'!AW41) -> 
A42: =IF(info!A48="","",info!A48) ->  | B42: =IF($A42="","",info!B48) ->  | C42: =IF($A42="","",info!C48) ->  | D42: =IF($A42="","",info!G48) ->  | E42: =IF($A42="","",info!D48) ->  | F42: =IF($A42="","",info!F48) ->  | AU42: =IF($A42="","",6+AT42+info!$P$3) ->  | AV42: =IF($A42="","",SUM(V42,AD42,AG42,AJ42,AM42,AS42,Y42)) ->  | AX42: =IF($A42="","",RANK(AW42,$AW$10:$AW$59)) ->  | AZ42: =IF($A42="","",'sem1'!AW42) -> 
A43: =IF(info!A49="","",info!A49) ->  | B43: =IF($A43="","",info!B49) ->  | C43: =IF($A43="","",info!C49) ->  | D43: =IF($A43="","",info!G49) ->  | E43: =IF($A43="","",info!D49) ->  | F43: =IF($A43="","",info!F49) ->  | AU43: =IF($A43="","",6+AT43+info!$P$3) ->  | AZ43: =IF($A43="","",'sem1'!AW43) -> 
A44: =IF(info!A50="","",info!A50) ->  | B44: =IF($A44="","",info!B50) ->  | C44: =IF($A44="","",info!C50) ->  | D44: =IF($A44="","",info!G50) ->  | E44: =IF($A44="","",info!D50) ->  | F44: =IF($A44="","",info!F50) ->  | AU44: =IF($A44="","",6+AT44+info!$P$3) ->  | AZ44: =IF($A44="","",'sem1'!AW44) -> 
A45: =IF(info!A51="","",info!A51) ->  | B45: =IF($A45="","",info!B51) ->  | C45: =IF($A45="","",info!C51) ->  | D45: =IF($A45="","",info!G51) ->  | E45: =IF($A45="","",info!D51) ->  | F45: =IF($A45="","",info!F51) ->  | AU45: =IF($A45="","",6+AT45+info!$P$3) ->  | AZ45: =IF($A45="","",'sem1'!AW45) -> 
A46: =IF(info!A52="","",info!A52) ->  | B46: =IF($A46="","",info!B52) ->  | C46: =IF($A46="","",info!C52) ->  | D46: =IF($A46="","",info!G52) ->  | E46: =IF($A46="","",info!D52) ->  | F46: =IF($A46="","",info!F52) ->  | AU46: =IF($A46="","",6+AT46+info!$P$3) ->  | AZ46: =IF($A46="","",'sem1'!AW46) -> 
A47: =IF(info!A53="","",info!A53) ->  | B47: =IF($A47="","",info!B53) ->  | C47: =IF($A47="","",info!C53) ->  | D47: =IF($A47="","",info!G53) ->  | E47: =IF($A47="","",info!D53) ->  | F47: =IF($A47="","",info!F53) ->  | AU47: =IF($A47="","",6+AT47+info!$P$3) ->  | AZ47: =IF($A47="","",'sem1'!AW47) -> 
A48: =IF(info!A54="","",info!A54) ->  | B48: =IF($A48="","",info!B54) ->  | C48: =IF($A48="","",info!C54) ->  | D48: =IF($A48="","",info!G54) ->  | E48: =IF($A48="","",info!D54) ->  | F48: =IF($A48="","",info!F54) ->  | AU48: =IF($A48="","",6+AT48+info!$P$3) ->  | AZ48: =IF($A48="","",'sem1'!AW48) -> 
A49: =IF(info!A55="","",info!A55) ->  | B49: =IF($A49="","",info!B55) ->  | C49: =IF($A49="","",info!C55) ->  | D49: =IF($A49="","",info!G55) ->  | E49: =IF($A49="","",info!D55) ->  | F49: =IF($A49="","",info!F55) ->  | AU49: =IF($A49="","",6+AT49+info!$P$3) ->  | AZ49: =IF($A49="","",'sem1'!AW49) -> 
A50: =IF(info!A56="","",info!A56) ->  | B50: =IF($A50="","",info!B56) ->  | C50: =IF($A50="","",info!C56) ->  | D50: =IF($A50="","",info!G56) ->  | E50: =IF($A50="","",info!D56) ->  | F50: =IF($A50="","",info!F56) ->  | AB50: =IF(Z50="","",IF(AA50="","",AVERAGE(Z50:AA50))) ->  | AU50: =IF($A50="","",6+AT50+info!$P$3) ->  | AW50: =IF($A50="","",AV50/AU50) ->  | AY50: =IF($A50="","",IF(AW50>=8," تنويه ",IF(AW50>=7,"تشجيع ",IF(AW50>=6,"لوحة الشرف",IF(AW50>=5,"متوسط",IF(AW50>=4,"دون المتوسط",IF(AW50>=3,"ناقص",IF(AW50>=2,"تنبيه",IF(AW50>=1,"إنذار","توبيخ"))))))))) ->  | AZ50: =IF($A50="","",'sem1'!AW50) ->  | BA50: =IF($A50="","",AVERAGE(AZ50,AW50)) -> 
A51: =IF(info!A57="","",info!A57) ->  | B51: =IF($A51="","",info!B57) ->  | C51: =IF($A51="","",info!C57) ->  | D51: =IF($A51="","",info!G57) ->  | E51: =IF($A51="","",info!D57) ->  | F51: =IF($A51="","",info!F57) ->  | AU51: =IF($A51="","",6+AT51+info!$P$3) ->  | AZ51: =IF($A51="","",'sem1'!AW51) -> 
A52: =IF(info!A58="","",info!A58) ->  | B52: =IF($A52="","",info!B58) ->  | C52: =IF($A52="","",info!C58) ->  | D52: =IF($A52="","",info!G58) ->  | E52: =IF($A52="","",info!D58) ->  | F52: =IF($A52="","",info!F58) ->  | AU52: =IF($A52="","",6+AT52+info!$P$3) ->  | AZ52: =IF($A52="","",'sem1'!AW52) -> 
A53: =IF(info!A59="","",info!A59) ->  | B53: =IF($A53="","",info!B59) ->  | C53: =IF($A53="","",info!C59) ->  | D53: =IF($A53="","",info!G59) ->  | E53: =IF($A53="","",info!D59) ->  | F53: =IF($A53="","",info!F59) ->  | AU53: =IF($A53="","",6+AT53+info!$P$3) ->  | AZ53: =IF($A53="","",'sem1'!AW53) -> 
A54: =IF(info!A60="","",info!A60) ->  | B54: =IF($A54="","",info!B60) ->  | C54: =IF($A54="","",info!C60) ->  | D54: =IF($A54="","",info!G60) ->  | E54: =IF($A54="","",info!D60) ->  | F54: =IF($A54="","",info!F60) ->  | AU54: =IF($A54="","",6+AT54+info!$P$3) ->  | AZ54: =IF($A54="","",'sem1'!AW54) -> 
A55: =IF(info!A61="","",info!A61) ->  | B55: =IF($A55="","",info!B61) ->  | C55: =IF($A55="","",info!C61) ->  | D55: =IF($A55="","",info!G61) ->  | E55: =IF($A55="","",info!D61) ->  | F55: =IF($A55="","",info!F61) ->  | AU55: =IF($A55="","",6+AT55+info!$P$3) ->  | AZ55: =IF($A55="","",'sem1'!AW55) -> 
A56: =IF(info!A62="","",info!A62) ->  | B56: =IF($A56="","",info!B62) ->  | C56: =IF($A56="","",info!C62) ->  | D56: =IF($A56="","",info!G62) ->  | E56: =IF($A56="","",info!D62) ->  | F56: =IF($A56="","",info!F62) ->  | AU56: =IF($A56="","",6+AT56+info!$P$3) ->  | AZ56: =IF($A56="","",'sem1'!AW56) -> 
A57: =IF(info!A63="","",info!A63) ->  | B57: =IF($A57="","",info!B63) ->  | C57: =IF($A57="","",info!C63) ->  | D57: =IF($A57="","",info!G63) ->  | E57: =IF($A57="","",info!D63) ->  | F57: =IF($A57="","",info!F63) ->  | AU57: =IF($A57="","",6+AT57+info!$P$3) ->  | AZ57: =IF($A57="","",'sem1'!AW57) -> 
A58: =IF(info!A64="","",info!A64) ->  | B58: =IF($A58="","",info!B64) ->  | C58: =IF($A58="","",info!C64) ->  | D58: =IF($A58="","",info!G64) ->  | E58: =IF($A58="","",info!D64) ->  | F58: =IF($A58="","",info!F64) ->  | AU58: =IF($A58="","",6+AT58+info!$P$3) ->  | AZ58: =IF($A58="","",'sem1'!AW58) -> 
A59: =IF(info!A65="","",info!A65) ->  | B59: =IF($A59="","",info!B65) ->  | C59: =IF($A59="","",info!C65) ->  | D59: =IF($A59="","",info!G65) ->  | E59: =IF($A59="","",info!D65) ->  | F59: =IF($A59="","",info!F65) ->  | AU59: =IF($A59="","",6+AT59+info!$P$3) ->  | AZ59: =IF($A59="","",'sem1'!AW59) -> 

Sheet bulletin_sem2
A1: =info!$A$1 -> المملكة المغربية | K1: الموسم الدراسي | N1: =IF($N$7="","",info!$M$1) -> 2018-2017
A2: =info!$A$2 -> وزارة التربية الوطنية و التكوين المهني | K2: الاسم و النسب | N2: =IF($N$7="","",VLOOKUP($N$5,base1,3,0)) -> رضوان
A3: =info!$A$3 -> الأكاديمية الجهوية للتربية والتكوين | K3: الرقم الوطني | N3: =IF($N$7="","",VLOOKUP($N$5,base1,2,0)) -> 1
A4: =info!$A$4 -> جهة دكالة عبدة | K4: رقم التسجيل | N4: =IF($N$7="","",VLOOKUP($N$5,base1,6,0)) -> 0
A5: =info!$A$5 -> نيابة المديرية | K5: رقم ت في القسم | N5: 1
A6: =info!$A$6 -> المدرسة | K6: القسم | N6: =IF($N$7="","",info!$M$3) -> الأول
K7: عدد التلاميذ | N7: =IF(info!$O$12=0,"",info!$O$12) -> 25 | R7: i
B9: بطاقة المراقبة المستمرة
C12: مدرسة | I12: =IF($N$7="","",info!A6) -> المدرسة
C13: الاسم والنسب | I13: =IF($N$7="","",VLOOKUP($N$5,base1,3,0)) -> رضوان | N13: i | Q13: i
B15: نتائج الأسدوس الثاني
A17: الوحدات | D17: الانشطة | G17: الدورة الأولى | M17: ملاحظات
G18: النقطة1 | I18: النقطة2 | L18: المعدل | V18: i
A19: اللغة العربية | D19: القراءة | G19: =IF($N$7="","",VLOOKUP($N$5,base3,7,0)) -> 4 | I19: =IF($N$7="","",VLOOKUP($N$5,base3,8,0)) -> 4.5 | L19: =IF($N$7="","",AVERAGE(G19:J19)) -> 4.25 | M19: =IF($N$7="","",IF(L24<2,"ضعيف",IF(AND(L24>=2,L24<=3),"دون المستوى",IF(AND(L24>3,L24<5),"متوسط",IF(AND(L24>=5,L24<7),"لابأس به",IF(AND(L24>=7,L24<8),"مستحسن",IF(AND(L24>=8,L24<=10),"ممتاز"))))))) -> متوسط
D20: الإملاء | G20: =IF($N$7="","",VLOOKUP($N$5,base3,10,0)) -> 5 | I20: =IF($N$7="","",VLOOKUP($N$5,base3,11,0)) -> 4.5 | L20: =IF($N$7="","",AVERAGE(G20:J20)) -> 4.75
D21: الخط | G21: =IF($N$7="","",VLOOKUP($N$5,base3,13,0)) -> 5 | I21: =IF($N$7="","",VLOOKUP($N$5,base3,14,0)) -> 4.5 | L21: =IF($N$7="","",AVERAGE(G21:J21)) -> 4.75
D22: التعبير الشفوي | G22: =IF($N$7="","",VLOOKUP($N$5,base3,16,0)) -> 3 | I22: =IF($N$7="","",VLOOKUP($N$5,base3,17,0)) -> 4.5 | L22: =IF($N$7="","",AVERAGE(G22:J22)) -> 3.75
D23: النقل | G23: =IF($N$7="","",VLOOKUP($N$5,base3,19,0)) -> 5 | I23: =IF($N$7="","",VLOOKUP($N$5,base3,20,0)) -> 4.5 | L23: =IF($N$7="","",AVERAGE(G23:J23)) -> 4.75
D24: معدل الوحدة | L24: =IF($N$7="","",AVERAGE(L19:L23)) -> 4.45
A25: اللغة | D25: الأمازيغية | G25: =IF($N$7="","",IF(VLOOKUP($N$5,base3,23,0)="","",VLOOKUP($N$5,base3,23,0))) ->  | I25: =IF($N$7="","",IF(VLOOKUP($N$5,base3,24,0)="","",VLOOKUP($N$5,base3,24,0))) ->  | L25: =IF(OR($N$7="",G25="",I25=""),"",AVERAGE(D25:I25)) ->  | M25: =IF($N$7="","",IF(L26="","الأمازيغية غير معممة",IF(L26<2,"ضعيف",IF(AND(L26>=2,L26<=3),"دون المستوى",IF(AND(L26>3,L26<5),"متوسط",IF(AND(L26>=5,L26<7),"لابأس به",IF(AND(L26>=7,L26<8),"مستحسن",IF(AND(L26>=8,L26<=10),"ممتاز")))))))) -> الأمازيغية غير معممة
A26: الأمازيغية | D26: معدل الوحدة | L26: =IF($N$7="","",L25) -> 
A27: التربية | D27: الفرض 1 | G27: =IF($N$7="","",VLOOKUP($N$5,base3,26,0)) -> 4 | I27: =VLOOKUP($N$5,base1,29,0) -> 4 | L27: =IF($N$7="","",G27) -> 4 | M27: =IF($N$7="","",IF(L31<2,"ضعيف",IF(AND(L31>=2,L31<=3),"دون المستوى",IF(AND(L31>3,L31<5),"متوسط",IF(AND(L31>=5,L31<7),"لابأس به",IF(AND(L31>=7,L31<8),"مستحسن",IF(AND(L31>=8,L31<=10),"ممتاز"))))))) -> متوسط
D28: الفرض 2 | G28: =IF($N$7="","",VLOOKUP($N$5,base3,27,0)) -> 5 | I28: =VLOOKUP($N$5,base1,29,0) -> 4 | L28: =IF($N$7="","",G28) -> 5
A29: الإسلامية | D29: الفرض 3 | G29: =IF($N$7="","",VLOOKUP($N$5,base3,28,0)) -> 4.5 | I29: =VLOOKUP($N$5,base1,32,0) -> 4 | L29: =IF($N$7="","",G29) -> 4.5
D30: أنشطة | G30: =IF($N$7="","",VLOOKUP($N$5,base3,29,0)) -> 5.5 | I30: =VLOOKUP($N$5,base1,32,0) -> 4 | L30: =IF($N$7="","",G30) -> 5.5
D31: معدل الوحدة | L31: =IF($N$7="","",AVERAGE(L27:L30)) -> 4.75
A32: النشاط | D32: النشاط العلمي | G32: =IF($N$7="","",VLOOKUP($N$5,base3,31,0)) -> 3 | I32: =IF($N$7="","",VLOOKUP($N$5,base3,32,0)) -> 5.5 | L32: =IF(OR($N$7="",G32="",I32=""),"",AVERAGE(D32:I32)) -> 4.25 | M32: =IF($N$7="","",IF(L33<2,"ضعيف",IF(AND(L33>=2,L33<=3),"دون المستوى",IF(AND(L33>3,L33<5),"متوسط",IF(AND(L33>=5,L33<7),"لابأس به",IF(AND(L33>=7,L33<8),"مستحسن",IF(AND(L33>=8,L33<=10),"ممتاز"))))))) -> متوسط
A33: العلمي | D33: معدل الوحدة | L33: =IF($N$7="","",L32) -> 4.25
A34: التربية | D34: التربية الفنية | G34: =IF($N$7="","",VLOOKUP($N$5,base3,34,0)) -> 4.5 | I34: =IF($N$7="","",VLOOKUP($N$5,base3,35,0)) -> 6.5 | L34: =IF(OR($N$7="",G34="",I34=""),"",AVERAGE(D34:I34)) -> 5.5 | M34: =IF($N$7="","",IF(L35<2,"ضعيف",IF(AND(L35>=2,L35<=3),"دون المستوى",IF(AND(L35>3,L35<5),"متوسط",IF(AND(L35>=5,L35<7),"لابأس به",IF(AND(L35>=7,L35<8),"مستحسن",IF(AND(L35>=8,L35<=10),"ممتاز"))))))) -> لابأس به
A35: الفنية | D35: معدل الوحدة | L35: =IF($N$7="","",L34) -> 5.5
A36: الرياضيات | D36: الرياضيات | G36: =IF($N$7="","",VLOOKUP($N$5,base3,37,0)) -> 5.5 | I36: =IF($N$7="","",VLOOKUP($N$5,base3,38,0)) -> 6.5 | L36: =IF(OR($N$7="",G36="",I36=""),"",AVERAGE(D36:I36)) -> 6 | M36: =IF($N$7="","",IF(L37<2,"ضعيف",IF(AND(L37>=2,L37<=3),"دون المستوى",IF(AND(L37>3,L37<5),"متوسط",IF(AND(L37>=5,L37<7),"لابأس به",IF(AND(L37>=7,L37<8),"مستحسن",IF(AND(L37>=8,L37<=10),"ممتاز"))))))) -> لابأس به
D37: معدل الوحدة | L37: =IF($N$7="","",L36) -> 6
A38: الفرنسية | D38: الفرنسية | G38: =IF($N$7="","",IF(VLOOKUP($N$5,base3,40,0)="","",VLOOKUP($N$5,base3,40,0))) -> 3 | I38: =IF($N$7="","",IF(VLOOKUP($N$5,base3,41,0)="","",VLOOKUP($N$5,base3,41,0))) -> 5.5 | L38: =IF(OR($N$7="",G38="",I38=""),"",AVERAGE(D38:I38)) -> 4.25 | M38: =IF($N$7="","",IF(L39<2,"ضعيف",IF(AND(L39>=2,L39<=3),"دون المستوى",IF(AND(L39>3,L39<5),"متوسط",IF(AND(L39>=5,L39<7),"لابأس به",IF(AND(L39>=7,L39<8),"مستحسن",IF(AND(L39>=8,L39<=10),"ممتاز"))))))) -> متوسط
D39: معدل الوحدة | L39: =IF($N$7="","",L38) -> 4.25
A40: التربية | D40: التربية البدنية | G40: =IF($N$7="","",IF(VLOOKUP($N$5,base3,43,0)="","",VLOOKUP($N$5,base3,43,0))) -> 6 | I40: =IF($N$7="","",IF(VLOOKUP($N$5,base3,44,0)="","",VLOOKUP($N$5,base3,44,0))) -> 8 | L40: =IF(OR($N$7="",G40="",I40=""),"",AVERAGE(D40:I40)) -> 7 | M40: =IF($N$7="","",IF(L41="","معفى من التربية البدنية",IF(L41<2,"ضعيف",IF(AND(L41>=2,L41<=3),"دون المستوى",IF(AND(L41>3,L41<5),"متوسط",IF(AND(L41>=5,L41<7),"لابأس به",IF(AND(L41>=7,L41<8),"مستحسن",IF(AND(L41>=8,L41<=10),"ممتاز")))))))) -> مستحسن
A41: البدنية | D41: معدل الوحدة | L41: =IF($N$7="","",L40) -> 7
A43: مجموع معدل الوحدات | E43: =IF($N$7="","",VLOOKUP($N$5,base3,48,0)) -> 31.95 | H43: الميزة | L43: خاتم و توقيع رئيس المؤسسة
A44: المعدل الدوري | E44: =IF($N$7="","",VLOOKUP($N$5,base3,49,0)) -> 4.564285714 | H44: =IF($N$7="","",VLOOKUP($N$5,base3,51,0)) -> دون المتوسط
A45: المعدل الدورة الأولى | E45: =IF($N$7="","",VLOOKUP($N$5,base3,52,0)) -> 3.689285714
A46: المعدل العام السنوي | E46: =IF($N$7="","",VLOOKUP($N$5,base3,53,0)) -> 4.126785714
A47: الرتبة | E47: =IF($N$7="","",VLOOKUP($N$5,base3,50,0)) -> 14

Sheet مجمل
A1: =info!$A$1 -> المملكة المغربية | AA1: =info!J1 -> العـام الدراســي | AD1: =info!$M$1 -> 2018-2017
A2: =info!$A$2 -> وزارة التربية الوطنية و التكوين المهني | AA2: =info!J2 -> الأستاذ (ة) | AD2: =info!$M$2 -> هشام
A3: =info!$A$3 -> الأكاديمية الجهوية للتربية والتكوين | J3: مجمل نقط المراقبة السنوي | AA3: =info!J3 -> المستوى | AD3: =info!$M$3 -> الأول
A4: =info!$A$4 -> جهة دكالة عبدة | AA4: =info!J4 -> الوحدة المدرسية | AD4: =info!$M$4 -> لايهم
A5: =info!$A$5 -> نيابة المديرية | AA5: =info!J5 -> الفوج | AD5: =info!$M$5 -> 1
A6: =info!$A$6 -> المدرسة | AA6: =info!J6 -> عدد التلاميذ | AD6: =info!$M$6 -> 25
A8: ر.ت | B8: ر. تسجيل | C8: الاسم و النسب | D8: اللغة | G8: اللغة | J8: التربية | M8: النشاط | P8: التربية | S8: الرياضيات | V8: الفرنسية | Y8: التربية | AB8: المعدل | AD8: المعدل | AE8: الرتية | AF8: الميزة | AG8: قرار
D9: العربية | G9: الأمازيغية | J9: الإسلامية | M9: العلمي | P9: الفنية | Y9: البدنية | AB9: الدوري | AD9: السنوي | AG9: نهاية
D10: د1 | E10: د2 | F10: معدل | G10: د1 | H10: د2 | I10: معدل | J10: د1 | K10: د2 | L10: معدل | M10: د1 | N10: د2 | O10: معدل | P10: د1 | Q10: د2 | R10: معدل | S10: د1 | T10: د2 | U10: معدل | V10: د1 | W10: د2 | X10: معدل | Y10: د1 | Z10: د2 | AA10: معدل | AB10: د1 | AC10: د2 | AD10: معدل | AG10: السنة
A11: =IF(info!$A16="","",info!$A16) -> 1 | B11: =IF($A11="","",info!$F16) -> 0 | C11: =IF($A11="","",info!$C16) -> رضوان | D11: =IF('sem1'!V10="","",'sem1'!V10) -> 3.7 | E11: =IF('sem2'!V10="","",'sem2'!V10) -> 4.45 | F11: =IF(OR(D11="",E11=""),"",AVERAGE(D11:E11)) -> 4.075 | G11: =IF('sem1'!Y10="","",'sem1'!Y10) ->  | H11: =IF('sem2'!Y10="","",'sem2'!Y10) ->  | I11: =IF(OR(G11="",H11=""),"",AVERAGE(G11:H11)) ->  | J11: =IF('sem1'!AD10="","",'sem1'!AD10) -> 3.625 | K11: =IF('sem2'!AD10="","",'sem2'!AD10) -> 4.75 | L11: =IF(OR(J11="",K11=""),"",AVERAGE(J11:K11)) -> 4.1875 | M11: =IF('sem1'!AG10="","",'sem1'!AG10) -> 4 | N11: =IF('sem2'!AG10="","",'sem2'!AG10) -> 4.25 | O11: =IF(OR(M11="",N11=""),"",AVERAGE(M11:N11)) -> 4.125 | P11: =IF('sem1'!AJ10="","",'sem1'!AJ10) -> 5.25 | Q11: =IF('sem2'!AJ10="","",'sem2'!AJ10) -> 5.5 | R11: =IF(OR(P11="",Q11=""),"",AVERAGE(P11:Q11)) -> 5.375 | S11: =IF('sem1'!AM10="","",'sem1'!AM10) -> 3.25 | T11: =IF('sem2'!AM10="","",'sem2'!AM10) -> 6 | U11: =IF(OR(S11="",T11=""),"",AVERAGE(S11:T11)) -> 4.625 | V11: =IF('sem1'!AP10="","",'sem1'!AP10) -> 3.75 | W11: =IF('sem2'!AP10="","",'sem2'!AP10) -> 4.25 | X11: =IF(OR(V11="",W11=""),"",AVERAGE(V11:W11)) -> 4 | Y11: =IF('sem1'!AS10="","",'sem1'!AS10) -> 6 | Z11: =IF('sem2'!AS10="","",'sem2'!AS10) -> 7 | AA11: =IF(OR(Y11="",Z11=""),"",AVERAGE(Y11:Z11)) -> 6.5 | AB11: =IF(OR(D11="",J11="",M11="",P11="",S11="",V11=""),"",AVERAGE(D11,G11,J11,M11,P11,S11,V11,Y11)) -> 4.225 | AC11: =IF(OR(E11="",K11="",N11="",Q11="",T11="",W11=""),"",AVERAGE(E11,H11,K11,N11,Q11,T11,W11,Z11)) -> 5.171428571 | AD11: =IF(OR(AB11="",AC11=""),"",AVERAGE(AB11:AC11)) -> 4.698214286 | AE11: =IF(IF(AD11="","",RANK(AD11,$AD$11:$AD$60))="","",IF(AD11="","",RANK(AD11,$AD$11:$AD$60))) -> 18 | AF11: =IF(IF(AD11="","",IF(AD11>=8," تنويه ",IF(AD11>=7,"تشجيع ",IF(AD11>=6,"لوحة الشرف",IF(AD11>=5,"متوسط",IF(AD11>=4,"دون المتوسط",IF(AD11>=3,"ناقص",IF(AD11>=2,"تنبيه",IF(AD11>=1,"إنذار","توبيخ")))))))))="","",IF(AD11="","",IF(AD11>=8," تنويه ",IF(AD11>=7,"تشجيع ",IF(AD11>=6,"لوحة الشرف",IF(AD11>=5,"متوسط",IF(AD11>=4,"دون المتوسط",IF(AD11>=3,"ناقص",IF(AD11>=2,"تنبيه",IF(AD11>=1,"إنذار","توبيخ")))))))))) -> دون المتوسط | AG11: =IF(AD11="","",IF(AD11>=5,"ينتقل","يكرر")) -> يكرر
A12: =IF(info!$A17="","",info!$A17) -> 2 | B12: =IF($A12="","",info!$F17) -> 0 | C12: =IF($A12="","",info!$C17) -> محمد | D12: =IF('sem1'!V11="","",'sem1'!V11) -> 5.45 | E12: =IF('sem2'!V11="","",'sem2'!V11) -> 5.875 | F12: =IF(OR(D12="",E12=""),"",AVERAGE(D12:E12)) -> 5.6625 | G12: =IF('sem1'!Y11="","",'sem1'!Y11) ->  | H12: =IF('sem2'!Y11="","",'sem2'!Y11) ->  | I12: =IF(OR(G12="",H12=""),"",AVERAGE(G12:H12)) ->  | J12: =IF('sem1'!AD11="","",'sem1'!AD11) -> 5.4375 | K12: =IF('sem2'!AD11="","",'sem2'!AD11) -> 5.75 | L12: =IF(OR(J12="",K12=""),"",AVERAGE(J12:K12)) -> 5.59375 | M12: =IF('sem1'!AG11="","",'sem1'!AG11) -> 9.25 | N12: =IF('sem2'!AG11="","",'sem2'!AG11) -> 3.875 | O12: =IF(OR(M12="",N12=""),"",AVERAGE(M12:N12)) -> 6.5625 | P12: =IF('sem1'!AJ11="","",'sem1'!AJ11) -> 6.875 | Q12: =IF('sem2'!AJ11="","",'sem2'!AJ11) -> 4.375 | R12: =IF(OR(P12="",Q12=""),"",AVERAGE(P12:Q12)) -> 5.625 | S12: =IF('sem1'!AM11="","",'sem1'!AM11) -> 6.665 | T12: =IF('sem2'!AM11="","",'sem2'!AM11) -> 5.25 | U12: =IF(OR(S12="",T12=""),"",AVERAGE(S12:T12)) -> 5.9575 | V12: =IF('sem1'!AP11="","",'sem1'!AP11) -> 5.625 | W12: =IF('sem2'!AP11="","",'sem2'!AP11) -> 5.125 | X12: =IF(OR(V12="",W12=""),"",AVERAGE(V12:W12)) -> 5.375 | Y12: =IF('sem1'!AS11="","",'sem1'!AS11) -> 6.125 | Z12: =IF('sem2'!AS11="","",'sem2'!AS11) -> 6.25 | AA12: =IF(OR(Y12="",Z12=""),"",AVERAGE(Y12:Z12)) -> 6.1875 | AB12: =IF(OR(D12="",J12="",M12="",P12="",S12="",V12=""),"",AVERAGE(D12,G12,J12,M12,P12,S12,V12,Y12)) -> 6.489642857 | AC12: =IF(OR(E12="",K12="",N12="",Q12="",T12="",W12=""),"",AVERAGE(E12,H12,K12,N12,Q12,T12,W12,Z12)) -> 5.214285714 | AD12: =IF(OR(AB12="",AC12=""),"",AVERAGE(AB12:AC12)) -> 5.851964286 | AE12: =IF(IF(AD12="","",RANK(AD12,$AD$11:$AD$60))="","",IF(AD12="","",RANK(AD12,$AD$11:$AD$60))) -> 9 | AF12: =IF(IF(AD12="","",IF(AD12>=8," تنويه ",IF(AD12>=7,"تشجيع ",IF(AD12>=6,"لوحة الشرف",IF(AD12>=5,"متوسط",IF(AD12>=4,"دون المتوسط",IF(AD12>=3,"ناقص",IF(AD12>=2,"تنبيه",IF(AD12>=1,"إنذار","توبيخ")))))))))="","",IF(AD12="","",IF(AD12>=8," تنويه ",IF(AD12>=7,"تشجيع ",IF(AD12>=6,"لوحة الشرف",IF(AD12>=5,"متوسط",IF(AD12>=4,"دون المتوسط",IF(AD12>=3,"ناقص",IF(AD12>=2,"تنبيه",IF(AD12>=1,"إنذار","توبيخ")))))))))) -> متوسط | AG12: ينتقل
A13: =IF(info!$A18="","",info!$A18) -> 3 | B13: =IF($A13="","",info!$F18) -> 0 | C13: =IF($A13="","",info!$C18) -> سلمى | D13: =IF('sem1'!V12="","",'sem1'!V12) -> 4.75 | E13: =IF('sem2'!V12="","",'sem2'!V12) -> 4.6 | F13: 4.675 | G13: =IF('sem1'!Y12="","",'sem1'!Y12) ->  | H13: =IF('sem2'!Y12="","",'sem2'!Y12) ->  | J13: =IF('sem1'!AD12="","",'sem1'!AD12) -> 4.375 | K13: =IF('sem2'!AD12="","",'sem2'!AD12) -> 5.375 | L13: 4.875 | M13: =IF('sem1'!AG12="","",'sem1'!AG12) -> 5.83 | N13: =IF('sem2'!AG12="","",'sem2'!AG12) -> 4.375 | O13: 5.1025 | P13: =IF('sem1'!AJ12="","",'sem1'!AJ12) -> 7.25 | Q13: =IF('sem2'!AJ12="","",'sem2'!AJ12) -> 4.625 | R13: 5.9375 | S13: =IF('sem1'!AM12="","",'sem1'!AM12) -> 5.25 | T13: =IF('sem2'!AM12="","",'sem2'!AM12) -> 4.75 | U13: 5 | V13: =IF('sem1'!AP12="","",'sem1'!AP12) -> 4.5 | W13: =IF('sem2'!AP12="","",'sem2'!AP12) -> 4.875 | X13: 4.6875 | Y13: =IF('sem1'!AS12="","",'sem1'!AS12) -> 6.375 | Z13: =IF('sem2'!AS12="","",'sem2'!AS12) -> 6.25 | AA13: 6.3125 | AB13: 5.475714286 | AC13: 4.978571429 | AD13: 5.227142857 | AE13: 13 | AF13: متوسط | AG13: ينتقل
A14: =IF(info!$A19="","",info!$A19) -> 4 | B14: =IF($A14="","",info!$F19) -> 0 | C14: =IF($A14="","",info!$C19) -> شعيب | D14: =IF('sem1'!V13="","",'sem1'!V13) -> 6.575 | E14: =IF('sem2'!V13="","",'sem2'!V13) -> 6.55 | F14: 6.5625 | G14: =IF('sem1'!Y13="","",'sem1'!Y13) ->  | H14: =IF('sem2'!Y13="","",'sem2'!Y13) ->  | J14: =IF('sem1'!AD13="","",'sem1'!AD13) -> 7.21875 | K14: =IF('sem2'!AD13="","",'sem2'!AD13) -> 6.5625 | L14: 6.890625 | M14: =IF('sem1'!AG13="","",'sem1'!AG13) -> 7.75 | N14: =IF('sem2'!AG13="","",'sem2'!AG13) -> 8.5 | O14: 8.125 | P14: =IF('sem1'!AJ13="","",'sem1'!AJ13) -> 8.25 | Q14: =IF('sem2'!AJ13="","",'sem2'!AJ13) -> 7.5 | R14: 7.875 | S14: =IF('sem1'!AM13="","",'sem1'!AM13) -> 9.165 | T14: =IF('sem2'!AM13="","",'sem2'!AM13) -> 9.125 | U14: 9.145 | V14: =IF('sem1'!AP13="","",'sem1'!AP13) -> 6.5625 | W14: =IF('sem2'!AP13="","",'sem2'!AP13) -> 8 | X14: 7.28125 | Y14: =IF('sem1'!AS13="","",'sem1'!AS13) -> 6.5 | Z14: =IF('sem2'!AS13="","",'sem2'!AS13) -> 6.625 | AA14: 6.5625 | AB14: 7.431607143 | AC14: 7.551785714 | AD14: 7.491696429 | AE14: 3 | AF14: تشجيع | AG14: ينتقل
A15: =IF(info!$A20="","",info!$A20) -> 5 | B15: =IF($A15="","",info!$F20) -> 0 | C15: =IF($A15="","",info!$C20) -> ميلود | D15: =IF('sem1'!V14="","",'sem1'!V14) -> 5.05 | E15: =IF('sem2'!V14="","",'sem2'!V14) -> 5.325 | F15: 5.1875 | G15: =IF('sem1'!Y14="","",'sem1'!Y14) ->  | H15: =IF('sem2'!Y14="","",'sem2'!Y14) ->  | J15: =IF('sem1'!AD14="","",'sem1'!AD14) -> 5.15625 | K15: =IF('sem2'!AD14="","",'sem2'!AD14) -> 4.625 | L15: 4.890625 | M15: =IF('sem1'!AG14="","",'sem1'!AG14) -> 8 | N15: =IF('sem2'!AG14="","",'sem2'!AG14) -> 3.25 | O15: 5.625 | P15: =IF('sem1'!AJ14="","",'sem1'!AJ14) -> 6.5 | Q15: =IF('sem2'!AJ14="","",'sem2'!AJ14) -> 4.5 | R15: 5.5 | S15: =IF('sem1'!AM14="","",'sem1'!AM14) -> 5.455 | T15: =IF('sem2'!AM14="","",'sem2'!AM14) -> 4.5 | U15: 4.9775 | V15: =IF('sem1'!AP14="","",'sem1'!AP14) -> 4.4375 | W15: =IF('sem2'!AP14="","",'sem2'!AP14) -> 4.625 | X15: 4.53125 | Y15: =IF('sem1'!AS14="","",'sem1'!AS14) -> 6.125 | Z15: =IF('sem2'!AS14="","",'sem2'!AS14) -> 6.75 | AA15: 6.4375 | AB15: 5.817678571 | AC15: 4.796428571 | AD15: 5.307053571 | AE15: 11 | AF15: متوسط | AG15: ينتقل
A16: =IF(info!$A21="","",info!$A21) -> 6 | B16: =IF($A16="","",info!$F21) -> 0 | C16: =IF($A16="","",info!$C21) -> فاطمة | D16: =IF('sem1'!V15="","",'sem1'!V15) -> 3.05 | E16: =IF('sem2'!V15="","",'sem2'!V15) -> 2.55 | F16: 2.8 | G16: =IF('sem1'!Y15="","",'sem1'!Y15) ->  | H16: =IF('sem2'!Y15="","",'sem2'!Y15) ->  | J16: =IF('sem1'!AD15="","",'sem1'!AD15) -> 3.25 | K16: =IF('sem2'!AD15="","",'sem2'!AD15) -> 2.5 | L16: 2.875 | M16: =IF('sem1'!AG15="","",'sem1'!AG15) -> 4.5 | N16: =IF('sem2'!AG15="","",'sem2'!AG15) -> 1.5 | O16: 3 | P16: =IF('sem1'!AJ15="","",'sem1'!AJ15) -> 5.625 | Q16: =IF('sem2'!AJ15="","",'sem2'!AJ15) -> 2 | R16: 3.8125 | S16: =IF('sem1'!AM15="","",'sem1'!AM15) -> 3.54 | T16: =IF('sem2'!AM15="","",'sem2'!AM15) -> 1 | U16: 2.27 | V16: =IF('sem1'!AP15="","",'sem1'!AP15) -> 2.5 | W16: =IF('sem2'!AP15="","",'sem2'!AP15) -> 2 | X16: 2.25 | Y16: =IF('sem1'!AS15="","",'sem1'!AS15) -> 5.5 | Z16: =IF('sem2'!AS15="","",'sem2'!AS15) -> 5 | AA16: 5.25 | AB16: 3.995 | AC16: 2.364285714 | AD16: 3.179642857 | AE16: 24 | AF16: ناقص | AG16: يكرر
A17: =IF(info!$A22="","",info!$A22) -> 7 | B17: =IF($A17="","",info!$F22) -> 0 | C17: =IF($A17="","",info!$C22) -> مصطفى | D17: =IF('sem1'!V16="","",'sem1'!V16) -> 4 | E17: =IF('sem2'!V16="","",'sem2'!V16) -> 4.4 | F17: 4.2 | G17: =IF('sem1'!Y16="","",'sem1'!Y16) ->  | H17: =IF('sem2'!Y16="","",'sem2'!Y16) ->  | J17: =IF('sem1'!AD16="","",'sem1'!AD16) -> 3.25 | K17: =IF('sem2'!AD16="","",'sem2'!AD16) -> 4.125 | L17: 3.6875 | M17: =IF('sem1'!AG16="","",'sem1'!AG16) -> 6.58 | N17: =IF('sem2'!AG16="","",'sem2'!AG16) -> 7 | O17: 6.79 | P17: =IF('sem1'!AJ16="","",'sem1'!AJ16) -> 6 | Q17: =IF('sem2'!AJ16="","",'sem2'!AJ16) -> 6 | R17: 6 | S17: =IF('sem1'!AM16="","",'sem1'!AM16) -> 5 | T17: =IF('sem2'!AM16="","",'sem2'!AM16) -> 5.875 | U17: 5.4375 | V17: =IF('sem1'!AP16="","",'sem1'!AP16) -> 3 | W17: =IF('sem2'!AP16="","",'sem2'!AP16) -> 5.5 | X17: 4.25 | Y17: =IF('sem1'!AS16="","",'sem1'!AS16) -> 5.5 | Z17: =IF('sem2'!AS16="","",'sem2'!AS16) -> 6.5 | AA17: 6 | AB17: 4.761428571 | AC17: 5.628571429 | AD17: 5.195 | AE17: 16 | AF17: متوسط | AG17: ينتقل
A18: =IF(info!$A23="","",info!$A23) -> 8 | B18: =IF($A18="","",info!$F23) -> 0 | C18: =IF($A18="","",info!$C23) -> فريد | D18: =IF('sem1'!V17="","",'sem1'!V17) -> 5.725 | E18: =IF('sem2'!V17="","",'sem2'!V17) -> 6.975 | F18: 6.35 | G18: =IF('sem1'!Y17="","",'sem1'!Y17) ->  | H18: =IF('sem2'!Y17="","",'sem2'!Y17) ->  | J18: =IF('sem1'!AD17="","",'sem1'!AD17) -> 5.1875 | K18: =IF('sem2'!AD17="","",'sem2'!AD17) -> 6.71875 | L18: 5.953125 | M18: =IF('sem1'!AG17="","",'sem1'!AG17) -> 9.665 | N18: =IF('sem2'!AG17="","",'sem2'!AG17) -> 8.375 | O18: 9.02 | P18: =IF('sem1'!AJ17="","",'sem1'!AJ17) -> 8.125 | Q18: =IF('sem2'!AJ17="","",'sem2'!AJ17) -> 7.75 | R18: 7.9375 | S18: =IF('sem1'!AM17="","",'sem1'!AM17) -> 8.205 | T18: =IF('sem2'!AM17="","",'sem2'!AM17) -> 9.69 | U18: 8.9475 | V18: =IF('sem1'!AP17="","",'sem1'!AP17) -> 4.875 | W18: =IF('sem2'!AP17="","",'sem2'!AP17) -> 8.125 | X18: 6.5 | Y18: =IF('sem1'!AS17="","",'sem1'!AS17) -> 6.5 | Z18: =IF('sem2'!AS17="","",'sem2'!AS17) -> 7 | AA18: 6.75 | AB18: 6.8975 | AC18: 7.804821429 | AD18: 7.351160714 | AE18: 4 | AF18: تشجيع | AG18: ينتقل
A19: =IF(info!$A24="","",info!$A24) -> 9 | B19: =IF($A19="","",info!$F24) -> 0 | C19: =IF($A19="","",info!$C24) -> كمال | D19: =IF('sem1'!V18="","",'sem1'!V18) -> 6.65 | E19: =IF('sem2'!V18="","",'sem2'!V18) -> 7.075 | F19: 6.8625 | G19: =IF('sem1'!Y18="","",'sem1'!Y18) ->  | H19: =IF('sem2'!Y18="","",'sem2'!Y18) ->  | J19: =IF('sem1'!AD18="","",'sem1'!AD18) -> 7.75 | K19: =IF('sem2'!AD18="","",'sem2'!AD18) -> 7.25 | L19: 7.5 | M19: =IF('sem1'!AG18="","",'sem1'!AG18) -> 9.33 | N19: =IF('sem2'!AG18="","",'sem2'!AG18) -> 8.625 | O19: 8.9775 | P19: =IF('sem1'!AJ18="","",'sem1'!AJ18) -> 8.375 | Q19: =IF('sem2'!AJ18="","",'sem2'!AJ18) -> 7.125 | R19: 7.75 | S19: =IF('sem1'!AM18="","",'sem1'!AM18) -> 8.125 | T19: =IF('sem2'!AM18="","",'sem2'!AM18) -> 9.125 | U19: 8.625 | V19: =IF('sem1'!AP18="","",'sem1'!AP18) -> 6.75 | W19: =IF('sem2'!AP18="","",'sem2'!AP18) -> 7.125 | X19: 6.9375 | Y19: =IF('sem1'!AS18="","",'sem1'!AS18) -> 6.25 | Z19: =IF('sem2'!AS18="","",'sem2'!AS18) -> 7 | AA19: 6.625 | AB19: 7.604285714 | AC19: 7.617857143 | AD19: 7.611071429 | AE19: 2 | AF19: تشجيع | AG19: ينتقل
A20: =IF(info!$A25="","",info!$A25) -> 10 | B20: =IF($A20="","",info!$F25) -> 0 | C20: =IF($A20="","",info!$C25) -> لبنى | D20: =IF('sem1'!V19="","",'sem1'!V19) -> 4.2 | E20: =IF('sem2'!V19="","",'sem2'!V19) -> 3.75 | F20: 3.975 | G20: =IF('sem1'!Y19="","",'sem1'!Y19) ->  | H20: =IF('sem2'!Y19="","",'sem2'!Y19) ->  | J20: =IF('sem1'!AD19="","",'sem1'!AD19) -> 3.875 | K20: =IF('sem2'!AD19="","",'sem2'!AD19) -> 3.4375 | L20: 3.65625 | M20: =IF('sem1'!AG19="","",'sem1'!AG19) -> 5.5 | N20: =IF('sem2'!AG19="","",'sem2'!AG19) -> 3.375 | O20: 4.4375 | P20: =IF('sem1'!AJ19="","",'sem1'!AJ19) -> 6 | Q20: =IF('sem2'!AJ19="","",'sem2'!AJ19) -> 2.5 | R20: 4.25 | S20: =IF('sem1'!AM19="","",'sem1'!AM19) -> 2.875 | T20: =IF('sem2'!AM19="","",'sem2'!AM19) -> 3.25 | U20: 3.0625 | V20: =IF('sem1'!AP19="","",'sem1'!AP19) -> 3.75 | W20: =IF('sem2'!AP19="","",'sem2'!AP19) -> 2.5 | X20: 3.125 | Y20: =IF('sem1'!AS19="","",'sem1'!AS19) -> 5.75 | Z20: =IF('sem2'!AS19="","",'sem2'!AS19) -> 5 | AA20: 5.375 | AB20: 4.564285714 | AC20: 3.401785714 | AD20: 3.983035714 | AE20: 20 | AF20: ناقص | AG20: يكرر
A21: =IF(info!$A26="","",info!$A26) -> 11 | B21: =IF($A21="","",info!$F26) -> 0 | C21: =IF($A21="","",info!$C26) -> أحمد | D21: =IF('sem1'!V20="","",'sem1'!V20) -> 6.725 | E21: =IF('sem2'!V20="","",'sem2'!V20) -> 7.675 | F21: 7.2 | G21: =IF('sem1'!Y20="","",'sem1'!Y20) ->  | H21: =IF('sem2'!Y20="","",'sem2'!Y20) ->  | J21: =IF('sem1'!AD20="","",'sem1'!AD20) -> 5.125 | K21: =IF('sem2'!AD20="","",'sem2'!AD20) -> 6.875 | L21: 6 | M21: =IF('sem1'!AG20="","",'sem1'!AG20) -> 7.75 | N21: =IF('sem2'!AG20="","",'sem2'!AG20) -> 6.25 | O21: 7 | P21: =IF('sem1'!AJ20="","",'sem1'!AJ20) -> 8 | Q21: =IF('sem2'!AJ20="","",'sem2'!AJ20) -> 6.125 | R21: 7.0625 | S21: =IF('sem1'!AM20="","",'sem1'!AM20) -> 7.83 | T21: =IF('sem2'!AM20="","",'sem2'!AM20) -> 8.5 | U21: 8.165 | V21: =IF('sem1'!AP20="","",'sem1'!AP20) -> 5.25 | W21: =IF('sem2'!AP20="","",'sem2'!AP20) -> 6.625 | X21: 5.9375 | Y21: =IF('sem1'!AS20="","",'sem1'!AS20) -> 6.5 | Z21: =IF('sem2'!AS20="","",'sem2'!AS20) -> 7.25 | AA21: 6.875 | AB21: 6.74 | AC21: 7.042857143 | AD21: 6.891428571 | AE21: 6 | AF21: لوحة الشرف | AG21: ينتقل
A22: =IF(info!$A27="","",info!$A27) -> 12 | B22: =IF($A22="","",info!$F27) -> 0 | C22: =IF($A22="","",info!$C27) -> سلمان | D22: =IF('sem1'!V21="","",'sem1'!V21) -> 7.075 | E22: =IF('sem2'!V21="","",'sem2'!V21) -> 8.275 | F22: 7.675 | G22: =IF('sem1'!Y21="","",'sem1'!Y21) ->  | H22: =IF('sem2'!Y21="","",'sem2'!Y21) ->  | J22: =IF('sem1'!AD21="","",'sem1'!AD21) -> 5 | K22: =IF('sem2'!AD21="","",'sem2'!AD21) -> 7.75 | L22: 6.375 | M22: =IF('sem1'!AG21="","",'sem1'!AG21) -> 10 | N22: =IF('sem2'!AG21="","",'sem2'!AG21) -> 9 | O22: 9.5 | P22: =IF('sem1'!AJ21="","",'sem1'!AJ21) -> 8.75 | Q22: =IF('sem2'!AJ21="","",'sem2'!AJ21) -> 8.5 | R22: 8.625 | S22: =IF('sem1'!AM21="","",'sem1'!AM21) -> 8.94 | T22: =IF('sem2'!AM21="","",'sem2'!AM21) -> 9.315 | U22: 9.1275 | V22: =IF('sem1'!AP21="","",'sem1'!AP21) -> 7 | W22: =IF('sem2'!AP21="","",'sem2'!AP21) -> 9.25 | X22: 8.125 | Y22: =IF('sem1'!AS21="","",'sem1'!AS21) -> 6.5 | Z22: =IF('sem2'!AS21="","",'sem2'!AS21) -> 7.5 | AA22: 7 | AB22: 7.609285714 | AC22: 8.512857143 | AD22: 8.061071429 | AE22: 1 | AF22: تنويه | AG22: ينتقل
A23: =IF(info!$A28="","",info!$A28) -> 13 | B23: =IF($A23="","",info!$F28) -> 0 | C23: =IF($A23="","",info!$C28) -> مروة | D23: =IF('sem1'!V22="","",'sem1'!V22) -> 3.95 | E23: =IF('sem2'!V22="","",'sem2'!V22) -> 4.5 | F23: 4.225 | G23: =IF('sem1'!Y22="","",'sem1'!Y22) ->  | H23: =IF('sem2'!Y22="","",'sem2'!Y22) ->  | J23: =IF('sem1'!AD22="","",'sem1'!AD22) -> 3.875 | K23: =IF('sem2'!AD22="","",'sem2'!AD22) -> 4.375 | L23: 4.125 | M23: =IF('sem1'!AG22="","",'sem1'!AG22) -> 5.875 | N23: =IF('sem2'!AG22="","",'sem2'!AG22) -> 5.75 | O23: 5.8125 | P23: =IF('sem1'!AJ22="","",'sem1'!AJ22) -> 6.375 | Q23: =IF('sem2'!AJ22="","",'sem2'!AJ22) -> 6.5 | R23: 6.4375 | S23: =IF('sem1'!AM22="","",'sem1'!AM22) -> 3.33 | T23: =IF('sem2'!AM22="","",'sem2'!AM22) -> 4.69 | U23: 4.01 | V23: =IF('sem1'!AP22="","",'sem1'!AP22) -> 3.25 | W23: =IF('sem2'!AP22="","",'sem2'!AP22) -> 6.25 | X23: 4.75 | Y23: =IF('sem1'!AS22="","",'sem1'!AS22) -> 6.25 | Z23: =IF('sem2'!AS22="","",'sem2'!AS22) -> 6.75 | AA23: 6.5 | AB23: 4.700714286 | AC23: 5.545 | AD23: 5.122857143 | AE23: 17 | AF23: متوسط | AG23: ينتقل
A24: =IF(info!$A29="","",info!$A29) -> 14 | B24: =IF($A24="","",info!$F29) -> 0 | C24: =IF($A24="","",info!$C29) -> خالد | D24: =IF('sem1'!V23="","",'sem1'!V23) -> 6.275 | E24: =IF('sem2'!V23="","",'sem2'!V23) -> 6.925 | F24: 6.6 | G24: =IF('sem1'!Y23="","",'sem1'!Y23) ->  | H24: =IF('sem2'!Y23="","",'sem2'!Y23) ->  | J24: =IF('sem1'!AD23="","",'sem1'!AD23) -> 5 | K24: =IF('sem2'!AD23="","",'sem2'!AD23) -> 6.8125 | L24: 5.90625 | M24: =IF('sem1'!AG23="","",'sem1'!AG23) -> 7.665 | N24: =IF('sem2'!AG23="","",'sem2'!AG23) -> 5.25 | O24: 6.4575 | P24: =IF('sem1'!AJ23="","",'sem1'!AJ23) -> 7.25 | Q24: =IF('sem2'!AJ23="","",'sem2'!AJ23) -> 7.75 | R24: 7.5 | S24: =IF('sem1'!AM23="","",'sem1'!AM23) -> 6.625 | T24: =IF('sem2'!AM23="","",'sem2'!AM23) -> 8.75 | U24: 7.6875 | V24: =IF('sem1'!AP23="","",'sem1'!AP23) -> 5.25 | W24: =IF('sem2'!AP23="","",'sem2'!AP23) -> 6.5 | X24: 5.875 | Y24: =IF('sem1'!AS23="","",'sem1'!AS23) -> 6.5 | Z24: =IF('sem2'!AS23="","",'sem2'!AS23) -> 7.375 | AA24: 6.9375 | AB24: 6.366428571 | AC24: 7.051785714 | AD24: 6.709107143 | AE24: 8 | AF24: لوحة الشرف | AG24: ينتقل
A25: =IF(info!$A30="","",info!$A30) -> 15 | B25: =IF($A25="","",info!$F30) -> 0 | C25: =IF($A25="","",info!$C30) -> سفيان | D25: =IF('sem1'!V24="","",'sem1'!V24) -> 4.5 | E25: =IF('sem2'!V24="","",'sem2'!V24) -> 5.1 | F25: 4.8 | G25: =IF('sem1'!Y24="","",'sem1'!Y24) ->  | H25: =IF('sem2'!Y24="","",'sem2'!Y24) ->  | J25: =IF('sem1'!AD24="","",'sem1'!AD24) -> 3.875 | K25: =IF('sem2'!AD24="","",'sem2'!AD24) -> 5.0625 | L25: 4.46875 | M25: =IF('sem1'!AG24="","",'sem1'!AG24) -> 4.415 | N25: =IF('sem2'!AG24="","",'sem2'!AG24) -> 5.875 | O25: 5.145 | P25: =IF('sem1'!AJ24="","",'sem1'!AJ24) -> 7.375 | Q25: =IF('sem2'!AJ24="","",'sem2'!AJ24) -> 6 | R25: 6.6875 | S25: =IF('sem1'!AM24="","",'sem1'!AM24) -> 5.04 | T25: =IF('sem2'!AM24="","",'sem2'!AM24) -> 4.44 | U25: 4.74 | V25: =IF('sem1'!AP24="","",'sem1'!AP24) -> 3.75 | W25: =IF('sem2'!AP24="","",'sem2'!AP24) -> 5.375 | X25: 4.5625 | Y25: =IF('sem1'!AS24="","",'sem1'!AS24) -> 5.75 | Z25: =IF('sem2'!AS24="","",'sem2'!AS24) -> 6.25 | AA25: 6 | AB25: 4.957857143 | AC25: 5.443214286 | AD25: 5.200535714 | AE25: 15 | AF25: متوسط | AG25: ينتقل
A26: =IF(info!$A31="","",info!$A31) -> 16 | B26: =IF($A26="","",info!$F31) -> 0 | C26: =IF($A26="","",info!$C31) -> لمياء | D26: =IF('sem1'!V25="","",'sem1'!V25) -> 4.875 | E26: =IF('sem2'!V25="","",'sem2'!V25) -> 5.9 | F26: 5.3875 | G26: =IF('sem1'!Y25="","",'sem1'!Y25) ->  | H26: =IF('sem2'!Y25="","",'sem2'!Y25) ->  | J26: =IF('sem1'!AD25="","",'sem1'!AD25) -> 4.875 | K26: =IF('sem2'!AD25="","",'sem2'!AD25) -> 5.5625 | L26: 5.21875 | M26: =IF('sem1'!AG25="","",'sem1'!AG25) -> 6.83 | N26: =IF('sem2'!AG25="","",'sem2'!AG25) -> 8 | O26: 7.415 | P26: =IF('sem1'!AJ25="","",'sem1'!AJ25) -> 6.625 | Q26: =IF('sem2'!AJ25="","",'sem2'!AJ25) -> 4.75 | R26: 5.6875 | S26: =IF('sem1'!AM25="","",'sem1'!AM25) -> 5.29 | T26: =IF('sem2'!AM25="","",'sem2'!AM25) -> 4.94 | U26: 5.115 | V26: =IF('sem1'!AP25="","",'sem1'!AP25) -> 4.25 | W26: =IF('sem2'!AP25="","",'sem2'!AP25) -> 5.75 | X26: 5 | Y26: =IF('sem1'!AS25="","",'sem1'!AS25) -> 6 | Z26: =IF('sem2'!AS25="","",'sem2'!AS25) -> 6.25 | AA26: 6.125 | AB26: 5.535 | AC26: 5.878928571 | AD26: 5.706964286 | AE26: 10 | AF26: متوسط | AG26: ينتقل
A27: =IF(info!$A32="","",info!$A32) -> 17 | B27: =IF($A27="","",info!$F32) -> 0 | C27: =IF($A27="","",info!$C32) -> مريم | D27: =IF('sem1'!V26="","",'sem1'!V26) -> 6.95 | E27: =IF('sem2'!V26="","",'sem2'!V26) -> 7.05 | F27: 7 | G27: =IF('sem1'!Y26="","",'sem1'!Y26) ->  | H27: =IF('sem2'!Y26="","",'sem2'!Y26) ->  | J27: =IF('sem1'!AD26="","",'sem1'!AD26) -> 6.8125 | K27: =IF('sem2'!AD26="","",'sem2'!AD26) -> 6.375 | L27: 6.59375 | M27: =IF('sem1'!AG26="","",'sem1'!AG26) -> 9.165 | N27: =IF('sem2'!AG26="","",'sem2'!AG26) -> 7 | O27: 8.0825 | P27: =IF('sem1'!AJ26="","",'sem1'!AJ26) -> 7.5 | Q27: =IF('sem2'!AJ26="","",'sem2'!AJ26) -> 6.5 | R27: 7 | S27: =IF('sem1'!AM26="","",'sem1'!AM26) -> 8.04 | T27: =IF('sem2'!AM26="","",'sem2'!AM26) -> 8.19 | U27: 8.115 | V27: =IF('sem1'!AP26="","",'sem1'!AP26) -> 6.375 | W27: =IF('sem2'!AP26="","",'sem2'!AP26) -> 7.875 | X27: 7.125 | Y27: =IF('sem1'!AS26="","",'sem1'!AS26) -> 6.75 | Z27: =IF('sem2'!AS26="","",'sem2'!AS26) -> 6.75 | AA27: 6.75 | AB27: 7.370357143 | AC27: 7.105714286 | AD27: 7.238035714 | AE27: 5 | AF27: تشجيع | AG27: ينتقل
A28: =IF(info!$A33="","",info!$A33) -> 18 | B28: =IF($A28="","",info!$F33) -> 0 | C28: =IF($A28="","",info!$C33) -> لقمان | D28: =IF('sem1'!V27="","",'sem1'!V27) -> 3.6 | E28: =IF('sem2'!V27="","",'sem2'!V27) -> 3.35 | F28: 3.475 | G28: =IF('sem1'!Y27="","",'sem1'!Y27) ->  | H28: =IF('sem2'!Y27="","",'sem2'!Y27) ->  | J28: =IF('sem1'!AD27="","",'sem1'!AD27) -> 4.25 | K28: =IF('sem2'!AD27="","",'sem2'!AD27) -> 3.625 | L28: 3.9375 | M28: =IF('sem1'!AG27="","",'sem1'!AG27) -> 5.33 | N28: =IF('sem2'!AG27="","",'sem2'!AG27) -> 2.25 | O28: 3.79 | P28: =IF('sem1'!AJ27="","",'sem1'!AJ27) -> 5.625 | Q28: =IF('sem2'!AJ27="","",'sem2'!AJ27) -> 3 | R28: 4.3125 | S28: =IF('sem1'!AM27="","",'sem1'!AM27) -> 2.125 | T28: =IF('sem2'!AM27="","",'sem2'!AM27) -> 1.875 | U28: 2 | V28: =IF('sem1'!AP27="","",'sem1'!AP27) -> 4 | W28: =IF('sem2'!AP27="","",'sem2'!AP27) -> 2.75 | X28: 3.375 | Y28: =IF('sem1'!AS27="","",'sem1'!AS27) -> 6.375 | Z28: =IF('sem2'!AS27="","",'sem2'!AS27) -> 5.5 | AA28: 5.9375 | AB28: 4.472142857 | AC28: 3.192857143 | AD28: 3.8325 | AE28: 23 | AF28: ناقص | AG28: يكرر
A29: =IF(info!$A34="","",info!$A34) -> 19 | B29: =IF($A29="","",info!$F34) -> 0 | C29: =IF($A29="","",info!$C34) -> محمد | D29: =IF('sem1'!V28="","",'sem1'!V28) -> 2.8 | E29: =IF('sem2'!V28="","",'sem2'!V28) -> 1.5 | F29: 2.15 | G29: =IF('sem1'!Y28="","",'sem1'!Y28) ->  | H29: =IF('sem2'!Y28="","",'sem2'!Y28) ->  | J29: =IF('sem1'!AD28="","",'sem1'!AD28) -> 3.625 | K29: =IF('sem2'!AD28="","",'sem2'!AD28) -> 2.25 | L29: 2.9375 | M29: =IF('sem1'!AG28="","",'sem1'!AG28) -> 2.75 | N29: =IF('sem2'!AG28="","",'sem2'!AG28) -> 1.75 | O29: 2.25 | P29: =IF('sem1'!AJ28="","",'sem1'!AJ28) -> 4.5 | Q29: =IF('sem2'!AJ28="","",'sem2'!AJ28) -> 1.5 | R29: 3 | S29: =IF('sem1'!AM28="","",'sem1'!AM28) -> 2.75 | T29: =IF('sem2'!AM28="","",'sem2'!AM28) -> 1 | U29: 1.875 | V29: =IF('sem1'!AP28="","",'sem1'!AP28) -> 2.75 | W29: =IF('sem2'!AP28="","",'sem2'!AP28) -> 1.75 | X29: 2.25 | Y29: =IF('sem1'!AS28="","",'sem1'!AS28) -> 5.875 | Z29: =IF('sem2'!AS28="","",'sem2'!AS28) -> 4.5 | AA29: 5.1875 | AB29: 3.578571429 | AC29: 2.035714286 | AD29: 2.807142857 | AE29: 25 | AF29: تنبيه | AG29: يكرر
A30: =IF(info!$A35="","",info!$A35) -> 20 | B30: =IF($A30="","",info!$F35) -> 0 | C30: =IF($A30="","",info!$C35) -> سليم | D30: =IF('sem1'!V29="","",'sem1'!V29) -> 6.25 | E30: =IF('sem2'!V29="","",'sem2'!V29) -> 6.825 | F30: 6.5375 | G30: =IF('sem1'!Y29="","",'sem1'!Y29) ->  | H30: =IF('sem2'!Y29="","",'sem2'!Y29) ->  | J30: =IF('sem1'!AD29="","",'sem1'!AD29) -> 5.6875 | K30: =IF('sem2'!AD29="","",'sem2'!AD29) -> 5.125 | L30: 5.40625 | M30: =IF('sem1'!AG29="","",'sem1'!AG29) -> 7.25 | N30: =IF('sem2'!AG29="","",'sem2'!AG29) -> 9.25 | O30: 8.25 | P30: =IF('sem1'!AJ29="","",'sem1'!AJ29) -> 8.25 | Q30: =IF('sem2'!AJ29="","",'sem2'!AJ29) -> 7.125 | R30: 7.6875 | S30: =IF('sem1'!AM29="","",'sem1'!AM29) -> 6.915 | T30: =IF('sem2'!AM29="","",'sem2'!AM29) -> 6.44 | U30: 6.6775 | V30: =IF('sem1'!AP29="","",'sem1'!AP29) -> 6.125 | W30: =IF('sem2'!AP29="","",'sem2'!AP29) -> 7 | X30: 6.5625 | Y30: =IF('sem1'!AS29="","",'sem1'!AS29) -> 6.5 | Z30: =IF('sem2'!AS29="","",'sem2'!AS29) -> 6.875 | AA30: 6.6875 | AB30: 6.711071429 | AC30: 6.948571429 | AD30: 6.829821429 | AE30: 7 | AF30: لوحة الشرف | AG30: ينتقل
A31: =IF(info!$A36="","",info!$A36) -> 21 | B31: =IF($A31="","",info!$F36) -> 0 | C31: =IF($A31="","",info!$C36) -> فتيحة | D31: =IF('sem1'!V30="","",'sem1'!V30) -> 4.5 | E31: =IF('sem2'!V30="","",'sem2'!V30) -> 5 | F31: 4.75 | G31: =IF('sem1'!Y30="","",'sem1'!Y30) ->  | H31: =IF('sem2'!Y30="","",'sem2'!Y30) ->  | J31: =IF('sem1'!AD30="","",'sem1'!AD30) -> 4.25 | K31: =IF('sem2'!AD30="","",'sem2'!AD30) -> 4.6875 | L31: 4.46875 | M31: =IF('sem1'!AG30="","",'sem1'!AG30) -> 6.58 | N31: =IF('sem2'!AG30="","",'sem2'!AG30) -> 5.375 | O31: 5.9775 | P31: =IF('sem1'!AJ30="","",'sem1'!AJ30) -> 7.25 | Q31: =IF('sem2'!AJ30="","",'sem2'!AJ30) -> 5 | R31: 6.125 | S31: =IF('sem1'!AM30="","",'sem1'!AM30) -> 3.665 | T31: =IF('sem2'!AM30="","",'sem2'!AM30) -> 6.19 | U31: 4.9275 | V31: =IF('sem1'!AP30="","",'sem1'!AP30) -> 4 | W31: =IF('sem2'!AP30="","",'sem2'!AP30) -> 4.875 | X31: 4.4375 | Y31: =IF('sem1'!AS30="","",'sem1'!AS30) -> 6.25 | Z31: =IF('sem2'!AS30="","",'sem2'!AS30) -> 6.375 | AA31: 6.3125 | AB31: 5.213571429 | AC31: 5.3575 | AD31: 5.285535714 | AE31: 12 | AF31: متوسط | AG31: ينتقل
A32: =IF(info!$A37="","",info!$A37) -> 22 | B32: =IF($A32="","",info!$F37) -> 0 | C32: =IF($A32="","",info!$C37) -> رقية | D32: =IF('sem1'!V31="","",'sem1'!V31) -> 3.35 | E32: =IF('sem2'!V31="","",'sem2'!V31) -> 3.45 | F32: 3.4 | G32: =IF('sem1'!Y31="","",'sem1'!Y31) ->  | H32: =IF('sem2'!Y31="","",'sem2'!Y31) ->  | J32: =IF('sem1'!AD31="","",'sem1'!AD31) -> 3.8125 | K32: =IF('sem2'!AD31="","",'sem2'!AD31) -> 3.625 | L32: 3.71875 | M32: =IF('sem1'!AG31="","",'sem1'!AG31) -> 5.75 | N32: =IF('sem2'!AG31="","",'sem2'!AG31) -> 3.25 | O32: 4.5 | P32: =IF('sem1'!AJ31="","",'sem1'!AJ31) -> 6.25 | Q32: =IF('sem2'!AJ31="","",'sem2'!AJ31) -> 3 | R32: 4.625 | S32: =IF('sem1'!AM31="","",'sem1'!AM31) -> 2 | T32: =IF('sem2'!AM31="","",'sem2'!AM31) -> 1.875 | U32: 1.9375 | V32: =IF('sem1'!AP31="","",'sem1'!AP31) -> 3.375 | W32: =IF('sem2'!AP31="","",'sem2'!AP31) -> 4 | X32: 3.6875 | Y32: =IF('sem1'!AS31="","",'sem1'!AS31) -> 5.75 | Z32: =IF('sem2'!AS31="","",'sem2'!AS31) -> 4.75 | AA32: 5.25 | AB32: 4.326785714 | AC32: 3.421428571 | AD32: 3.874107143 | AE32: 22 | AF32: ناقص | AG32: يكرر
A33: =IF(info!$A38="","",info!$A38) -> 23 | B33: =IF($A33="","",info!$F38) -> 0 | C33: =IF($A33="","",info!$C38) -> جميلة | D33: =IF('sem1'!V32="","",'sem1'!V32) -> 3.375 | E33: =IF('sem2'!V32="","",'sem2'!V32) -> 2.8 | F33: 3.0875 | G33: =IF('sem1'!Y32="","",'sem1'!Y32) ->  | H33: =IF('sem2'!Y32="","",'sem2'!Y32) ->  | J33: =IF('sem1'!AD32="","",'sem1'!AD32) -> 4.28125 | K33: =IF('sem2'!AD32="","",'sem2'!AD32) -> 3.25 | L33: 3.765625 | M33: =IF('sem1'!AG32="","",'sem1'!AG32) -> 4.25 | N33: =IF('sem2'!AG32="","",'sem2'!AG32) -> 2.75 | O33: 3.5 | P33: =IF('sem1'!AJ32="","",'sem1'!AJ32) -> 6.5 | Q33: =IF('sem2'!AJ32="","",'sem2'!AJ32) -> 4.5 | R33: 5.5 | S33: =IF('sem1'!AM32="","",'sem1'!AM32) -> 4.25 | T33: =IF('sem2'!AM32="","",'sem2'!AM32) -> 2.375 | U33: 3.3125 | V33: =IF('sem1'!AP32="","",'sem1'!AP32) -> 2.9375 | W33: =IF('sem2'!AP32="","",'sem2'!AP32) -> 2.75 | X33: 2.84375 | Y33: =IF('sem1'!AS32="","",'sem1'!AS32) -> 5.625 | Z33: =IF('sem2'!AS32="","",'sem2'!AS32) -> 5.25 | AA33: 5.4375 | AB33: 4.459821429 | AC33: 3.382142857 | AD33: 3.920982143 | AE33: 21 | AF33: ناقص | AG33: يكرر
A34: =IF(info!$A39="","",info!$A39) -> 24 | B34: =IF($A34="","",info!$F39) -> 0 | C34: =IF($A34="","",info!$C39) -> نادية | D34: =IF('sem1'!V33="","",'sem1'!V33) -> 3.6 | E34: =IF('sem2'!V33="","",'sem2'!V33) -> 3.85 | F34: 3.725 | G34: =IF('sem1'!Y33="","",'sem1'!Y33) ->  | H34: =IF('sem2'!Y33="","",'sem2'!Y33) ->  | J34: =IF('sem1'!AD33="","",'sem1'!AD33) -> 4.5 | K34: =IF('sem2'!AD33="","",'sem2'!AD33) -> 3.875 | L34: 4.1875 | M34: =IF('sem1'!AG33="","",'sem1'!AG33) -> 7.5 | N34: =IF('sem2'!AG33="","",'sem2'!AG33) -> 3 | O34: 5.25 | P34: =IF('sem1'!AJ33="","",'sem1'!AJ33) -> 6.5 | Q34: =IF('sem2'!AJ33="","",'sem2'!AJ33) -> 3 | R34: 4.75 | S34: =IF('sem1'!AM33="","",'sem1'!AM33) -> 3.25 | T34: =IF('sem2'!AM33="","",'sem2'!AM33) -> 3.315 | U34: 3.2825 | V34: =IF('sem1'!AP33="","",'sem1'!AP33) -> 3.75 | W34: =IF('sem2'!AP33="","",'sem2'!AP33) -> 3 | X34: 3.375 | Y34: =IF('sem1'!AS33="","",'sem1'!AS33) -> 5.75 | Z34: =IF('sem2'!AS33="","",'sem2'!AS33) -> 5 | AA34: 5.375 | AB34: 4.978571429 | AC34: 3.577142857 | AD34: 4.277857143 | AE34: 19 | AF34: دون المتوسط | AG34: يكرر
A35: =IF(info!$A40="","",info!$A40) -> 25 | B35: =IF($A35="","",info!$F40) -> 0 | C35: =IF($A35="","",info!$C40) -> سكينة | D35: =IF('sem1'!V34="","",'sem1'!V34) -> 4.9 | E35: =IF('sem2'!V34="","",'sem2'!V34) -> 5.9 | F35: 5.4 | G35: =IF('sem1'!Y34="","",'sem1'!Y34) ->  | H35: =IF('sem2'!Y34="","",'sem2'!Y34) ->  | J35: =IF('sem1'!AD34="","",'sem1'!AD34) -> 4.59375 | K35: =IF('sem2'!AD34="","",'sem2'!AD34) -> 5.125 | L35: 4.859375 | M35: =IF('sem1'!AG34="","",'sem1'!AG34) -> 5.58 | N35: =IF('sem2'!AG34="","",'sem2'!AG34) -> 3.75 | O35: 4.665 | P35: =IF('sem1'!AJ34="","",'sem1'!AJ34) -> 6.625 | Q35: =IF('sem2'!AJ34="","",'sem2'!AJ34) -> 5.5 | R35: 6.0625 | S35: =IF('sem1'!AM34="","",'sem1'!AM34) -> 5.25 | T35: =IF('sem2'!AM34="","",'sem2'!AM34) -> 4.94 | U35: 5.095 | V35: =IF('sem1'!AP34="","",'sem1'!AP34) -> 4.1875 | W35: =IF('sem2'!AP34="","",'sem2'!AP34) -> 4.5 | X35: 4.34375 | Y35: =IF('sem1'!AS34="","",'sem1'!AS34) -> 5.75 | Z35: =IF('sem2'!AS34="","",'sem2'!AS34) -> 6.25 | AA35: 6 | AB35: 5.269464286 | AC35: 5.137857143 | AD35: 5.203660714 | AE35: 14 | AF35: متوسط | AG35: ينتقل
A36: =IF(info!$A41="","",info!$A41) ->  | B36: =IF($A36="","",info!$F41) ->  | C36: =IF($A36="","",info!$C41) ->  | D36: =IF('sem1'!V35="","",'sem1'!V35) ->  | E36: =IF('sem2'!V35="","",'sem2'!V35) ->  | G36: =IF('sem1'!Y35="","",'sem1'!Y35) ->  | H36: =IF('sem2'!Y35="","",'sem2'!Y35) ->  | J36: =IF('sem1'!AD35="","",'sem1'!AD35) ->  | K36: =IF('sem2'!AD35="","",'sem2'!AD35) ->  | M36: =IF('sem1'!AG35="","",'sem1'!AG35) ->  | N36: =IF('sem2'!AG35="","",'sem2'!AG35) ->  | P36: =IF('sem1'!AJ35="","",'sem1'!AJ35) ->  | Q36: =IF('sem2'!AJ35="","",'sem2'!AJ35) ->  | S36: =IF('sem1'!AM35="","",'sem1'!AM35) ->  | T36: =IF('sem2'!AM35="","",'sem2'!AM35) ->  | V36: =IF('sem1'!AP35="","",'sem1'!AP35) ->  | W36: =IF('sem2'!AP35="","",'sem2'!AP35) ->  | Y36: =IF('sem1'!AS35="","",'sem1'!AS35) ->  | Z36: =IF('sem2'!AS35="","",'sem2'!AS35) -> 
A37: =IF(info!$A42="","",info!$A42) ->  | B37: =IF($A37="","",info!$F42) ->  | C37: =IF($A37="","",info!$C42) ->  | D37: =IF('sem1'!V36="","",'sem1'!V36) ->  | E37: =IF('sem2'!V36="","",'sem2'!V36) ->  | G37: =IF('sem1'!Y36="","",'sem1'!Y36) ->  | H37: =IF('sem2'!Y36="","",'sem2'!Y36) ->  | J37: =IF('sem1'!AD36="","",'sem1'!AD36) ->  | K37: =IF('sem2'!AD36="","",'sem2'!AD36) ->  | M37: =IF('sem1'!AG36="","",'sem1'!AG36) ->  | N37: =IF('sem2'!AG36="","",'sem2'!AG36) ->  | P37: =IF('sem1'!AJ36="","",'sem1'!AJ36) ->  | Q37: =IF('sem2'!AJ36="","",'sem2'!AJ36) ->  | S37: =IF('sem1'!AM36="","",'sem1'!AM36) ->  | T37: =IF('sem2'!AM36="","",'sem2'!AM36) ->  | V37: =IF('sem1'!AP36="","",'sem1'!AP36) ->  | W37: =IF('sem2'!AP36="","",'sem2'!AP36) ->  | Y37: =IF('sem1'!AS36="","",'sem1'!AS36) ->  | Z37: =IF('sem2'!AS36="","",'sem2'!AS36) -> 
A38: =IF(info!$A43="","",info!$A43) ->  | B38: =IF($A38="","",info!$F43) ->  | C38: =IF($A38="","",info!$C43) ->  | D38: =IF('sem1'!V37="","",'sem1'!V37) ->  | E38: =IF('sem2'!V37="","",'sem2'!V37) ->  | G38: =IF('sem1'!Y37="","",'sem1'!Y37) ->  | H38: =IF('sem2'!Y37="","",'sem2'!Y37) ->  | J38: =IF('sem1'!AD37="","",'sem1'!AD37) ->  | K38: =IF('sem2'!AD37="","",'sem2'!AD37) ->  | M38: =IF('sem1'!AG37="","",'sem1'!AG37) ->  | N38: =IF('sem2'!AG37="","",'sem2'!AG37) ->  | P38: =IF('sem1'!AJ37="","",'sem1'!AJ37) ->  | Q38: =IF('sem2'!AJ37="","",'sem2'!AJ37) ->  | S38: =IF('sem1'!AM37="","",'sem1'!AM37) ->  | T38: =IF('sem2'!AM37="","",'sem2'!AM37) ->  | V38: =IF('sem1'!AP37="","",'sem1'!AP37) ->  | W38: =IF('sem2'!AP37="","",'sem2'!AP37) ->  | Y38: =IF('sem1'!AS37="","",'sem1'!AS37) ->  | Z38: =IF('sem2'!AS37="","",'sem2'!AS37) -> 
A39: =IF(info!$A44="","",info!$A44) ->  | B39: =IF($A39="","",info!$F44) ->  | C39: =IF($A39="","",info!$C44) ->  | D39: =IF('sem1'!V38="","",'sem1'!V38) ->  | E39: =IF('sem2'!V38="","",'sem2'!V38) ->  | G39: =IF('sem1'!Y38="","",'sem1'!Y38) ->  | H39: =IF('sem2'!Y38="","",'sem2'!Y38) ->  | J39: =IF('sem1'!AD38="","",'sem1'!AD38) ->  | K39: =IF('sem2'!AD38="","",'sem2'!AD38) ->  | M39: =IF('sem1'!AG38="","",'sem1'!AG38) ->  | N39: =IF('sem2'!AG38="","",'sem2'!AG38) ->  | P39: =IF('sem1'!AJ38="","",'sem1'!AJ38) ->  | Q39: =IF('sem2'!AJ38="","",'sem2'!AJ38) ->  | S39: =IF('sem1'!AM38="","",'sem1'!AM38) ->  | T39: =IF('sem2'!AM38="","",'sem2'!AM38) ->  | V39: =IF('sem1'!AP38="","",'sem1'!AP38) ->  | W39: =IF('sem2'!AP38="","",'sem2'!AP38) ->  | Y39: =IF('sem1'!AS38="","",'sem1'!AS38) ->  | Z39: =IF('sem2'!AS38="","",'sem2'!AS38) -> 
A40: =IF(info!$A45="","",info!$A45) ->  | B40: =IF($A40="","",info!$F45) ->  | C40: =IF($A40="","",info!$C45) ->  | D40: =IF('sem1'!V39="","",'sem1'!V39) ->  | E40: =IF('sem2'!V39="","",'sem2'!V39) ->  | G40: =IF('sem1'!Y39="","",'sem1'!Y39) ->  | H40: =IF('sem2'!Y39="","",'sem2'!Y39) ->  | J40: =IF('sem1'!AD39="","",'sem1'!AD39) ->  | K40: =IF('sem2'!AD39="","",'sem2'!AD39) ->  | M40: =IF('sem1'!AG39="","",'sem1'!AG39) ->  | N40: =IF('sem2'!AG39="","",'sem2'!AG39) ->  | P40: =IF('sem1'!AJ39="","",'sem1'!AJ39) ->  | Q40: =IF('sem2'!AJ39="","",'sem2'!AJ39) ->  | S40: =IF('sem1'!AM39="","",'sem1'!AM39) ->  | T40: =IF('sem2'!AM39="","",'sem2'!AM39) ->  | V40: =IF('sem1'!AP39="","",'sem1'!AP39) ->  | W40: =IF('sem2'!AP39="","",'sem2'!AP39) ->  | Y40: =IF('sem1'!AS39="","",'sem1'!AS39) ->  | Z40: =IF('sem2'!AS39="","",'sem2'!AS39) -> 
A41: =IF(info!$A46="","",info!$A46) ->  | B41: =IF($A41="","",info!$F46) ->  | C41: =IF($A41="","",info!$C46) ->  | D41: =IF('sem1'!V40="","",'sem1'!V40) ->  | E41: =IF('sem2'!V40="","",'sem2'!V40) ->  | G41: =IF('sem1'!Y40="","",'sem1'!Y40) ->  | H41: =IF('sem2'!Y40="","",'sem2'!Y40) ->  | J41: =IF('sem1'!AD40="","",'sem1'!AD40) ->  | K41: =IF('sem2'!AD40="","",'sem2'!AD40) ->  | M41: =IF('sem1'!AG40="","",'sem1'!AG40) ->  | N41: =IF('sem2'!AG40="","",'sem2'!AG40) ->  | P41: =IF('sem1'!AJ40="","",'sem1'!AJ40) ->  | Q41: =IF('sem2'!AJ40="","",'sem2'!AJ40) ->  | S41: =IF('sem1'!AM40="","",'sem1'!AM40) ->  | T41: =IF('sem2'!AM40="","",'sem2'!AM40) ->  | V41: =IF('sem1'!AP40="","",'sem1'!AP40) ->  | W41: =IF('sem2'!AP40="","",'sem2'!AP40) ->  | Y41: =IF('sem1'!AS40="","",'sem1'!AS40) ->  | Z41: =IF('sem2'!AS40="","",'sem2'!AS40) -> 
A42: =IF(info!$A47="","",info!$A47) ->  | B42: =IF($A42="","",info!$F47) ->  | C42: =IF($A42="","",info!$C47) ->  | D42: =IF('sem1'!V41="","",'sem1'!V41) ->  | E42: =IF('sem2'!V41="","",'sem2'!V41) ->  | G42: =IF('sem1'!Y41="","",'sem1'!Y41) ->  | H42: =IF('sem2'!Y41="","",'sem2'!Y41) ->  | J42: =IF('sem1'!AD41="","",'sem1'!AD41) ->  | K42: =IF('sem2'!AD41="","",'sem2'!AD41) ->  | M42: =IF('sem1'!AG41="","",'sem1'!AG41) ->  | N42: =IF('sem2'!AG41="","",'sem2'!AG41) ->  | P42: =IF('sem1'!AJ41="","",'sem1'!AJ41) ->  | Q42: =IF('sem2'!AJ41="","",'sem2'!AJ41) ->  | S42: =IF('sem1'!AM41="","",'sem1'!AM41) ->  | T42: =IF('sem2'!AM41="","",'sem2'!AM41) ->  | V42: =IF('sem1'!AP41="","",'sem1'!AP41) ->  | W42: =IF('sem2'!AP41="","",'sem2'!AP41) ->  | Y42: =IF('sem1'!AS41="","",'sem1'!AS41) ->  | Z42: =IF('sem2'!AS41="","",'sem2'!AS41) -> 
A43: =IF(info!$A48="","",info!$A48) ->  | B43: =IF($A43="","",info!$F48) ->  | C43: =IF($A43="","",info!$C48) ->  | D43: =IF('sem1'!V42="","",'sem1'!V42) ->  | E43: =IF('sem2'!V42="","",'sem2'!V42) ->  | G43: =IF('sem1'!Y42="","",'sem1'!Y42) ->  | H43: =IF('sem2'!Y42="","",'sem2'!Y42) ->  | J43: =IF('sem1'!AD42="","",'sem1'!AD42) ->  | K43: =IF('sem2'!AD42="","",'sem2'!AD42) ->  | M43: =IF('sem1'!AG42="","",'sem1'!AG42) ->  | N43: =IF('sem2'!AG42="","",'sem2'!AG42) ->  | P43: =IF('sem1'!AJ42="","",'sem1'!AJ42) ->  | Q43: =IF('sem2'!AJ42="","",'sem2'!AJ42) ->  | S43: =IF('sem1'!AM42="","",'sem1'!AM42) ->  | T43: =IF('sem2'!AM42="","",'sem2'!AM42) ->  | V43: =IF('sem1'!AP42="","",'sem1'!AP42) ->  | W43: =IF('sem2'!AP42="","",'sem2'!AP42) ->  | Y43: =IF('sem1'!AS42="","",'sem1'!AS42) ->  | Z43: =IF('sem2'!AS42="","",'sem2'!AS42) -> 
A44: =IF(info!$A49="","",info!$A49) ->  | B44: =IF($A44="","",info!$F49) ->  | C44: =IF($A44="","",info!$C49) ->  | D44: =IF('sem1'!V43="","",'sem1'!V43) ->  | E44: =IF('sem2'!V43="","",'sem2'!V43) ->  | G44: =IF('sem1'!Y43="","",'sem1'!Y43) ->  | H44: =IF('sem2'!Y43="","",'sem2'!Y43) ->  | J44: =IF('sem1'!AD43="","",'sem1'!AD43) ->  | K44: =IF('sem2'!AD43="","",'sem2'!AD43) ->  | M44: =IF('sem1'!AG43="","",'sem1'!AG43) ->  | N44: =IF('sem2'!AG43="","",'sem2'!AG43) ->  | P44: =IF('sem1'!AJ43="","",'sem1'!AJ43) ->  | Q44: =IF('sem2'!AJ43="","",'sem2'!AJ43) ->  | S44: =IF('sem1'!AM43="","",'sem1'!AM43) ->  | T44: =IF('sem2'!AM43="","",'sem2'!AM43) ->  | V44: =IF('sem1'!AP43="","",'sem1'!AP43) ->  | W44: =IF('sem2'!AP43="","",'sem2'!AP43) ->  | Y44: =IF('sem1'!AS43="","",'sem1'!AS43) ->  | Z44: =IF('sem2'!AS43="","",'sem2'!AS43) -> 
A45: =IF(info!$A50="","",info!$A50) ->  | B45: =IF($A45="","",info!$F50) ->  | C45: =IF($A45="","",info!$C50) ->  | D45: =IF('sem1'!V44="","",'sem1'!V44) ->  | E45: =IF('sem2'!V44="","",'sem2'!V44) ->  | G45: =IF('sem1'!Y44="","",'sem1'!Y44) ->  | H45: =IF('sem2'!Y44="","",'sem2'!Y44) ->  | J45: =IF('sem1'!AD44="","",'sem1'!AD44) ->  | K45: =IF('sem2'!AD44="","",'sem2'!AD44) ->  | M45: =IF('sem1'!AG44="","",'sem1'!AG44) ->  | N45: =IF('sem2'!AG44="","",'sem2'!AG44) ->  | P45: =IF('sem1'!AJ44="","",'sem1'!AJ44) ->  | Q45: =IF('sem2'!AJ44="","",'sem2'!AJ44) ->  | S45: =IF('sem1'!AM44="","",'sem1'!AM44) ->  | T45: =IF('sem2'!AM44="","",'sem2'!AM44) ->  | V45: =IF('sem1'!AP44="","",'sem1'!AP44) ->  | W45: =IF('sem2'!AP44="","",'sem2'!AP44) ->  | Y45: =IF('sem1'!AS44="","",'sem1'!AS44) ->  | Z45: =IF('sem2'!AS44="","",'sem2'!AS44) -> 
A46: =IF(info!$A51="","",info!$A51) ->  | B46: =IF($A46="","",info!$F51) ->  | C46: =IF($A46="","",info!$C51) ->  | D46: =IF('sem1'!V45="","",'sem1'!V45) ->  | E46: =IF('sem2'!V45="","",'sem2'!V45) ->  | G46: =IF('sem1'!Y45="","",'sem1'!Y45) ->  | H46: =IF('sem2'!Y45="","",'sem2'!Y45) ->  | J46: =IF('sem1'!AD45="","",'sem1'!AD45) ->  | K46: =IF('sem2'!AD45="","",'sem2'!AD45) ->  | M46: =IF('sem1'!AG45="","",'sem1'!AG45) ->  | N46: =IF('sem2'!AG45="","",'sem2'!AG45) ->  | P46: =IF('sem1'!AJ45="","",'sem1'!AJ45) ->  | Q46: =IF('sem2'!AJ45="","",'sem2'!AJ45) ->  | S46: =IF('sem1'!AM45="","",'sem1'!AM45) ->  | T46: =IF('sem2'!AM45="","",'sem2'!AM45) ->  | V46: =IF('sem1'!AP45="","",'sem1'!AP45) ->  | W46: =IF('sem2'!AP45="","",'sem2'!AP45) ->  | Y46: =IF('sem1'!AS45="","",'sem1'!AS45) ->  | Z46: =IF('sem2'!AS45="","",'sem2'!AS45) -> 
A47: =IF(info!$A52="","",info!$A52) ->  | B47: =IF($A47="","",info!$F52) ->  | C47: =IF($A47="","",info!$C52) ->  | D47: =IF('sem1'!V46="","",'sem1'!V46) ->  | E47: =IF('sem2'!V46="","",'sem2'!V46) ->  | G47: =IF('sem1'!Y46="","",'sem1'!Y46) ->  | H47: =IF('sem2'!Y46="","",'sem2'!Y46) ->  | J47: =IF('sem1'!AD46="","",'sem1'!AD46) ->  | K47: =IF('sem2'!AD46="","",'sem2'!AD46) ->  | M47: =IF('sem1'!AG46="","",'sem1'!AG46) ->  | N47: =IF('sem2'!AG46="","",'sem2'!AG46) ->  | P47: =IF('sem1'!AJ46="","",'sem1'!AJ46) ->  | Q47: =IF('sem2'!AJ46="","",'sem2'!AJ46) ->  | S47: =IF('sem1'!AM46="","",'sem1'!AM46) ->  | T47: =IF('sem2'!AM46="","",'sem2'!AM46) ->  | V47: =IF('sem1'!AP46="","",'sem1'!AP46) ->  | W47: =IF('sem2'!AP46="","",'sem2'!AP46) ->  | Y47: =IF('sem1'!AS46="","",'sem1'!AS46) ->  | Z47: =IF('sem2'!AS46="","",'sem2'!AS46) -> 
A48: =IF(info!$A53="","",info!$A53) ->  | B48: =IF($A48="","",info!$F53) ->  | C48: =IF($A48="","",info!$C53) ->  | D48: =IF('sem1'!V47="","",'sem1'!V47) ->  | E48: =IF('sem2'!V47="","",'sem2'!V47) ->  | G48: =IF('sem1'!Y47="","",'sem1'!Y47) ->  | H48: =IF('sem2'!Y47="","",'sem2'!Y47) ->  | J48: =IF('sem1'!AD47="","",'sem1'!AD47) ->  | K48: =IF('sem2'!AD47="","",'sem2'!AD47) ->  | M48: =IF('sem1'!AG47="","",'sem1'!AG47) ->  | N48: =IF('sem2'!AG47="","",'sem2'!AG47) ->  | P48: =IF('sem1'!AJ47="","",'sem1'!AJ47) ->  | Q48: =IF('sem2'!AJ47="","",'sem2'!AJ47) ->  | S48: =IF('sem1'!AM47="","",'sem1'!AM47) ->  | T48: =IF('sem2'!AM47="","",'sem2'!AM47) ->  | V48: =IF('sem1'!AP47="","",'sem1'!AP47) ->  | W48: =IF('sem2'!AP47="","",'sem2'!AP47) ->  | Y48: =IF('sem1'!AS47="","",'sem1'!AS47) ->  | Z48: =IF('sem2'!AS47="","",'sem2'!AS47) -> 
A49: =IF(info!$A54="","",info!$A54) ->  | B49: =IF($A49="","",info!$F54) ->  | C49: =IF($A49="","",info!$C54) ->  | D49: =IF('sem1'!V48="","",'sem1'!V48) ->  | E49: =IF('sem2'!V48="","",'sem2'!V48) ->  | G49: =IF('sem1'!Y48="","",'sem1'!Y48) ->  | H49: =IF('sem2'!Y48="","",'sem2'!Y48) ->  | J49: =IF('sem1'!AD48="","",'sem1'!AD48) ->  | K49: =IF('sem2'!AD48="","",'sem2'!AD48) ->  | M49: =IF('sem1'!AG48="","",'sem1'!AG48) ->  | N49: =IF('sem2'!AG48="","",'sem2'!AG48) ->  | P49: =IF('sem1'!AJ48="","",'sem1'!AJ48) ->  | Q49: =IF('sem2'!AJ48="","",'sem2'!AJ48) ->  | S49: =IF('sem1'!AM48="","",'sem1'!AM48) ->  | T49: =IF('sem2'!AM48="","",'sem2'!AM48) ->  | V49: =IF('sem1'!AP48="","",'sem1'!AP48) ->  | W49: =IF('sem2'!AP48="","",'sem2'!AP48) ->  | Y49: =IF('sem1'!AS48="","",'sem1'!AS48) ->  | Z49: =IF('sem2'!AS48="","",'sem2'!AS48) -> 
A50: =IF(info!$A55="","",info!$A55) ->  | B50: =IF($A50="","",info!$F55) ->  | C50: =IF($A50="","",info!$C55) ->  | D50: =IF('sem1'!V49="","",'sem1'!V49) ->  | E50: =IF('sem2'!V49="","",'sem2'!V49) ->  | G50: =IF('sem1'!Y49="","",'sem1'!Y49) ->  | H50: =IF('sem2'!Y49="","",'sem2'!Y49) ->  | J50: =IF('sem1'!AD49="","",'sem1'!AD49) ->  | K50: =IF('sem2'!AD49="","",'sem2'!AD49) ->  | M50: =IF('sem1'!AG49="","",'sem1'!AG49) ->  | N50: =IF('sem2'!AG49="","",'sem2'!AG49) ->  | P50: =IF('sem1'!AJ49="","",'sem1'!AJ49) ->  | Q50: =IF('sem2'!AJ49="","",'sem2'!AJ49) ->  | S50: =IF('sem1'!AM49="","",'sem1'!AM49) ->  | T50: =IF('sem2'!AM49="","",'sem2'!AM49) ->  | V50: =IF('sem1'!AP49="","",'sem1'!AP49) ->  | W50: =IF('sem2'!AP49="","",'sem2'!AP49) ->  | Y50: =IF('sem1'!AS49="","",'sem1'!AS49) ->  | Z50: =IF('sem2'!AS49="","",'sem2'!AS49) -> 
A51: =IF(info!$A56="","",info!$A56) ->  | B51: =IF($A51="","",info!$F56) ->  | C51: =IF($A51="","",info!$C56) ->  | D51: =IF('sem1'!V50="","",'sem1'!V50) ->  | E51: =IF('sem2'!V50="","",'sem2'!V50) ->  | G51: =IF('sem1'!Y50="","",'sem1'!Y50) ->  | H51: =IF('sem2'!Y50="","",'sem2'!Y50) ->  | J51: =IF('sem1'!AD50="","",'sem1'!AD50) ->  | K51: =IF('sem2'!AD50="","",'sem2'!AD50) ->  | M51: =IF('sem1'!AG50="","",'sem1'!AG50) ->  | N51: =IF('sem2'!AG50="","",'sem2'!AG50) ->  | P51: =IF('sem1'!AJ50="","",'sem1'!AJ50) ->  | Q51: =IF('sem2'!AJ50="","",'sem2'!AJ50) ->  | S51: =IF('sem1'!AM50="","",'sem1'!AM50) ->  | T51: =IF('sem2'!AM50="","",'sem2'!AM50) ->  | V51: =IF('sem1'!AP50="","",'sem1'!AP50) ->  | W51: =IF('sem2'!AP50="","",'sem2'!AP50) ->  | Y51: =IF('sem1'!AS50="","",'sem1'!AS50) ->  | Z51: =IF('sem2'!AS50="","",'sem2'!AS50) -> 
A52: =IF(info!$A57="","",info!$A57) ->  | B52: =IF($A52="","",info!$F57) ->  | C52: =IF($A52="","",info!$C57) ->  | D52: =IF('sem1'!V51="","",'sem1'!V51) ->  | E52: =IF('sem2'!V51="","",'sem2'!V51) ->  | G52: =IF('sem1'!Y51="","",'sem1'!Y51) ->  | H52: =IF('sem2'!Y51="","",'sem2'!Y51) ->  | J52: =IF('sem1'!AD51="","",'sem1'!AD51) ->  | K52: =IF('sem2'!AD51="","",'sem2'!AD51) ->  | M52: =IF('sem1'!AG51="","",'sem1'!AG51) ->  | N52: =IF('sem2'!AG51="","",'sem2'!AG51) ->  | P52: =IF('sem1'!AJ51="","",'sem1'!AJ51) ->  | Q52: =IF('sem2'!AJ51="","",'sem2'!AJ51) ->  | S52: =IF('sem1'!AM51="","",'sem1'!AM51) ->  | T52: =IF('sem2'!AM51="","",'sem2'!AM51) ->  | V52: =IF('sem1'!AP51="","",'sem1'!AP51) ->  | W52: =IF('sem2'!AP51="","",'sem2'!AP51) ->  | Y52: =IF('sem1'!AS51="","",'sem1'!AS51) ->  | Z52: =IF('sem2'!AS51="","",'sem2'!AS51) -> 
A53: =IF(info!$A58="","",info!$A58) ->  | B53: =IF($A53="","",info!$F58) ->  | C53: =IF($A53="","",info!$C58) ->  | D53: =IF('sem1'!V52="","",'sem1'!V52) ->  | E53: =IF('sem2'!V52="","",'sem2'!V52) ->  | G53: =IF('sem1'!Y52="","",'sem1'!Y52) ->  | H53: =IF('sem2'!Y52="","",'sem2'!Y52) ->  | J53: =IF('sem1'!AD52="","",'sem1'!AD52) ->  | K53: =IF('sem2'!AD52="","",'sem2'!AD52) ->  | M53: =IF('sem1'!AG52="","",'sem1'!AG52) ->  | N53: =IF('sem2'!AG52="","",'sem2'!AG52) ->  | P53: =IF('sem1'!AJ52="","",'sem1'!AJ52) ->  | Q53: =IF('sem2'!AJ52="","",'sem2'!AJ52) ->  | S53: =IF('sem1'!AM52="","",'sem1'!AM52) ->  | T53: =IF('sem2'!AM52="","",'sem2'!AM52) ->  | V53: =IF('sem1'!AP52="","",'sem1'!AP52) ->  | W53: =IF('sem2'!AP52="","",'sem2'!AP52) ->  | Y53: =IF('sem1'!AS52="","",'sem1'!AS52) ->  | Z53: =IF('sem2'!AS52="","",'sem2'!AS52) -> 
A54: =IF(info!$A59="","",info!$A59) ->  | B54: =IF($A54="","",info!$F59) ->  | C54: =IF($A54="","",info!$C59) ->  | D54: =IF('sem1'!V53="","",'sem1'!V53) ->  | E54: =IF('sem2'!V53="","",'sem2'!V53) ->  | G54: =IF('sem1'!Y53="","",'sem1'!Y53) ->  | H54: =IF('sem2'!Y53="","",'sem2'!Y53) ->  | J54: =IF('sem1'!AD53="","",'sem1'!AD53) ->  | K54: =IF('sem2'!AD53="","",'sem2'!AD53) ->  | M54: =IF('sem1'!AG53="","",'sem1'!AG53) ->  | N54: =IF('sem2'!AG53="","",'sem2'!AG53) ->  | P54: =IF('sem1'!AJ53="","",'sem1'!AJ53) ->  | Q54: =IF('sem2'!AJ53="","",'sem2'!AJ53) ->  | S54: =IF('sem1'!AM53="","",'sem1'!AM53) ->  | T54: =IF('sem2'!AM53="","",'sem2'!AM53) ->  | V54: =IF('sem1'!AP53="","",'sem1'!AP53) ->  | W54: =IF('sem2'!AP53="","",'sem2'!AP53) ->  | Y54: =IF('sem1'!AS53="","",'sem1'!AS53) ->  | Z54: =IF('sem2'!AS53="","",'sem2'!AS53) -> 
A55: =IF(info!$A60="","",info!$A60) ->  | B55: =IF($A55="","",info!$F60) ->  | C55: =IF($A55="","",info!$C60) ->  | D55: =IF('sem1'!V54="","",'sem1'!V54) ->  | E55: =IF('sem2'!V54="","",'sem2'!V54) ->  | G55: =IF('sem1'!Y54="","",'sem1'!Y54) ->  | H55: =IF('sem2'!Y54="","",'sem2'!Y54) ->  | J55: =IF('sem1'!AD54="","",'sem1'!AD54) ->  | K55: =IF('sem2'!AD54="","",'sem2'!AD54) ->  | M55: =IF('sem1'!AG54="","",'sem1'!AG54) ->  | N55: =IF('sem2'!AG54="","",'sem2'!AG54) ->  | P55: =IF('sem1'!AJ54="","",'sem1'!AJ54) ->  | Q55: =IF('sem2'!AJ54="","",'sem2'!AJ54) ->  | S55: =IF('sem1'!AM54="","",'sem1'!AM54) ->  | T55: =IF('sem2'!AM54="","",'sem2'!AM54) ->  | V55: =IF('sem1'!AP54="","",'sem1'!AP54) ->  | W55: =IF('sem2'!AP54="","",'sem2'!AP54) ->  | Y55: =IF('sem1'!AS54="","",'sem1'!AS54) ->  | Z55: =IF('sem2'!AS54="","",'sem2'!AS54) -> 
A56: =IF(info!$A61="","",info!$A61) ->  | B56: =IF($A56="","",info!$F61) ->  | C56: =IF($A56="","",info!$C61) ->  | D56: =IF('sem1'!V55="","",'sem1'!V55) ->  | E56: =IF('sem2'!V55="","",'sem2'!V55) ->  | G56: =IF('sem1'!Y55="","",'sem1'!Y55) ->  | H56: =IF('sem2'!Y55="","",'sem2'!Y55) ->  | J56: =IF('sem1'!AD55="","",'sem1'!AD55) ->  | K56: =IF('sem2'!AD55="","",'sem2'!AD55) ->  | M56: =IF('sem1'!AG55="","",'sem1'!AG55) ->  | N56: =IF('sem2'!AG55="","",'sem2'!AG55) ->  | P56: =IF('sem1'!AJ55="","",'sem1'!AJ55) ->  | Q56: =IF('sem2'!AJ55="","",'sem2'!AJ55) ->  | S56: =IF('sem1'!AM55="","",'sem1'!AM55) ->  | T56: =IF('sem2'!AM55="","",'sem2'!AM55) ->  | V56: =IF('sem1'!AP55="","",'sem1'!AP55) ->  | W56: =IF('sem2'!AP55="","",'sem2'!AP55) ->  | Y56: =IF('sem1'!AS55="","",'sem1'!AS55) ->  | Z56: =IF('sem2'!AS55="","",'sem2'!AS55) -> 
A57: =IF(info!$A62="","",info!$A62) ->  | B57: =IF($A57="","",info!$F62) ->  | C57: =IF($A57="","",info!$C62) ->  | D57: =IF('sem1'!V56="","",'sem1'!V56) ->  | E57: =IF('sem2'!V56="","",'sem2'!V56) ->  | G57: =IF('sem1'!Y56="","",'sem1'!Y56) ->  | H57: =IF('sem2'!Y56="","",'sem2'!Y56) ->  | J57: =IF('sem1'!AD56="","",'sem1'!AD56) ->  | K57: =IF('sem2'!AD56="","",'sem2'!AD56) ->  | M57: =IF('sem1'!AG56="","",'sem1'!AG56) ->  | N57: =IF('sem2'!AG56="","",'sem2'!AG56) ->  | P57: =IF('sem1'!AJ56="","",'sem1'!AJ56) ->  | Q57: =IF('sem2'!AJ56="","",'sem2'!AJ56) ->  | S57: =IF('sem1'!AM56="","",'sem1'!AM56) ->  | T57: =IF('sem2'!AM56="","",'sem2'!AM56) ->  | V57: =IF('sem1'!AP56="","",'sem1'!AP56) ->  | W57: =IF('sem2'!AP56="","",'sem2'!AP56) ->  | Y57: =IF('sem1'!AS56="","",'sem1'!AS56) ->  | Z57: =IF('sem2'!AS56="","",'sem2'!AS56) -> 
A58: =IF(info!$A63="","",info!$A63) ->  | B58: =IF($A58="","",info!$F63) ->  | C58: =IF($A58="","",info!$C63) ->  | D58: =IF('sem1'!V57="","",'sem1'!V57) ->  | E58: =IF('sem2'!V57="","",'sem2'!V57) ->  | G58: =IF('sem1'!Y57="","",'sem1'!Y57) ->  | H58: =IF('sem2'!Y57="","",'sem2'!Y57) ->  | J58: =IF('sem1'!AD57="","",'sem1'!AD57) ->  | K58: =IF('sem2'!AD57="","",'sem2'!AD57) ->  | M58: =IF('sem1'!AG57="","",'sem1'!AG57) ->  | N58: =IF('sem2'!AG57="","",'sem2'!AG57) ->  | P58: =IF('sem1'!AJ57="","",'sem1'!AJ57) ->  | Q58: =IF('sem2'!AJ57="","",'sem2'!AJ57) ->  | S58: =IF('sem1'!AM57="","",'sem1'!AM57) ->  | T58: =IF('sem2'!AM57="","",'sem2'!AM57) ->  | V58: =IF('sem1'!AP57="","",'sem1'!AP57) ->  | W58: =IF('sem2'!AP57="","",'sem2'!AP57) ->  | Y58: =IF('sem1'!AS57="","",'sem1'!AS57) ->  | Z58: =IF('sem2'!AS57="","",'sem2'!AS57) -> 
A59: =IF(info!$A64="","",info!$A64) ->  | B59: =IF($A59="","",info!$F64) ->  | C59: =IF($A59="","",info!$C64) ->  | D59: =IF('sem1'!V58="","",'sem1'!V58) ->  | E59: =IF('sem2'!V58="","",'sem2'!V58) ->  | G59: =IF('sem1'!Y58="","",'sem1'!Y58) ->  | H59: =IF('sem2'!Y58="","",'sem2'!Y58) ->  | J59: =IF('sem1'!AD58="","",'sem1'!AD58) ->  | K59: =IF('sem2'!AD58="","",'sem2'!AD58) ->  | M59: =IF('sem1'!AG58="","",'sem1'!AG58) ->  | N59: =IF('sem2'!AG58="","",'sem2'!AG58) ->  | P59: =IF('sem1'!AJ58="","",'sem1'!AJ58) ->  | Q59: =IF('sem2'!AJ58="","",'sem2'!AJ58) ->  | S59: =IF('sem1'!AM58="","",'sem1'!AM58) ->  | T59: =IF('sem2'!AM58="","",'sem2'!AM58) ->  | V59: =IF('sem1'!AP58="","",'sem1'!AP58) ->  | W59: =IF('sem2'!AP58="","",'sem2'!AP58) ->  | Y59: =IF('sem1'!AS58="","",'sem1'!AS58) ->  | Z59: =IF('sem2'!AS58="","",'sem2'!AS58) -> 
A60: =IF(info!$A65="","",info!$A65) ->  | B60: =IF($A60="","",info!$F65) ->  | C60: =IF($A60="","",info!$C65) ->  | D60: =IF('sem1'!V59="","",'sem1'!V59) ->  | E60: =IF('sem2'!V59="","",'sem2'!V59) ->  | G60: =IF('sem1'!Y59="","",'sem1'!Y59) ->  | H60: =IF('sem2'!Y59="","",'sem2'!Y59) ->  | J60: =IF('sem1'!AD59="","",'sem1'!AD59) ->  | K60: =IF('sem2'!AD59="","",'sem2'!AD59) ->  | M60: =IF('sem1'!AG59="","",'sem1'!AG59) ->  | N60: =IF('sem2'!AG59="","",'sem2'!AG59) ->  | P60: =IF('sem1'!AJ59="","",'sem1'!AJ59) ->  | Q60: =IF('sem2'!AJ59="","",'sem2'!AJ59) ->  | S60: =IF('sem1'!AM59="","",'sem1'!AM59) ->  | T60: =IF('sem2'!AM59="","",'sem2'!AM59) ->  | V60: =IF('sem1'!AP59="","",'sem1'!AP59) ->  | W60: =IF('sem2'!AP59="","",'sem2'!AP59) ->  | Y60: =IF('sem1'!AS59="","",'sem1'!AS59) ->  | Z60: =IF('sem2'!AS59="","",'sem2'!AS59) -> 
